Workbook

Sheet Purpose-Background
D2: Population and Municipal Solid Waste Composition Calculator
D5: Purpose and Background
D7: Developing a Local Solid Waste Management Plan (LSWMP) consist of several steps:
D8: · Assessment of current planning unit conditions,
D9: · Forecasting the future,
D10: · Establishing objectives with clear statements of what is need to be achieved and when,
D11: · Identifying and evaluating various alternatives and courses of action,
D12: · Making decisions and selecting the best alternative for accomplishing objectives,
D13: · Formulating tasks, subtasks, milestones, responsible parties, and certainly ensuring its effective implementation, as well as
D14: · Evaluating achievements and taking corrective actions when necessary.
D16: The purpose of the Population and Municipal Solid Waste Composition Calculator is to support planning units during the planning process, through a graphic and numerical representation of the current and future characteristics of the waste stream. The calculator has been designed to aid the development of a LSWMP from its early stage of assessment to its implementation and even evaluation of the plan over time.
D20: The calculator intends to approximate the solid waste stream composition of the planning unit based on specific demographics and the goals set up for a specific planning period.
D23: This projection tool is not intended to substitute for the valuable information gained by performing a municipal specific waste composition analysis. There is no substitute for accurately gathered and analyzed municipal specific waste composition data. This tool is merely intended to help refine the waste composition differences between planning units as a result of the wide array of demographics in New York State.
D27: For this tool, DEC developed estimates of material’s composition present in the MSW stream using data inputs that include field-based waste composition studies, performed within New York State and in other major US cities and States that have similar demographic characteristics to some of New York’s regions.
D31: After a careful review of dozens of composition analyses, the data from the following sources were used:
D32: · Municipalities within New York State: New York City and Onondaga County Resource Recovery Authority (OCRRA).
D33: · Municipalities in other states: Seattle, WA and San Francisco, CA.
D34: · Other States: Vermont, Wisconsin, Missouri, Georgia, Oregon, Ohio, Delaware, Pennsylvania, and California.

Sheet 1.PU& Period Selection
C2: Step 1. Planning Unit and Plan Period Selection
BN5: Notes 3/22/22 : | BO5: Pop for Eastern Rensselaer, T of North Hempsted, Oyster Bay - only account for affiliated municipalities.
BO6: We need to go back and revise some of the annual % changes - especially for R1 munic impacted by the pandemic
B8: Please, select from the drop-down list the name of your planning unit and the planning period of your LSWMP. Be aware that a LSWMP must be developed for a 10-year period, and that your selection will be replicated on each one of the following tabs.
BO11: Population (2020) | BP11: Rural | BQ11: Suburban | BR11: Urban | BT11: % Change 2010-2020 | BU11: Annual % Change
C12: Planning Unit | BM12: 1 | BN12: Allegany County | BO12: 46456 | BP12: 0.5617 | BQ12: 0.4383 | BR12: 0 | BS12: =SUM(BP12:BR12) -> 1 | BT12: -0.05087238998 | BU12: =BT12/10 -> -0.005087238998 | BW12: 2015-2024 | BX12: 2015 | BY12: 2016 | BZ12: 2017 | CA12: 2018 | CB12: 2019 | CC12: 2020 | CD12: 2021 | CE12: 2022 | CF12: 2023 | CG12: 2024 | CH12: 2025 | CI12: 2026 | CJ12: 2027 | CK12: 2028 | CQ12: 2 | CR12: 3 | CS12: 4 | CT12: 5 | CU12: 6 | CV12: 7 | CW12: 8 | CX12: 9 | CY12: 10 | CZ12: 11 | DA12: 12 | DB12: 13 | DC12: 14 | DD12: 15 | DE12: 16 | DF12: 17 | DG12: 18 | DH12: 19 | DI12: 20 | DJ12: 21 | DK12: 22 | DL12: 23 | DM12: 24 | DN12: 25 | DO12: 26 | DP12: 27 | DQ12: 28 | DR12: 29 | DS12: Generation rate at the end of the planning period (Lbs./person/day)
BM13: 2 | BN13: Broome County | BO13: 198683 | BP13: 0.285 | BQ13: 0.6842 | BR13: 0.0308 | BS13: =SUM(BP13:BR13) -> 1 | BT13: -0.009556331007 | BU13: =BT13/10 -> -0.0009556331007 | BW13: 2016-2025 | BX13: 2016 | BY13: 2017 | BZ13: 2018 | CA13: 2019 | CB13: 2020 | CC13: 2021 | CD13: 2022 | CE13: 2023 | CF13: 2024 | CG13: 2025 | CH13: 2026 | CI13: 2027 | CJ13: 2028 | CK13: 2029 | CP13: MSW generation rate does not change. Consequently, MSW generation fluctuates with the population of the planning unit, if the population increases, waste generation will rise as well, and vice versa. | CQ13: =+'3.PU&MSW Projections'!$E$69 ->  | CR13: =+'3.PU&MSW Projections'!$E$69 ->  | CS13: =+'3.PU&MSW Projections'!$E$69 ->  | CT13: =+'3.PU&MSW Projections'!$E$69 ->  | CU13: =+'3.PU&MSW Projections'!$E$69 ->  | CV13: =+'3.PU&MSW Projections'!$E$69 ->  | CW13: =+'3.PU&MSW Projections'!$E$69 ->  | CX13: =+'3.PU&MSW Projections'!$E$69 ->  | CY13: =+'3.PU&MSW Projections'!$E$69 ->  | CZ13: =+'3.PU&MSW Projections'!$E$69 ->  | DA13: =+'3.PU&MSW Projections'!$E$69 ->  | DB13: =+'3.PU&MSW Projections'!$E$69 ->  | DC13: =+'3.PU&MSW Projections'!$E$69 ->  | DD13: =+'3.PU&MSW Projections'!$E$69 ->  | DF13: =(('3.PU&MSW Projections'!$E$69*'3.PU&MSW Projections'!$G$56)*0.1825) ->  | DG13: =(('3.PU&MSW Projections'!$E$69*'3.PU&MSW Projections'!$H$56)*0.1825) ->  | DH13: =(('3.PU&MSW Projections'!$E$69*'3.PU&MSW Projections'!$I$56)*0.1825) ->  | DI13: =(('3.PU&MSW Projections'!$E$69*'3.PU&MSW Projections'!J56)*0.1825) ->  | DJ13: =(('3.PU&MSW Projections'!$E$69*'3.PU&MSW Projections'!K56)*0.1825) ->  | DK13: =(('3.PU&MSW Projections'!$E$69*'3.PU&MSW Projections'!L56)*0.1825) ->  | DL13: =(('3.PU&MSW Projections'!$E$69*'3.PU&MSW Projections'!M56)*0.1825) ->  | DM13: =(('3.PU&MSW Projections'!$E$69*'3.PU&MSW Projections'!N56)*0.1825) ->  | DN13: =(('3.PU&MSW Projections'!$E$69*'3.PU&MSW Projections'!O56)*0.1825) ->  | DO13: =(('3.PU&MSW Projections'!$E$69*'3.PU&MSW Projections'!P56)*0.1825) ->  | DP13: =(('3.PU&MSW Projections'!$E$69*'3.PU&MSW Projections'!Q56)*0.1825) ->  | DQ13: =(('3.PU&MSW Projections'!$E$69*'3.PU&MSW Projections'!R56)*0.1825) ->  | DR13: =(('3.PU&MSW Projections'!$E$69*'3.PU&MSW Projections'!S56)*0.1825) ->  | DS13: =+(DP13*5.4794)/'3.PU&MSW Projections'!Q56 -> 
BM14: 3 | BN14: Capital Region Solid Waste Management Partnership (CRSWMP) | BO14: 219438 | BP14: 0.0736 | BQ14: 0.8808 | BR14: 0.034 | BS14: 0.9884 | BT14: 0.02236323484 | BU14: 0.002236323484 | BW14: 2017-2026 | BX14: 2017 | BY14: 2018 | BZ14: 2019 | CA14: 2020 | CB14: 2021 | CC14: 2022 | CD14: 2023 | CE14: 2024 | CF14: 2025 | CG14: 2026 | CH14: 2027 | CI14: 2028 | CJ14: 2029 | CK14: 2030 | CP14: MSW generation amount remains the same, regardless of whether or not the planning unit's population fluctuates. | CQ14: =+'3.PU&MSW Projections'!$E$69 ->  | CR14: =(DF14/'3.PU&MSW Projections'!G56)*5.47 ->  | CS14: =(DG14/'3.PU&MSW Projections'!H56)*5.47 ->  | CT14: =(DH14/'3.PU&MSW Projections'!I56)*5.47 ->  | CU14: =(DI14/'3.PU&MSW Projections'!J56)*5.47 ->  | CV14: =(DJ14/'3.PU&MSW Projections'!K56)*5.47 ->  | CW14: =(DK14/'3.PU&MSW Projections'!L56)*5.47 ->  | CX14: =(DL14/'3.PU&MSW Projections'!M56)*5.47 ->  | CY14: =(DM14/'3.PU&MSW Projections'!N56)*5.47 ->  | CZ14: =(DN14/'3.PU&MSW Projections'!O56)*5.47 ->  | DA14: =(DO14/'3.PU&MSW Projections'!P56)*5.47 ->  | DB14: =(DP14/'3.PU&MSW Projections'!Q56)*5.47 ->  | DC14: =(DQ14/'3.PU&MSW Projections'!R56)*5.47 ->  | DD14: =(DR14/'3.PU&MSW Projections'!S56)*5.47 ->  | DF14: =(('3.PU&MSW Projections'!$E$69*'3.PU&MSW Projections'!$G$56)*0.1825) ->  | DG14: =(('3.PU&MSW Projections'!$E$69*'3.PU&MSW Projections'!$G$56)*0.1825) ->  | DH14: =(('3.PU&MSW Projections'!$E$69*'3.PU&MSW Projections'!$G$56)*0.1825) ->  | DI14: =(('3.PU&MSW Projections'!$E$69*'3.PU&MSW Projections'!$G$56)*0.1825) ->  | DJ14: =(('3.PU&MSW Projections'!$E$69*'3.PU&MSW Projections'!$G$56)*0.1825) ->  | DK14: =(('3.PU&MSW Projections'!$E$69*'3.PU&MSW Projections'!$G$56)*0.1825) ->  | DL14: =(('3.PU&MSW Projections'!$E$69*'3.PU&MSW Projections'!$G$56)*0.1825) ->  | DM14: =(('3.PU&MSW Projections'!$E$69*'3.PU&MSW Projections'!$G$56)*0.1825) ->  | DN14: =(('3.PU&MSW Projections'!$E$69*'3.PU&MSW Projections'!$G$56)*0.1825) ->  | DO14: =(('3.PU&MSW Projections'!$E$69*'3.PU&MSW Projections'!$G$56)*0.1825) ->  | DP14: =(('3.PU&MSW Projections'!$E$69*'3.PU&MSW Projections'!$G$56)*0.1825) ->  | DQ14: =(('3.PU&MSW Projections'!$E$69*'3.PU&MSW Projections'!$G$56)*0.1825) ->  | DR14: =(('3.PU&MSW Projections'!$E$69*'3.PU&MSW Projections'!$G$56)*0.1825) ->  | DS14: =+(DP14*5.4794)/'3.PU&MSW Projections'!Q56 -> 
C15: Planning Period | BM15: 4 | BN15: Cattaraugus County | BO15: 77042 | BP15: 0.5155 | BQ15: 0.4845 | BR15: 0 | BS15: 1 | BT15: -0.0407759254 | BU15: -0.00407759254 | BW15: 2018-2027 | BX15: 2018 | BY15: 2019 | BZ15: 2020 | CA15: 2021 | CB15: 2022 | CC15: 2023 | CD15: 2024 | CE15: 2025 | CF15: 2026 | CG15: 2027 | CH15: 2028 | CI15: 2029 | CJ15: 2030 | CK15: 2031 | CP15: As a result of successfully implementing the Local Solid Waste Management Plan, MSW generation will be reduced by an annual factor of … | CQ15: =+'3.PU&MSW Projections'!E69 ->  | CR15: =+'3.PU&MSW Projections'!E69-('3.PU&MSW Projections'!E69*'3.PU&MSW Projections'!$Q$65) ->  | CS15: =+'3.PU&MSW Projections'!H69-('3.PU&MSW Projections'!H69*'3.PU&MSW Projections'!$Q$65) ->  | CT15: =+'3.PU&MSW Projections'!I69-('3.PU&MSW Projections'!I69*'3.PU&MSW Projections'!$Q$65) ->  | CU15: =+'3.PU&MSW Projections'!J69-('3.PU&MSW Projections'!J69*'3.PU&MSW Projections'!$Q$65) ->  | CV15: =+'3.PU&MSW Projections'!K69-('3.PU&MSW Projections'!K69*'3.PU&MSW Projections'!$Q$65) ->  | CW15: =+'3.PU&MSW Projections'!L69-('3.PU&MSW Projections'!L69*'3.PU&MSW Projections'!$Q$65) ->  | CX15: =+'3.PU&MSW Projections'!M69-('3.PU&MSW Projections'!M69*'3.PU&MSW Projections'!$Q$65) ->  | CY15: =+'3.PU&MSW Projections'!N69-('3.PU&MSW Projections'!N69*'3.PU&MSW Projections'!$Q$65) ->  | CZ15: =+'3.PU&MSW Projections'!O69-('3.PU&MSW Projections'!O69*'3.PU&MSW Projections'!$Q$65) ->  | DA15: =+'3.PU&MSW Projections'!P69-('3.PU&MSW Projections'!P69*'3.PU&MSW Projections'!$Q$65) ->  | DB15: =+'3.PU&MSW Projections'!Q69-('3.PU&MSW Projections'!Q69*'3.PU&MSW Projections'!$Q$65) ->  | DC15: =+'3.PU&MSW Projections'!R69-('3.PU&MSW Projections'!R69*'3.PU&MSW Projections'!$Q$65) ->  | DD15: =+'3.PU&MSW Projections'!S69-('3.PU&MSW Projections'!S69*'3.PU&MSW Projections'!$Q$65) ->  | DF15: =(('3.PU&MSW Projections'!G56*CQ15)*0.1825) ->  | DG15: =(('3.PU&MSW Projections'!H56*CR15)*0.1825) ->  | DH15: =(('3.PU&MSW Projections'!I56*CS15)*0.1825) ->  | DI15: =(('3.PU&MSW Projections'!J56*CT15)*0.1825) ->  | DJ15: =(('3.PU&MSW Projections'!K56*CU15)*0.1825) ->  | DK15: =(('3.PU&MSW Projections'!L56*CV15)*0.1825) ->  | DL15: =(('3.PU&MSW Projections'!M56*CW15)*0.1825) ->  | DM15: =(('3.PU&MSW Projections'!N56*CX15)*0.1825) ->  | DN15: =(('3.PU&MSW Projections'!O56*CY15)*0.1825) ->  | DO15: =(('3.PU&MSW Projections'!P56*CZ15)*0.1825) ->  | DP15: =(('3.PU&MSW Projections'!Q56*DA15)*0.1825) ->  | DQ15: =(('3.PU&MSW Projections'!R56*DB15)*0.1825) ->  | DR15: =(('3.PU&MSW Projections'!S56*DC15)*0.1825) ->  | DS15: =+(DP15*5.4794)/'3.PU&MSW Projections'!Q56 -> 
BM16: 5 | BN16: Cayuga County | BO16: 76248 | BP16: 0.5199 | BQ16: 0.4801 | BR16: 0 | BS16: 1 | BT16: -0.04720965686 | BU16: -0.004720965686 | BW16: 2019-2028 | BX16: 2019 | BY16: 2020 | BZ16: 2021 | CA16: 2022 | CB16: 2023 | CC16: 2024 | CD16: 2025 | CE16: 2026 | CF16: 2027 | CG16: 2028 | CH16: 2029 | CI16: 2030 | CJ16: 2031 | CK16: 2032
BM17: 6 | BN17: Chautauqua County | BO17: 127657 | BP17: 0.4071 | BQ17: 0.5929 | BR17: 0 | BS17: 1 | BT17: -0.05372669656 | BU17: -0.005372669656 | BW17: 2020-2029 | BX17: 2020 | BY17: 2021 | BZ17: 2022 | CA17: 2023 | CB17: 2024 | CC17: 2025 | CD17: 2026 | CE17: 2027 | CF17: 2028 | CG17: 2029 | CH17: 2030 | CI17: 2031 | CJ17: 2032 | CK17: 2033
BM18: 7 | BN18: Chemung County | BO18: 84148 | BP18: 0.3453 | BQ18: 0.6547 | BR18: 0 | BS18: 1 | BT18: -0.05270741866 | BU18: -0.005270741866 | BW18: 2021-2030 | BX18: 2021 | BY18: 2022 | BZ18: 2023 | CA18: 2024 | CB18: 2025 | CC18: 2026 | CD18: 2027 | CE18: 2028 | CF18: 2029 | CG18: 2030 | CH18: 2031 | CI18: 2032 | CJ18: 2033 | CK18: 2034
BM19: 8 | BN19: Chenango County | BO19: 47220 | BP19: 0.6963 | BQ19: 0.3037 | BR19: 0 | BS19: 1 | BT19: -0.06452443687 | BU19: -0.006452443687 | BW19: 2022-2031 | BX19: 2022 | BY19: 2023 | BZ19: 2024 | CA19: 2025 | CB19: 2026 | CC19: 2027 | CD19: 2028 | CE19: 2029 | CF19: 2030 | CG19: 2031 | CH19: 2032 | CI19: 2033 | CJ19: 2034 | CK19: 2035
BM20: 9 | BN20: City of Glen Cove | BO20: 28365 | BP20: 0 | BQ20: 1 | BR20: 0 | BS20: 1 | BT20: 0.05195816644 | BU20: 0.005195816644 | BW20: 2023-2032 | BX20: 2023 | BY20: 2024 | BZ20: 2025 | CA20: 2026 | CB20: 2027 | CC20: 2028 | CD20: 2029 | CE20: 2030 | CF20: 2031 | CG20: 2032 | CH20: 2033 | CI20: 2034 | CJ20: 2035 | CK20: 2036
BM21: 10 | BN21: City of Long Beach | BO21: 35029 | BP21: 0 | BQ21: 0.3378 | BR21: 0.6622 | BS21: 1 | BT21: 0.05271224643 | BU21: 0.005271224643 | BW21: 2024-2033 | BX21: 2024 | BY21: 2025 | BZ21: 2026 | CA21: 2027 | CB21: 2028 | CC21: 2029 | CD21: 2030 | CE21: 2031 | CF21: 2032 | CG21: 2033 | CH21: 2034 | CI21: 2035 | CJ21: 2036 | CK21: 2037 | CR21: 3 | CS21: =CHOOSE(CR21,CP13,CP14,CP15) -> As a result of successfully implementing the Local Solid Waste Management Plan, MSW generation will be reduced by an annual factor of …
BM22: 11 | BN22: Clinton County | BO22: 79843 | BP22: 0.5548 | BQ22: 0.4019 | BR22: 0.0433 | BS22: 1 | BT22: -0.02782242353 | BU22: -0.002782242353 | BW22: 2025-2034 | BX22: 2025 | BY22: 2026 | BZ22: 2027 | CA22: 2028 | CB22: 2029 | CC22: 2030 | CD22: 2031 | CE22: 2032 | CF22: 2033 | CG22: 2034 | CH22: 2035 | CI22: 2036 | CJ22: 2037 | CK22: 2038
BM23: 12 | BN23: Columbia County | BO23: 60016 | BP23: 0.7082 | BQ23: 0.2918 | BR23: 0 | BS23: 1 | BT23: -0.02257843808 | BU23: -0.002257843808 | BW23: 2026-2035 | BX23: 2026 | BY23: 2027 | BZ23: 2028 | CA23: 2029 | CB23: 2030 | CC23: 2031 | CD23: 2032 | CE23: 2033 | CF23: 2034 | CG23: 2035 | CH23: 2036 | CI23: 2037 | CJ23: 2038 | CK23: 2039
BM24: 13 | BN24: Cortland County | BO24: 46809 | BP24: 0.4494 | BQ24: 0.5506 | BR24: 0 | BS24: 1 | BT24: -0.05122020431 | BU24: -0.005122020431 | BW24: 2027-2036 | BX24: 2027 | BY24: 2028 | BZ24: 2029 | CA24: 2030 | CB24: 2031 | CC24: 2032 | CD24: 2033 | CE24: 2034 | CF24: 2035 | CG24: 2036 | CH24: 2037 | CI24: 2038 | CJ24: 2039 | CK24: 2040
BM25: 14 | BN25: County of Franklin Solid Waste Management Authority (CFSWMA) | BO25: 47555 | BP25: 0.6874 | BQ25: 0.3126 | BR25: 0 | BS25: 1 | BT25: -0.07837361189 | BU25: -0.007837361189 | BW25: 2028-2037 | BX25: 2028 | BY25: 2029 | BZ25: 2030 | CA25: 2031 | CB25: 2032 | CC25: 2033 | CD25: 2034 | CE25: 2035 | CF25: 2036 | CG25: 2037 | CH25: 2038 | CI25: 2039 | CJ25: 2040 | CK25: 2041
BM26: 15 | BN26: Delaware County | BO26: 44308 | BP26: 0.6909 | BQ26: 0.3091 | BR26: 0 | BS26: 1 | BT26: -0.07653188829 | BU26: -0.007653188829 | BW26: 2029-2038 | BX26: 2029 | BY26: 2030 | BZ26: 2031 | CA26: 2032 | CB26: 2033 | CC26: 2034 | CD26: 2035 | CE26: 2036 | CF26: 2037 | CG26: 2038 | CH26: 2039 | CI26: 2040 | CJ26: 2041 | CK26: 2042
BM27: 16 | BN27: Development Authority of the North Country (DANC) | BO27: 251808 | BP27: 0.5176 | BQ27: 0.4824 | BR27: 0 | BS27: 1 | BT27: -0.01352346627 | BU27: -0.001352346627
BM28: 17 | BN28: Dutchess County | BO28: 295911 | BP28: 0.2019 | BQ28: 0.659 | BR28: 0.1391 | BS28: 1 | BT28: -0.00530105416 | BU28: -0.000530105416
BM29: 18 | BN29: Eastern Rensselaer County Solid Waste Management Authority (ERCSWMA) | BO29: 22131 | BP29: 0.8192 | BQ29: 0.1808 | BR29: 0 | BS29: 1 | BT29: -0.05455399863 | BU29: -0.005455399863
BM30: 19 | BN30: Essex County | BO30: 37387 | BP30: 0.7002 | BQ30: 0.2998 | BR30: 0 | BS30: 1 | BT30: -0.05036830074 | BU30: -0.005036830074
BM31: 20 | BN31: Fishers Island Waste Management District | BO31: 125 | BP31: 1 | BQ31: 0 | BR31: 0 | BS31: 1 | BT31: -0.4703389831 | BU31: -0.04703389831
BM32: 21 | BN32: Fulton County | BO32: 53324 | BP32: 0.4994 | BQ32: 0.5006 | BR32: 0 | BS32: 1 | BT32: -0.03974356666 | BU32: -0.003974356666
BM33: 22 | BN33: GLOW Region Solid Waste Management Committee | BO33: 160753 | BP33: 0.5688 | BQ33: 0.4312 | BR33: 0 | BS33: 1 | BT33: -0.04100771355 | BU33: -0.004100771355
BM34: 23 | BN34: Greene County | BO34: 47931 | BP34: 0.7567 | BQ34: 0.2433 | BR34: 0 | BS34: 1 | BT34: -0.02620832571 | BU34: -0.002620832571
BM35: 24 | BN35: Hamilton County | BO35: 5107 | BP35: 1 | BQ35: 0 | BR35: 0 | BS35: 1 | BT35: 0.05603804797 | BU35: 0.005603804797
BM36: 25 | BN36: Islip Resource Recovery Agency | BO36: 339938 | BP36: 0.0051 | BQ36: 0.7576 | BR36: 0.2373 | BS36: 1 | BT36: 0.01309817222 | BU36: 0.001309817222
BM37: 26 | BN37: Madison County | BO37: 68016 | BP37: 0.5466 | BQ37: 0.4534 | BR37: 0 | BS37: 1 | BT37: -0.07388143024 | BU37: -0.007388143024
BM38: 27 | BN38: Monroe County | BO38: 759443 | BP38: 0.0508 | BQ38: 0.6663 | BR38: 0.2829 | BS38: 1 | BT38: 0.02028497576 | BU38: 0.002028497576
BM39: 28 | BN39: Montgomery County | BO39: 49532 | BP39: 0.3878 | BQ39: 0.6122 | BR39: 0 | BS39: 1 | BT39: -0.01368008124 | BU39: -0.001368008124
BM40: 29 | BN40: New York City | BO40: 8804190 | BP40: 0 | BQ40: 0 | BR40: 1 | BS40: 1 | BT40: 0.07694761663 | BU40: 0.007694761663
BM41: 30 | BN41: Niagara County | BO41: 212666 | BP41: 0.2276 | BQ41: 0.7724 | BR41: 0 | BS41: 1 | BT41: -0.01756833542 | BU41: -0.001756833542
BM42: 31 | BN42: Northeast-Southtowns Solid Waste Management Board (NEST) | BO42: 434912 | BP42: 0.1816 | BQ42: 0.8184 | BR42: 0 | BS42: 1 | BT42: 0.02470630923 | BU42: 0.002470630923
BM43: 32 | BN43: Northwest Communities Solid Waste Management Board (NWCB) | BO43: 238749 | BP43: 0 | BQ43: 0.8685 | BR43: 0.1315 | BS43: 1 | BT43: 0.03159391109 | BU43: 0.003159391109
BM44: 33 | BN44: Oneida-Herkimer Solid Waste Authority (OHSWA) | BO44: 292264 | BP44: 0.3697 | BQ44: 0.6303 | BR44: 0 | BS44: 1 | BT44: -0.02382455402 | BU44: -0.002382455402
BM45: 34 | BN45: Onondaga County (Except Town and Village of Skaneateles) | BO45: 459349 | BP45: 0.1082 | BQ45: 0.5761 | BR45: 0.3157 | BS45: 1 | BT45: -0.00101779621 | BU45: -0.000101779621
BM46: 35 | BN46: Ontario County | BO46: 112458 | BP46: 0.4306 | BQ46: 0.5694 | BR46: 0 | BS46: 1 | BT46: 0.04194346388 | BU46: 0.004194346388
BM47: 36 | BN47: Orange County | BO47: 401310 | BP47: 0.3064 | BQ47: 0.4867 | BR47: 0.2069 | BS47: 1 | BT47: 0.07643778516 | BU47: 0.007643778516
BM48: 37 | BN48: Orleans County | BO48: 40343 | BP48: 0.6556 | BQ48: 0.3444 | BR48: 0 | BS48: 1 | BT48: -0.05923093067 | BU48: -0.005923093067
BM49: 38 | BN49: Oswego County | BO49: 117525 | BP49: 0.6117 | BQ49: 0.3582 | BR49: 0.0301 | BS49: 1 | BT49: -0.03754023045 | BU49: -0.003754023045
BM50: 39 | BN50: Otsego County | BO50: 58524 | BP50: 0.6173 | BQ50: 0.3827 | BR50: 0 | BS50: 1 | BT50: -0.05999132656 | BU50: -0.005999132656
BM51: 40 | BN51: Putnam County | BO51: 97668 | BP51: 0.3232 | BQ51: 0.6528 | BR51: 0.024 | BS51: 1 | BT51: -0.02047939023 | BU51: -0.002047939023
BM52: 41 | BN52: Rockland County Solid Waste Management Authority (RCSWMA) | BO52: 338329 | BP52: 0.0296 | BQ52: 0.6109 | BR52: 0.3595 | BS52: 1 | BT52: 0.08547677638 | BU52: 0.008547677638
BM53: 42 | BN53: Saratoga County | BO53: 235509 | BP53: 0.3159 | BQ53: 0.6514 | BR53: 0.0327 | BS53: 1 | BT53: 0.07241117086 | BU53: 0.007241117086
BM54: 43 | BN54: Schenectady County | BO54: 158061 | BP54: 0.1054 | BQ54: 0.4672 | BR54: 0.4274 | BS54: 1 | BT54: 0.02154762905 | BU54: 0.002154762905
BM55: 44 | BN55: Schoharie County | BO55: 29714 | BP55: 0.7446 | BQ55: 0.2554 | BR55: 0 | BS55: 1 | BT55: -0.09267458548 | BU55: -0.009267458548
BM56: 45 | BN56: Schuyler County | BO56: 17898 | BP56: 0.7648 | BQ56: 0.2352 | BR56: 0 | BS56: 1 | BT56: -0.02425993567 | BU56: -0.002425993567
BM57: 46 | BN57: Seneca County | BO57: 33814 | BP57: 0.6099 | BQ57: 0.3901 | BR57: 0 | BS57: 1 | BT57: -0.040764801 | BU57: -0.0040764801
BM58: 47 | BN58: Steuben County | BO58: 93584 | BP58: 0.5355 | BQ58: 0.4645 | BR58: 0 | BS58: 1 | BT58: -0.05461157693 | BU58: -0.005461157693
BM59: 48 | BN59: Sullivan County | BO59: 78624 | BP59: 0.7278 | BQ59: 0.2722 | BR59: 0 | BS59: 1 | BT59: 0.01388835158 | BU59: 0.001388835158
BM60: 49 | BN60: Tioga County | BO60: 48455 | BP60: 0.7537 | BQ60: 0.2463 | BR60: 0 | BS60: 1 | BT60: -0.05222493888 | BU60: -0.005222493888
BM61: 50 | BN61: Tompkins County | BO61: 105740 | BP61: 0.4276 | BQ61: 0.2768 | BR61: 0.2956 | BS61: 1 | BT61: 0.0411169312 | BU61: 0.00411169312
BM62: 51 | BN62: Town of Babylon | BO62: 218223 | BP62: 0.007 | BQ62: 0.3559 | BR62: 0.6371 | BS62: 1 | BT62: 0.02162890971 | BU62: 0.002162890971
BM63: 52 | BN63: Town of Brookhaven | BO63: 485773 | BP63: 0.0046 | BQ63: 0.9522 | BR63: 0.0432 | BS63: 1 | BT63: -0.0005493375031 | BU63: -5.493375031e-05
BM64: 53 | BN64: Town of Colonie | BO64: 114112 | BP64: 0 | BQ64: 1 | BR64: 0 | BS64: 1 | BT64: 0.05646542546 | BU64: 0.005646542546
BM65: 54 | BN65: Town of East Hampton | BO65: 28385 | BP65: 0.454 | BQ65: 0.546 | BR65: 0 | BS65: 1 | BT65: 0.3229 | BU65: 0.03229
BM66: 55 | BN66: Town of Hempstead | BO66: 793409 | BP66: 0 | BQ66: 0.0878 | BR66: 0.9122 | BS66: 1 | BT66: 0.04429310951 | BU66: 0.004429310951
BM67: 56 | BN67: Town of Huntington | BO67: 204127 | BP67: 0 | BQ67: 0.8375 | BR67: 0.1625 | BS67: 1 | BT67: 0.004245710013 | BU67: 0.0004245710013
BM68: 57 | BN68: Town of North Hempstead Solid Waste Management Authority | BO68: 174179 | BP68: 0 | BQ68: 0.3378 | BR68: 0.6622 | BS68: 1 | BT68: 0.1077763574 | BU68: 0.01077763574
BM69: 58 | BN69: Town of Oyster Bay Solid Waste Disposal District | BO69: 256326 | BP69: 0 | BQ69: 0.4036 | BR69: 0.5964 | BS69: 1 | BT69: 0.01826170207 | BU69: 0.001826170207
BM70: 59 | BN70: Town of Riverhead | BO70: 35902 | BP70: 0.1999 | BQ70: 0.8001 | BR70: 0 | BS70: 1 | BT70: 0.07150958037 | BU70: 0.007150958037
BM71: 60 | BN71: Town of Shelter Island | BO71: 3253 | BP71: 1 | BQ71: 0 | BR71: 0 | BS71: 1 | BT71: 0.3599498328 | BU71: 0.03599498328
BM72: 61 | BN72: Town of Smithtown | BO72: 116296 | BP72: 0 | BQ72: 1 | BR72: 0 | BS72: 1 | BT72: -0.01277578289 | BU72: -0.001277578289
BM73: 62 | BN73: Town of Southampton | BO73: 69036 | BP73: 0.1608 | BQ73: 0.8392 | BR73: 0 | BS73: 1 | BT73: 0.2156365557 | BU73: 0.02156365557
BM74: 63 | BN74: Town of Southold (Except Fishers Island) | BO74: 23607 | BP74: 0.0656 | BQ74: 0.9344 | BR74: 0 | BS74: 1 | BT74: 0.08627829928 | BU74: 0.008627829928
BM75: 64 | BN75: Ulster County Resource Recovery Agency (UCRRA) | BO75: 181851 | BP75: 0.5324 | BQ75: 0.4676 | BR75: 0 | BS75: 1 | BT75: -0.003517943154 | BU75: -0.0003517943154
BM76: 65 | BN76: Warren County | BO76: 65737 | BP76: 0.4905 | BQ76: 0.5095 | BR76: 0 | BS76: 1 | BT76: 0.0004565723591 | BU76: 4.565723591e-05
BM77: 66 | BN77: Washington County | BO77: 61302 | BP77: 0.683 | BQ77: 0.317 | BR77: 0 | BS77: =SUM(BP77:BR77) -> 1 | BT77: -0.03027714503 | BU77: =BT77/10 -> -0.003027714503
BM78: 67 | BN78: Wayne County | BO78: 91283 | BP78: 0.6 | BQ78: 0.4 | BR78: 0 | BS78: =SUM(BP78:BR78) -> 1 | BT78: -0.02654310455 | BU78: =BT78/10 -> -0.002654310455
BM79: 68 | BN79: Westchester County | BO79: 1004457 | BP79: 0.0094 | BQ79: 0.414 | BR79: 0.5766 | BS79: =SUM(BP79:BR79) -> 1 | BT79: 0.05831128643 | BU79: =BT79/10 -> 0.005831128643
BM80: 69 | BN80: Yates County | BO80: 24774 | BP80: 0.6531 | BQ80: 0.3469 | BR80: 0 | BS80: =SUM(BP80:BR80) -> 1 | BT80: -0.0226447846 | BU80: =BT80/10 -> -0.00226447846
BO82: Projected Populations (based on Cornell)
BN83: Planning Unit | BO83: % Change 2010-2020 | BP83: Annual % Change | BQ83: =BO11 -> Population (2020) | BR83: 2018 | BS83: 2019 | BT83: Population (2020) | BU83: 2021 | BV83: 2022 | BW83: 2023 | BX83: 2024 | BY83: 2026 | BZ83: 2027 | CA83: 2028 | CB83: 2029 | CC83: 2030 | CD83: 2031 | CE83: 2032 | CF83: 2033 | CG83: 2034 | CH83: 2035 | CI83: 2036 | CJ83: 2037 | CK83: 2038
BN84: Allegany County | BO84: =BT12 -> -0.05087238998 | BP84: =BO84/10 -> -0.005087238998 | BQ84: =BO12 -> 46456 | BR84: 46332 | BS84: 46091 | BT84: 46456 | BU84: =(BT84+(BT84*BP84)) -> 46219.66723 | BV84: =(BU84+(BU84*$BP84)) -> 45984.53673 | BW84: =(BV84+(BV84*$BP84)) -> 45750.6024 | BX84: 45517.85815 | BY84: =(BX84+(BX84*$BP84)) -> 45286.29793 | BZ84: 45055.91571 | CA84: 44826.7055 | CB84: 44598.66133 | CC84: 44371.77729 | CD84: 44146.04745 | CE84: 43921.46596 | CF84: 43698.02696 | CG84: 43475.72465 | CH84: 43254.55325 | CI84: 43034.507 | CJ84: 42815.58018 | CK84: =(CJ84+(CJ84*$BP84)) -> 42597.76709
BN85: Broome County | BO85: =BT13 -> -0.009556331007 | BP85: =BO85/10 -> -0.0009556331007 | BQ85: =BO13 -> 198683 | BR85: 191925 | BS85: 190488 | BT85: 198683 | BU85: =(BT85+(BT85*BP85)) -> 198493.1319 | BV85: =(BU85+(BU85*$BP85)) -> 198303.4453 | BW85: 198113.94 | BX85: 197924.6158 | BY85: 197735.4725 | BZ85: =(BY85+(BY85*$BP85)) -> 197546.5099 | CA85: 197357.7279 | CB85: 197169.1263 | CC85: 196980.705 | CD85: 196792.4637 | CE85: 196604.4023 | CF85: 196416.5206 | CG85: 196228.8185 | CH85: 196041.2958 | CI85: 195853.9522 | CJ85: 195666.7877 | CK85: 195479.802
BM86: * | BN86: Capital Region Solid Waste Management Partnership (CRSWMP) | BO86: 0.02236323484 | BP86: 0.002236323484 | BQ86: 219438 | BR86: =(BS86-(BS86*$BP86)) -> 218457.6287 | BS86: =(BT86-(BT86*$BP86)) -> 218947.2656 | BT86: 219438 | BU86: 219928.7344 | BV86: 220420.5661 | BW86: 220913.4978 | BX86: 221407.5319 | BY86: 221902.6707 | BZ86: =(BY86+(BY86*$BP86)) -> 222398.9169 | CA86: 222896.2728 | CB86: 223394.741 | CC86: 223894.3239 | CD86: 224395.024 | CE86: 224896.8439 | CF86: 225399.786 | CG86: 225903.8528 | CH86: 226409.0469 | CI86: 226915.3708 | CJ86: 227422.8269 | CK86: 227931.418
BN87: Cattaraugus County | BO87: -0.0407759254 | BP87: -0.00407759254 | BQ87: 77042 | BR87: 76726 | BS87: 76117 | BT87: 77042 | BU87: =(BT87+(BT87*BP87)) -> 76727.85412 | BV87: 76414.98919 | BW87: 76103.4 | BX87: 75793.08134 | BY87: 75484.02804 | BZ87: =(BY87+(BY87*$BP87)) -> 75176.23493 | CA87: 74869.69688 | CB87: 74564.40876 | CC87: 74260.36548 | CD87: 73957.56197 | CE87: 73655.99317 | CF87: 73355.65404 | CG87: 73056.53957 | CH87: 72758.64477 | CI87: 72461.96466 | CJ87: 72166.4943 | CK87: 71872.22874
BN88: Cayuga County | BO88: -0.04720965686 | BP88: -0.004720965686 | BQ88: 76248 | BR88: 77121 | BS88: 76576 | BT88: 76248 | BU88: 75888.03581 | BV88: 75529.771 | BW88: 75173.19754 | BX88: 74818.30745 | BY88: 74465.09279 | BZ88: =(BY88+(BY88*$BP88)) -> 74113.54564 | CA88: 73763.65814 | CB88: 73415.42244 | CC88: 73068.83075 | CD88: 72723.8753 | CE88: 72380.54838 | CF88: 72038.8423 | CG88: 71698.7494 | CH88: 71360.26206 | CI88: 71023.37271 | CJ88: 70688.07381 | CK88: 70354.35784
BN89: Chautauqua County | BO89: -0.05372669656 | BP89: -0.005372669656 | BQ89: 127657 | BR89: 127472 | BS89: 126903 | BT89: 127657 | BU89: 126971.1411 | BV89: 126288.9671 | BW89: 125610.4582 | BX89: 124935.5947 | BY89: 124264.357 | BZ89: =(BY89+(BY89*$BP89)) -> 123596.7257 | CA89: 122932.6813 | CB89: 122272.2046 | CC89: 121615.2765 | CD89: 120961.8778 | CE89: 120311.9896 | CF89: 119665.593 | CG89: 119022.6693 | CH89: 118383.1998 | CI89: 117747.166 | CJ89: 117114.5493 | CK89: 116485.3316
BN90: Chemung County | BO90: -0.05270741866 | BP90: -0.005270741866 | BQ90: 84148 | BR90: 83935 | BS90: 83456 | BT90: 84148 | BU90: 83704.47761 | BV90: 83263.29292 | BW90: 82824.43359 | BX90: 82387.88739 | BY90: 81953.6421 | BZ90: =(BY90+(BY90*$BP90)) -> 81521.68561 | CA90: 81092.00584 | CB90: 80664.59081 | CC90: 80239.42858 | CD90: 79816.50726 | CE90: 79395.81506 | CF90: 78977.34021 | CG90: 78561.07104 | CH90: 78146.99591 | CI90: 77735.10327 | CJ90: 77325.3816 | CK90: 76917.81948
BN91: Chenango County | BO91: -0.06452443687 | BP91: -0.006452443687 | BQ91: 47220 | BR91: 47445 | BS91: 47207 | BT91: 47220 | BU91: 46915.31561 | BV91: 46612.59718 | BW91: 46311.83202 | BX91: 46013.00753 | BY91: 45716.11119 | BZ91: =(BY91+(BY91*$BP91)) -> 45421.13056 | CA91: 45128.05327 | CB91: 44836.86705 | CC91: 44547.55969 | CD91: 44260.11907 | CE91: 43974.53314 | CF91: 43690.78994 | CG91: 43408.87758 | CH91: 43128.78424 | CI91: 42850.49819 | CJ91: 42574.00777 | CK91: 42299.30138
BN92: City of Glen Cove | BO92: 0.05195816644 | BP92: 0.005195816644 | BQ92: 28365 | BR92: 27218 | BS92: 27166 | BT92: 28365 | BU92: 28512.37934 | BV92: 28660.52443 | BW92: 28809.43926 | BX92: 28959.12783 | BY92: 29109.59415 | BZ92: =(BY92+(BY92*$BP92)) -> 29260.84226 | CA92: 29412.87623 | CB92: 29565.70014 | CC92: 29719.3181 | CD92: 29873.73423 | CE92: 30028.95267 | CF92: 30184.97761 | CG92: 30341.81321 | CH92: 30499.46371 | CI92: 30657.93333 | CJ92: 30817.22633 | CK92: 30977.34699
BN93: City of Long Beach | BO93: 0.05271224643 | BP93: 0.005271224643 | BQ93: 35029 | BR93: 33497 | BS93: 33454 | BT93: 35029 | BU93: 35213.64573 | BV93: 35399.26477 | BW93: 35585.86224 | BX93: 35773.44332 | BY93: 35962.01317 | BZ93: =(BY93+(BY93*$BP93)) -> 36151.57702 | CA93: 36342.14011 | CB93: 36533.70769 | CC93: 36726.28507 | CD93: 36919.87757 | CE93: 37114.49054 | CF93: 37310.12935 | CG93: 37506.79943 | CH93: 37704.50619 | CI93: 37903.25512 | CJ93: 38103.05169 | CK93: 38303.90143
BN94: Clinton County | BO94: -0.02782242353 | BP94: -0.002782242353 | BQ94: 79843 | BR94: 80679 | BS94: 80485 | BT94: 79843 | BU94: 79620.85742 | BV94: 79399.3329 | BW94: 79178.42472 | BX94: 78958.13115 | BY94: 78738.45049 | BZ94: =(BY94+(BY94*$BP94)) -> 78519.38104 | CA94: 78300.92109 | CB94: 78083.06895 | CC94: 77865.82293 | CD94: 77649.18134 | CE94: 77433.1425 | CF94: 77217.70473 | CG94: 77002.86636 | CH94: 76788.62573 | CI94: 76574.98116 | CJ94: 76361.931 | CK94: 76149.47361
BN95: Columbia County | BO95: -0.02257843808 | BP95: -0.002257843808 | BQ95: 60016 | BR95: 59785 | BS95: 59461 | BT95: 60016 | BU95: 59880.49325 | BV95: 59745.29245 | BW95: 59610.39691 | BX95: 59475.80594 | BY95: 59341.51886 | BZ95: =(BY95+(BY95*$BP95)) -> 59207.53498 | CA95: 59073.85361 | CB95: 58940.47408 | CC95: 58807.39569 | CD95: 58674.61778 | CE95: 58542.13966 | CF95: 58409.96065 | CG95: 58278.08008 | CH95: 58146.49728 | CI95: 58015.21157 | CJ95: 57884.22229 | CK95: 57753.52875
BN96: Cortland County | BO96: -0.05122020431 | BP96: -0.005122020431 | BQ96: 46809 | BR96: 477.22 | BS96: 47581 | BT96: 46809 | BU96: 46569.24335 | BV96: 46330.71473 | BW96: 46093.40786 | BX96: 45857.31649 | BY96: 45622.43437 | BZ96: =(BY96+(BY96*$BP96)) -> 45388.75533 | CA96: 45156.2732 | CB96: 44924.98185 | CC96: 44694.87517 | CD96: 44465.94711 | CE96: 44238.19162 | CF96: 44011.6027 | CG96: 43786.17437 | CH96: 43561.90069 | CI96: 43338.77574 | CJ96: 43116.79365 | CK96: 42895.94855
BN97: County of Franklin Solid Waste Management Authority (CFSWMA) | BO97: -0.07837361189 | BP97: -0.007837361189 | BQ97: 47555 | BR97: 50279 | BS97: 50022 | BT97: 47555 | BU97: 47182.29429 | BV97: 46812.50961 | BW97: 46445.62306 | BX97: 46081.61194 | BY97: 45720.4537 | BZ97: =(BY97+(BY97*$BP97)) -> 45362.12599 | CA97: 45006.60663 | CB97: 44653.87359 | CC97: 44303.90506 | CD97: 43956.67935 | CE97: 43612.17498 | CF97: 43270.37061 | CG97: 42931.24509 | CH97: 42594.77741 | CI97: 42260.94676 | CJ97: 41929.73245 | CK97: 41601.114
BN98: Delaware County | BO98: -0.07653188829 | BP98: -0.007653188829 | BQ98: 44308 | BR98: 44526 | BS98: 44135 | BT98: 44308 | BU98: 43968.90251 | BV98: 43632.4002 | BW98: 43298.4732 | BX98: 42967.10181 | BY98: 42638.26646 | BZ98: =(BY98+(BY98*$BP98)) -> 42311.94776 | CA98: 41988.12643 | CB98: 41666.78337 | CC98: 41347.89961 | CD98: 41031.45633 | CE98: 40717.43484 | CF98: 40405.81663 | CG98: 40096.58328 | CH98: 39789.71656 | CI98: 39485.19835 | CJ98: 39183.01067 | CK98: 38883.13569
BN99: Development Authority of the North Country (DANC) | BO99: -0.01352346627 | BP99: -0.001352346627 | BQ99: 251808 | BR99: =(BS99-(BS99*$BP99)) -> 252489.5239 | BS99: =(BT99-(BT99*$BP99)) -> 252148.5317 | BT99: 251808 | BU99: 251467.4683 | BV99: 251127.3971 | BW99: 250787.7858 | BX99: 250448.6338 | BY99: 250109.9404 | BZ99: =(BY99+(BY99*$BP99)) -> 249771.7051 | CA99: 249433.9272 | CB99: 249096.6061 | CC99: 248759.7411 | CD99: 248423.3317 | CE99: 248087.3773 | CF99: 247751.8771 | CG99: 247416.8307 | CH99: 247082.2374 | CI99: 246748.0966 | CJ99: 246414.4076 | CK99: 246081.1699
BN100: Dutchess County | BO100: -0.00530105416 | BP100: -0.000530105416 | BQ100: 295911 | BR100: 2939.39 | BS100: 294218 | BT100: 295911 | BU100: 295754.136 | BV100: 295597.3551 | BW100: 295440.6573 | BX100: 295284.0427 | BY100: 295127.511 | BZ100: =(BY100+(BY100*$BP100)) -> 294971.0623 | CA100: 294814.6965 | CB100: 294658.4137 | CC100: 294502.2136 | CD100: 294346.0964 | CE100: 294190.062 | CF100: 294034.1102 | CG100: 293878.2411 | CH100: 293722.4547 | CI100: 293566.7508 | CJ100: 293411.1295 | CK100: 293255.5907
BN101: Eastern Rensselaer County Solid Waste Management Authority (ERCSWMA) | BO101: -0.05455399863 | BP101: -0.005455399863 | BQ101: 22131 | BR101: 22553 | BS101: 23069 | BT101: 22131 | BU101: 22010.26655 | BV101: 21890.19174 | BW101: 21770.77199 | BX101: 21652.00372 | BY101: 21533.88339 | BZ101: =(BY101+(BY101*$BP101)) -> 21416.40744 | CA101: 21299.57238 | CB101: 21183.37469 | CC101: 21067.81091 | CD101: 20952.87758 | CE101: 20838.57125 | CF101: 20724.88852 | CG101: 20611.82596 | CH101: 20499.38021 | CI101: 20387.54789 | CJ101: 20276.32567 | CK101: 20165.7102
BN102: Essex County | BO102: -0.05036830074 | BP102: -0.005036830074 | BQ102: 37387 | BR102: 37288 | BS102: 36885 | BT102: 37387 | BU102: 37198.68803 | BV102: 37011.32456 | BW102: 36824.90481 | BX102: 36639.42402 | BY102: 36454.87747 | BZ102: =(BY102+(BY102*$BP102)) -> 36271.26045 | CA102: 36088.56827 | CB102: 35906.79629 | CC102: 35725.93985 | CD102: 35545.99437 | CE102: 35366.95523 | CF102: 35188.81789 | CG102: 35011.57779 | CH102: 34835.23042 | CI102: 34659.77129 | CJ102: 34485.19591 | CK102: 34311.49984
BN103: Fishers Island Waste Management District | BO103: -0.4703389831 | BP103: -0.04703389831 | BQ103: 125 | BR103: 183 | BS103: 125 | BT103: 125 | BU103: 119.1207627 | BV103: 113.5180489 | BW103: 108.1788525 | BX103: 103.0907794 | BY103: 98.24201813 | BZ103: =(BY103+(BY103*$BP103)) -> 93.62131304 | CA103: 89.21793772 | CB103: 85.02167031 | CC103: 81.02276971 | CD103: 77.211953 | CE103: 73.58037386 | CF103: 70.11960204 | CG103: 66.82160381 | CH103: 63.67872329 | CI103: 60.68366469 | CJ103: 57.82947538 | CK103: 55.10952971
BN104: Fulton County | BO104: -0.03974356666 | BP104: -0.003974356666 | BQ104: 53324 | BR104: 53633 | BS104: 53383 | BT104: 53324 | BU104: 53112.07141 | BV104: 52900.98509 | BW104: 52690.73771 | BX104: 52481.32592 | BY104: 52272.74642 | BZ104: =(BY104+(BY104*$BP104)) -> 52064.99588 | CA104: 51858.07101 | CB104: 51651.96854 | CC104: 51446.6852 | CD104: 51242.21772 | CE104: 51038.56287 | CF104: 50835.71742 | CG104: 50633.67815 | CH104: 50432.44185 | CI104: 50232.00534 | CJ104: 50032.36543 | CK104: 49833.51897
BN105: GLOW Region Solid Waste Management Committee | BO105: -0.04100771355 | BP105: -0.004100771355 | BQ105: 160753 | BR105: 160723 | BS105: 160053 | BT105: 160753 | BU105: 160093.7887 | BV105: 159437.2807 | BW105: 158783.4648 | BX105: 158132.3302 | BY105: 157483.8656 | BZ105: =(BY105+(BY105*$BP105)) -> 156838.0603 | CA105: 156194.9033 | CB105: 155554.3837 | CC105: 154916.4907 | CD105: 154281.2136 | CE105: 153648.5416 | CF105: 153018.4641 | CG105: 152390.9704 | CH105: 151766.0498 | CI105: 151143.692 | CJ105: 150523.8863 | CK105: 149906.6222
BN106: Greene County | BO106: -0.02620832571 | BP106: -0.002620832571 | BQ106: 47931 | BR106: 47381 | BS106: 47188 | BT106: 47931 | BU106: 47805.38087 | BV106: 47680.09097 | BW106: 47555.12944 | BX106: 47430.49541 | BY106: 47306.18802 | BZ106: =(BY106+(BY106*$BP106)) -> 47182.20642 | CA106: 47058.54976 | CB106: 46935.21718 | CC106: 46812.20783 | CD106: 46689.52087 | CE106: 46567.15546 | CF106: 46445.11074 | CG106: 46323.38588 | CH106: 46201.98004 | CI106: 46080.89239 | CJ106: 45960.12208 | CK106: 45839.6683
BN107: Hamilton County | BO107: 0.05603804797 | BP107: 0.005603804797 | BQ107: 5107 | BR107: 4432 | BS107: 4416 | BT107: 5107 | BU107: 5135.618631 | BV107: 5164.397635 | BW107: 5193.337912 | BX107: 5222.440364 | BY107: 5251.7059 | BZ107: =(BY107+(BY107*$BP107)) -> 5281.135435 | CA107: 5310.729887 | CB107: 5340.49018 | CC107: 5370.417245 | CD107: 5400.512015 | CE107: 5430.77543 | CF107: 5461.208435 | CG107: 5491.811981 | CH107: 5522.587024 | CI107: 5553.534523 | CJ107: 5584.655447 | CK107: 5615.950766
BN108: Islip Resource Recovery Agency | BO108: 0.01309817222 | BP108: 0.001309817222 | BQ108: 339938 | BR108: 330619 | BS108: 329610 | BT108: 339938 | BU108: 340383.2566 | BV108: 340829.0965 | BW108: 341275.5203 | BX108: 341722.5289 | BY108: 342170.1229 | BZ108: =(BY108+(BY108*$BP108)) -> 342618.3032 | CA108: 343067.0706 | CB108: 343516.4258 | CC108: 343966.3695 | CD108: 344416.9026 | CE108: 344868.0258 | CF108: 345319.7398 | CG108: 345772.0456 | CH108: 346224.9438 | CI108: 346678.4351 | CJ108: 347132.5205 | CK108: 347587.2007
BN109: Madison County | BO109: -0.07388143024 | BP109: -0.007388143024 | BQ109: 68016 | BR109: 71117 | BS109: 70941 | BT109: 68016 | BU109: 67513.48806 | BV109: 67014.68876 | BW109: 66519.57465 | BX109: 66028.11852 | BY109: 65540.29334 | BZ109: =(BY109+(BY109*$BP109)) -> 65056.07228 | CA109: 64575.42871 | CB109: 64098.33621 | CC109: 63624.76853 | CD109: 63154.69964 | CE109: 62688.10369 | CF109: 62224.95501 | CG109: 61765.22815 | CH109: 61308.89781 | CI109: 60855.9389 | CJ109: 60406.32652 | CK109: 59960.03594
BM110: * | BN110: Monroe County | BO110: 0.02028497576 | BP110: 0.002028497576 | BQ110: 759443 | BR110: 742864 | BS110: 741770 | BT110: 759443 | BU110: 760983.5283 | BV110: 762527.1815 | BW110: 764073.9661 | BX110: 765623.8883 | BY110: 767176.9545 | BZ110: =(BY110+(BY110*$BP110)) -> 768733.1711 | CA110: 770292.5444 | CB110: 771855.081 | CC110: 773420.7871 | CD110: 774989.6693 | CE110: 776561.734 | CF110: 778136.9876 | CG110: 779715.4366 | CH110: 781297.0875 | CI110: 782881.9467 | CJ110: 784470.0208 | CK110: 786061.3164
BN111: Montgomery County | BO111: -0.01368008124 | BP111: -0.001368008124 | BQ111: 49532 | BR111: 493.94 | BS111: 49221 | BT111: 49532 | BU111: 49464.23982 | BV111: 49396.57234 | BW111: 49328.99743 | BX111: 49261.51496 | BY111: 49194.12481 | BZ111: =(BY111+(BY111*$BP111)) -> 49126.82684 | CA111: 49059.62094 | CB111: 48992.50698 | CC111: 48925.48484 | CD111: 48858.55438 | CE111: 48791.71548 | CF111: 48724.96801 | CG111: 48658.31186 | CH111: 48591.7469 | CI111: 48525.27299 | CJ111: 48458.89002 | CK111: 48392.59787
BN112: New York City | BO112: 0.07694761663 | BP112: 0.007694761663 | BQ112: 8804190 | BR112: =(BS112-(BS112*$BP112)) -> 8669219.003 | BS112: =(BT112-(BT112*$BP112)) -> 8736443.856 | BT112: 8804190 | BU112: 8871936.144 | BV112: 8940203.578 | BW112: 9008996.314 | BX112: 9078318.393 | BY112: 9148173.889 | BZ112: =(BY112+(BY112*$BP112)) -> 9218566.907 | CA112: 9289501.582 | CB112: 9360982.083 | CC112: 9433012.609 | CD112: 9505597.393 | CE112: 9578740.699 | CF112: 9652446.826 | CG112: 9726720.104 | CH112: 9801564.897 | CI112: 9876985.602 | CJ112: 9952986.653 | CK112: 10029572.51
BN113: Niagara County | BO113: -0.01756833542 | BP113: -0.001756833542 | BQ113: 212666 | BR113: 210060 | BS113: 209281 | BT113: 212666 | BU113: 212292.3812 | BV113: 211919.4189 | BW113: 211547.1117 | BX113: 211175.4587 | BY113: 210804.4585 | BZ113: =(BY113+(BY113*$BP113)) -> 210434.1102 | CA113: 210064.4125 | CB113: 209695.3643 | CC113: 209326.9644 | CD113: 208959.2118 | CE113: 208592.1052 | CF113: 208225.6436 | CG113: 207859.8258 | CH113: 207494.6507 | CI113: 207130.1172 | CJ113: 206766.224 | CK113: 206402.9702
BN114: Northeast-Southtowns Solid Waste Management Board (NEST) | BO114: 0.02470630923 | BP114: 0.002470630923 | BQ114: 434912 | BR114: 427813 | BS114: 427466 | BT114: 434912 | BU114: 435986.507 | BV114: 437063.6688 | BW114: 438143.4918 | BX114: 439225.9827 | BY114: 440311.148 | BZ114: =(BY114+(BY114*$BP114)) -> 441398.9943 | CA114: 442489.5283 | CB114: 443582.7566 | CC114: 444678.6859 | CD114: 445777.3228 | CE114: 446878.674 | CF114: 447982.7463 | CG114: 449089.5463 | CH114: 450199.0808 | CI114: 451311.3566 | CJ114: 452426.3804 | CK114: 453544.159
BN115: Northwest Communities Solid Waste Management Board (NWCB) | BO115: 0.03159391109 | BP115: 0.003159391109 | BQ115: 238749 | BR115: 234109 | BS115: 233922 | BT115: 238749 | BU115: 239503.3015 | BV115: 240259.9861 | BW115: 241019.0613 | BX115: 241780.5348 | BY115: 242544.4141 | BZ115: =(BY115+(BY115*$BP115)) -> 243310.7067 | CA115: 244079.4204 | CB115: 244850.5628 | CC115: 245624.1415 | CD115: 246400.1642 | CE115: 247178.6387 | CF115: 247959.5727 | CG115: 248742.974 | CH115: 249528.8503 | CI115: 250317.2095 | CJ115: 251108.0595 | CK115: 251901.4081
BM116: * | BN116: Oneida-Herkimer Solid Waste Authority (OHSWA) | BO116: -0.02382455402 | BP116: -0.002382455402 | BQ116: 292264 | BR116: =(BS116-(BS116*BP116)) -> 293658.2708 | BS116: =(BT116-(BT116*BP116)) -> 292960.3059 | BT116: 292264 | BU116: 291567.6941 | BV116: 290873.047 | BW116: 290180.055 | BX116: 289488.7139 | BY116: =(BX116+(BX116*$BP116)) -> 288799.02 | BZ116: =(BY116+(BY116*$BP116)) -> 288110.9692 | CA116: 287424.5577 | CB116: 286739.7815 | CC116: 286056.6367 | CD116: 285375.1195 | CE116: 284695.226 | CF116: 284016.9524 | CG116: 283340.2946 | CH116: 282665.249 | CI116: 281991.8117 | CJ116: 281319.9788 | CK116: 280649.7465
BN117: Onondaga County (Except Town and Village of Skaneateles) | BO117: -0.00101779621 | BP117: -0.000101779621 | BQ117: 459349 | BR117: 461649 | BS117: 460528 | BT117: 459349 | BU117: 459302.2476 | BV117: 459255.5 | BW117: 459208.7572 | BX117: 459162.0191 | BY117: 459115.2857 | BZ117: =(BY117+(BY117*$BP117)) -> 459068.5572 | CA117: 459021.8333 | CB117: 458975.1143 | CC117: 458928.4 | CD117: 458881.6904 | CE117: 458834.9856 | CF117: 458788.2855 | CG117: 458741.5902 | CH117: 458694.8997 | CI117: 458648.2139 | CJ117: 458601.5329 | CK117: 458554.8566
BN118: Ontario County | BO118: 0.04194346388 | BP118: 0.004194346388 | BQ118: 112458 | BR118: 109738 | BS118: 109777 | BT118: 112458 | BU118: 112929.6878 | BV118: 113403.354 | BW118: 113879.007 | BX118: 114356.655 | BY118: 114836.3064 | BZ118: =(BY118+(BY118*$BP118)) -> 115317.9697 | CA118: 115801.6532 | CB118: 116287.3654 | CC118: 116775.1149 | CD118: 117264.9102 | CE118: 117756.7598 | CF118: 118250.6725 | CG118: 118746.6568 | CH118: 119244.7214 | CI118: 119744.875 | CJ118: 120247.1265 | CK118: 120751.4846
BN119: Orange County | BO119: 0.07643778516 | BP119: 0.007643778516 | BQ119: 401310 | BR119: 382126 | BS119: 384940 | BT119: 401310 | BU119: 404377.5248 | BV119: 407468.497 | BW119: 410583.0959 | BX119: 413721.5022 | BY119: 416883.8977 | BZ119: =(BY119+(BY119*$BP119)) -> 420070.4659 | CA119: 423281.3915 | CB119: 426516.8607 | CC119: 429777.0611 | CD119: 433062.1818 | CE119: 436372.4132 | CF119: 439707.9473 | CG119: 443068.9774 | CH119: 446455.6986 | CI119: 449868.307 | CJ119: 453307.0007 | CK119: 456771.979
BN120: Orleans County | BO120: -0.05923093067 | BP120: -0.005923093067 | BQ120: 40343 | BR120: 40655 | BS120: 40352 | BT120: 40343 | BU120: 40104.04466 | BV120: 39866.50467 | BW120: 39630.37165 | BX120: 39395.63727 | BY120: 39162.29324 | BZ120: =(BY120+(BY120*$BP120)) -> 38930.33134 | CA120: 38699.74336 | CB120: 38470.52118 | CC120: 38242.6567 | CD120: 38016.14189 | CE120: 37790.96874 | CF120: 37567.12932 | CG120: 37344.61571 | CH120: 37123.42008 | CI120: 36903.53461 | CJ120: 36684.95154 | CK120: 36467.66315
BN121: Oswego County | BO121: -0.03754023045 | BP121: -0.003754023045 | BQ121: 117525 | BR121: 117515 | BS121: 117124 | BT121: 117525 | BU121: 117083.8084 | BV121: 116644.2731 | BW121: 116206.3878 | BX121: 115770.1464 | BY121: 115335.5426 | BZ121: =(BY121+(BY121*$BP121)) -> 114902.5703 | CA121: 114471.2234 | CB121: 114041.4958 | CC121: 113613.3814 | CD121: 113186.8741 | CE121: 112761.968 | CF121: 112338.657 | CG121: 111916.9351 | CH121: 111496.7963 | CI121: 111078.2348 | CJ121: 110661.2445 | CK121: 110245.8197
BN122: Otsego County | BO122: -0.05999132656 | BP122: -0.005999132656 | BQ122: 58524 | BR122: 59810 | BS122: 59493 | BT122: 58524 | BU122: 58172.90676 | BV122: 57823.91978 | BW122: 57477.02641 | BX122: 57132.2141 | BY122: 56789.47037 | BZ122: =(BY122+(BY122*$BP122)) -> 56448.78281 | CA122: 56110.13907 | CB122: 55773.5269 | CC122: 55438.93412 | CD122: 55106.3486 | CE122: 54775.7583 | CF122: 54447.15126 | CG122: 54120.51558 | CH122: 53795.83943 | CI122: 53473.11105 | CJ122: 53152.31876 | CK122: 52833.45095
BN123: Putnam County | BO123: -0.02047939023 | BP123: -0.002047939023 | BQ123: 97668 | BR123: 98814 | BS123: 98320 | BT123: 97668 | BU123: 97467.98189 | BV123: 97268.37341 | BW123: 97069.17371 | BX123: 96870.38196 | BY123: 96671.99733 | BZ123: =(BY123+(BY123*$BP123)) -> 96474.01897 | CA123: 96276.44606 | CB123: 96079.27777 | CC123: 95882.51327 | CD123: 95686.15173 | CE123: 95490.19232 | CF123: 95294.63423 | CG123: 95099.47663 | CH123: 94904.7187 | CI123: 94710.35963 | CJ123: 94516.39859 | CK123: 94322.83476
BN124: Rockland County Solid Waste Management Authority (RCSWMA) | BO124: 0.08547677638 | BP124: 0.008547677638 | BQ124: 338329 | BR124: 3255.22 | BS124: 325789 | BT124: 338329 | BU124: 341220.9272 | BV124: 344137.5737 | BW124: 347079.1508 | BX124: 350045.8715 | BY124: 353037.9507 | BZ124: =(BY124+(BY124*$BP124)) -> 356055.6053 | CA124: 359099.0539 | CB124: 362168.5168 | CC124: 365264.2165 | CD124: 368386.3773 | CE124: 371535.2253 | CF124: 374710.9887 | CG124: 377913.8974 | CH124: 381144.1836 | CI124: 384402.0812 | CJ124: 387687.8262 | CK124: 391001.6568
BM125: * | BN125: Saratoga County | BO125: 0.07241117086 | BP125: 0.007241117086 | BQ125: 235509 | BR125: =(BS125+(BS125*$BP125/2)) -> 237217.4354 | BS125: =(BT125+(BT125*$BP125/2)) -> 236361.6741 | BT125: 235509 | BU125: 237214.3482 | BV125: 238932.0451 | BW125: 240662.18 | BX125: 242404.8431 | BY125: 244160.1249 | BZ125: =(BY125+(BY125*$BP125)) -> 245928.117 | CA125: 247708.9112 | CB125: 249502.6005 | CC125: 251309.278 | CD125: 253129.0379 | CE125: 254961.9749 | CF125: 256808.1844 | CG125: 258667.7626 | CH125: 260540.8061 | CI125: 262427.4126 | CJ125: 264327.6802 | CK125: 266241.7079
BM126: * | BN126: Schenectady County | BO126: 0.02154762905 | BP126: 0.002154762905 | BQ126: 158061 | BR126: =(BS126+(BS126*$BP126/2)) -> 158401.7674 | BS126: =(BT126+(BT126*$BP126/2)) -> 158231.292 | BT126: 158061 | BU126: 158401.584 | BV126: 158742.9018 | BW126: 159084.9552 | BX126: 159427.7455 | BY126: 159771.2745 | BZ126: =(BY126+(BY126*$BP126)) -> 160115.5437 | CA126: 160460.5548 | CB126: 160806.3092 | CC126: 161152.8087 | CD126: 161500.0548 | CE126: 161848.0491 | CF126: 162196.7933 | CG126: 162546.2889 | CH126: 162896.5376 | CI126: 163247.541 | CJ126: 163599.3008 | CK126: 163951.8185
BN127: Schoharie County | BO127: -0.09267458548 | BP127: -0.009267458548 | BQ127: 29714 | BR127: 31146 | BS127: 30999 | BT127: 29714 | BU127: 29438.62674 | BV127: 29165.80548 | BW127: 28895.51259 | BX127: 28627.72463 | BY127: 28362.41837 | BZ127: =(BY127+(BY127*$BP127)) -> 28099.57084 | CA127: 27839.15923 | CB127: 27581.16098 | CC127: 27325.55371 | CD127: 27072.31527 | CE127: 26821.42371 | CF127: 26572.85728 | CG127: 26326.59443 | CH127: 26082.6138 | CI127: 25840.89426 | CJ127: 25601.41485 | CK127: 25364.1548
BN128: Schuyler County | BO128: -0.02425993567 | BP128: -0.002425993567 | BQ128: 17898 | BR128: 17884 | BS128: 17807 | BT128: 17898 | BU128: 17854.57957 | BV128: 17811.26447 | BW128: 17768.05446 | BX128: 17724.94927 | BY128: 17681.94866 | BZ128: =(BY128+(BY128*$BP128)) -> 17639.05237 | CA128: 17596.26014 | CB128: 17553.57173 | CC128: 17510.98687 | CD128: 17468.50533 | CE128: 17426.12685 | CF128: 17383.85118 | CG128: 17341.67807 | CH128: 17299.60727 | CI128: 17257.63853 | CJ128: 17215.77161 | CK128: 17174.00626
BN129: Seneca County | BO129: -0.040764801 | BP129: -0.0040764801 | BQ129: 33814 | BR129: 34179 | BS129: 34016 | BT129: 33814 | BU129: 33676.1579 | BV129: 33538.87771 | BW129: 33402.15715 | BX129: 33265.99392 | BY129: 33130.38576 | BZ129: =(BY129+(BY129*$BP129)) -> 32995.3304 | CA129: 32860.82559 | CB129: 32726.86909 | CC129: 32593.45866 | CD129: 32460.59207 | CE129: 32328.26711 | CF129: 32196.48158 | CG129: 32065.23326 | CH129: 31934.51998 | CI129: 31804.33954 | CJ129: 31674.68978 | CK129: 31545.56854
BM130: * | BN130: Steuben County | BO130: -0.05461157693 | BP130: -0.005461157693 | BQ130: 93584 | BR130: =(BS130-(BS130*$BP130/2)) -> 94095.77475 | BS130: =(BT130-(BT130*$BP130/2)) -> 93839.53849 | BT130: 93584 | BU130: 93072.92302 | BV130: 92564.63711 | BW130: 92059.12703 | BX130: 91556.37762 | BY130: 91056.3738 | BZ130: =(BY130+(BY130*$BP130)) -> 90559.10059 | CA130: 90064.54306 | CB130: 89572.68639 | CC130: 89083.51582 | CD130: 88597.01669 | CE130: 88113.17441 | CF130: 87631.97447 | CG130: 87153.40244 | CH130: 86677.44397 | CI130: 86204.08478 | CJ130: 85733.31068 | CK130: 85265.10755
BN131: Sullivan County | BO131: 0.01388835158 | BP131: 0.001388835158 | BQ131: 78624 | BR131: 75399 | BS131: 75432 | BT131: 78624 | BU131: 78733.19578 | BV131: 78842.54321 | BW131: 78952.0425 | BX131: 79061.69387 | BY131: 79171.49753 | BZ131: =(BY131+(BY131*$BP131)) -> 79281.45369 | CA131: 79391.56256 | CB131: 79501.82436 | CC131: 79612.23929 | CD131: 79722.80756 | CE131: 79833.5294 | CF131: 79944.40501 | CG131: 80055.43461 | CH131: 80166.61842 | CI131: 80277.95663 | CJ131: 80389.44948 | CK131: 80501.09718
BN132: Tioga County | BO132: -0.05222493888 | BP132: -0.005222493888 | BQ132: 48455 | BR132: 48441 | BS132: 48203 | BT132: 48455 | BU132: 48201.94406 | BV132: 47950.2097 | BW132: 47699.79002 | BX132: 47450.67816 | BY132: 47202.86728 | BZ132: =(BY132+(BY132*$BP132)) -> 46956.3506 | CA132: 46711.12135 | CB132: 46467.1728 | CC132: 46224.49827 | CD132: 45983.09111 | CE132: 45742.9447 | CF132: 45504.05245 | CG132: 45266.40782 | CH132: 45030.00428 | CI132: 44794.83536 | CJ132: 44560.8946 | CK132: 44328.1756
BM133: * | BN133: Tompkins County | BO133: 0.0411169312 | BP133: 0.00411169312 | BQ133: 105740 | BR133: =(BS133-(BS133*$BP133/2)) -> 105305.6765 | BS133: =(BT133-(BT133*$BP133/2)) -> 105522.6148 | BT133: 105740 | BU133: 106174.7704 | BV133: 106611.3285 | BW133: 107049.6816 | BX133: 107489.837 | BY133: 107931.8022 | BZ133: =(BY133+(BY133*$BP133)) -> 108375.5847 | CA133: 108821.1918 | CB133: 109268.6312 | CC133: 109717.9103 | CD133: 110169.0366 | CE133: 110622.0179 | CF133: 111076.8617 | CG133: 111533.5757 | CH133: 111992.1675 | CI133: 112452.6449 | CJ133: 112915.0157 | CK133: 113379.2876
BN134: Town of Babylon | BO134: 0.02162890971 | BP134: 0.002162890971 | BQ134: 218223 | BR134: 210570 | BS134: 210141 | BT134: 218223 | BU134: 218694.9926 | BV134: 219168.006 | BW134: 219642.0425 | BX134: 220117.1043 | BY134: 220593.1936 | BZ134: =(BY134+(BY134*$BP134)) -> 221070.3126 | CA134: 221548.4636 | CB134: 222027.6488 | CC134: 222507.8703 | CD134: 222989.1306 | CE134: 223471.4318 | CF134: 223954.7761 | CG134: 224439.1659 | CH134: 224924.6033 | CI134: 225411.0907 | CJ134: 225898.6303 | CK134: 226387.2245
BN135: Town of Brookhaven | BO135: -0.0005493375031 | BP135: -5.493375031e-05 | BQ135: 485773 | BR135: 482655 | BS135: 480763 | BT135: 485773 | BU135: 485746.3147 | BV135: 485719.6308 | BW135: 485692.9484 | BX135: 485666.2675 | BY135: 485639.588 | BZ135: =(BY135+(BY135*$BP135)) -> 485612.91 | CA135: 485586.2335 | CB135: 485559.5584 | CC135: 485532.8848 | CD135: 485506.2126 | CE135: 485479.542 | CF135: 485452.8727 | CG135: 485426.205 | CH135: 485399.5387 | CI135: 485372.8739 | CJ135: 485346.2105 | CK135: 485319.5487
BM136: * | BN136: Town of Colonie | BO136: 0.05646542546 | BP136: 0.005646542546 | BQ136: 114112 | BR136: =(BS136-(BS136*$BP136/2)) -> 113468.5713 | BS136: =(BT136-(BT136*$BP136/2)) -> 113789.8309 | BT136: 114112 | BU136: 114756.3383 | BV136: 115404.3148 | BW136: 116055.9502 | BX136: 116711.265 | BY136: 117370.2802 | BZ136: =(BY136+(BY136*$BP136)) -> 118033.0164 | CA136: 118699.4949 | CB136: 119369.7366 | CC136: 120043.7629 | CD136: 120721.5952 | CE136: 121403.2548 | CF136: 122088.7634 | CG136: 122778.1428 | CH136: 123471.4148 | CI136: 124168.6014 | CJ136: 124869.7247 | CK136: 125574.8069
BN137: Town of East Hampton | BO137: 0.3229 | BP137: 0.03229 | BQ137: 28385 | BR137: 22020 | BS137: 22047 | BT137: 28385 | BU137: 29301.55165 | BV137: 30247.69875 | BW137: 31224.39695 | BX137: 32232.63272 | BY137: 33273.42443 | BZ137: =(BY137+(BY137*$BP137)) -> 34347.82331 | CA137: 35456.91452 | CB137: 36601.81829 | CC137: 37783.69101 | CD137: 39003.72639 | CE137: 40263.15671 | CF137: 41563.25404 | CG137: 42905.33152 | CH137: 44290.74467 | CI137: 45720.89282 | CJ137: 47197.22045 | CK137: 48721.21869
BN138: Town of Hempstead | BO138: 0.04429310951 | BP138: 0.004429310951 | BQ138: 793409 | BR138: 767547 | BS138: 766980 | BT138: 793409 | BU138: 796923.2552 | BV138: 800453.0761 | BW138: 803998.5316 | BX138: 807559.6911 | BY138: 811136.6241 | BZ138: =(BY138+(BY138*$BP138)) -> 814729.4005 | CA138: 818338.0903 | CB138: 821962.7642 | CC138: 825603.4929 | CD138: 829260.3474 | CE138: 832933.3994 | CF138: 836622.7204 | CG138: 840328.3826 | CH138: 844050.4583 | CI138: 847789.0202 | CJ138: 851544.1414 | CK138: 855315.8952
BN139: Town of Huntington | BO139: 0.004245710013 | BP139: 0.0004245710013 | BQ139: 204127 | BR139: 201185 | BS139: 200503 | BT139: 204127 | BU139: 204213.6664 | BV139: 204300.3696 | BW139: 204387.1096 | BX139: 204473.8865 | BY139: 204560.7001 | BZ139: =(BY139+(BY139*$BP139)) -> 204647.5507 | CA139: 204734.4381 | CB139: 204821.3624 | CC139: 204908.3236 | CD139: 204995.3217 | CE139: 205082.3568 | CF139: 205169.4288 | CG139: 205256.5378 | CH139: 205343.6838 | CI139: 205430.8668 | CJ139: 205518.0868 | CK139: 205605.3438
BN140: Town of North Hempstead Solid Waste Management Authority | BO140: =BT68 -> 0.1077763574 | BP140: 0.01077763574 | BQ140: 174179 | BR140: 167079 | BS140: 167041 | BT140: 174179 | BU140: 176056.2378 | BV140: 177953.7078 | BW140: 179871.6281 | BX140: 181810.2189 | BY140: 183769.7033 | BZ140: =(BY140+(BY140*$BP140)) -> 185750.3062 | CA140: 187752.2553 | CB140: 189775.7807 | CC140: 191821.115 | CD140: 193888.4931 | CE140: 195978.1526 | CF140: 198090.3338 | CG140: 200225.2792 | CH140: 202383.2344 | CI140: 204564.4471 | CJ140: 206769.1682 | CK140: 208997.651
BN141: Town of Oyster Bay Solid Waste Disposal District | BO141: 0.01826170207 | BP141: 0.001826170207 | BQ141: 256326 | BR141: 247184 | BS141: 247203 | BT141: 256326 | BU141: 256794.0949 | BV141: 257263.0446 | BW141: 257732.8507 | BX141: 258203.5148 | BY141: 258675.0384 | BZ141: =(BY141+(BY141*$BP141)) -> 259147.423 | CA141: 259620.6703 | CB141: 260094.7818 | CC141: 260569.7592 | CD141: 261045.6039 | CE141: 261522.3176 | CF141: 261999.9019 | CG141: 262478.3583 | CH141: 262957.6885 | CI141: 263437.894 | CJ141: 263918.9764 | CK141: 264400.9374
BN142: Town of Riverhead | BO142: 0.07150958037 | BP142: 0.007150958037 | BQ142: 35902 | BR142: 33510 | BS142: 33469 | BT142: 35902 | BU142: 36158.7337 | BV142: 36417.30328 | BW142: 36677.72189 | BX142: 36940.00274 | BY142: 37204.15915 | BZ142: =(BY142+(BY142*$BP142)) -> 37470.20453 | CA142: 37738.15239 | CB142: 38008.01634 | CC142: 38279.81007 | CD142: 38553.54738 | CE142: 38829.24218 | CF142: 39106.90846 | CG142: 39386.56032 | CH142: 39668.21196 | CI142: 39951.87768 | CJ142: 40237.57188 | CK142: 40525.30907
BN143: Town of Shelter Island | BO143: 0.3599498328 | BP143: 0.03599498328 | BQ143: 3253 | BR143: 2420 | BS143: 2417 | BT143: 3253 | BU143: 3370.091681 | BV143: 3491.398074 | BW143: 3617.07089 | BX143: 3747.267296 | BY143: 3882.150119 | BZ143: =(BY143+(BY143*$BP143)) -> 4021.888048 | CA143: 4166.655841 | CB143: 4316.634548 | CC143: 4472.011737 | CD143: 4632.981724 | CE143: 4799.745824 | CF143: 4972.512595 | CG143: 5151.498103 | CH143: 5336.926191 | CI143: 5529.02876 | CJ143: 5728.046057 | CK143: 5934.226979
BN144: Town of Smithtown | BO144: -0.01277578289 | BP144: -0.001277578289 | BQ144: 116296 | BR144: 116399 | BS144: 116022 | BT144: 116296 | BU144: 116147.4228 | BV144: 115999.0353 | BW144: 115850.8375 | BX144: 115702.829 | BY144: 115555.0095 | BZ144: =(BY144+(BY144*$BP144)) -> 115407.379 | CA144: 115259.937 | CB144: 115112.6834 | CC144: 114965.618 | CD144: 114818.7404 | CE144: 114672.0504 | CF144: 114525.5479 | CG144: 114379.2326 | CH144: 114233.1041 | CI144: 114087.1624 | CJ144: 113941.4071 | CK144: 113795.8381
BN145: Town of Southampton | BO145: =BT73 -> 0.2156365557 | BP145: 0.02156365557 | BQ145: 69036 | BR145: 58089 | BS145: 58273 | BT145: 69036 | BU145: 70524.66853 | BV145: 72045.43819 | BW145: 73599.0012 | BX145: 75186.06471 | BY145: 76807.35112 | BZ145: =(BY145+(BY145*$BP145)) -> 78463.59838 | CA145: 80155.56039 | CB145: 81884.00729 | CC145: 83649.72582 | CD145: 85453.5197 | CE145: 87296.20996 | CF145: 89178.63537 | CG145: 91101.65275 | CH145: 93066.13741 | CI145: 95072.98354 | CJ145: 97123.10461 | CK145: 99217.43379
BN146: Town of Southold (Except Fishers Island) | BO146: 0.08627829928 | BP146: 0.008627829928 | BQ146: 23607 | BR146: 22130 | BS146: 22170 | BT146: 23607 | BU146: 23810.67718 | BV146: 24016.11165 | BW146: 24223.31858 | BX146: 24432.31325 | BY146: 24643.1111 | BZ146: =(BY146+(BY146*$BP146)) -> 24855.72767 | CA146: 25070.17866 | CB146: 25286.4799 | CC146: 25504.64735 | CD146: 25724.69711 | CE146: 25946.64542 | CF146: 26170.50866 | CG146: 26396.30336 | CH146: 26624.04618 | CI146: 26853.75392 | CJ146: 27085.44354 | CK146: 27319.13214
BN147: Ulster County Resource Recovery Agency (UCRRA) | BO147: -0.003517943154 | BP147: -0.0003517943154 | BQ147: 181851 | BR147: 178418 | BS147: 177573 | BT147: 181851 | BU147: 181787.0259 | BV147: 181723.0742 | BW147: 181659.1451 | BX147: 181595.2384 | BY147: 181531.3542 | BZ147: =(BY147+(BY147*$BP147)) -> 181467.4925 | CA147: 181403.6533 | CB147: 181339.8365 | CC147: 181276.0422 | CD147: 181212.2703 | CE147: 181148.5209 | CF147: 181084.7939 | CG147: 181021.0893 | CH147: 180957.4071 | CI147: 180893.7473 | CJ147: 180830.1099 | CK147: 180766.4949
BN148: Warren County | BO148: 0.0004565723591 | BP148: 4.565723591e-05 | BQ148: =BO76 -> 65737 | BR148: 64215 | BS148: 63944 | BT148: 65737 | BU148: 65740.00137 | BV148: 65743.00288 | BW148: 65746.00452 | BX148: 65749.0063 | BY148: =(BX148+(BX148*$BP148)) -> 65752.00822 | BZ148: =(BY148+(BY148*$BP148)) -> 65755.01027 | CA148: 65758.01247 | CB148: 65761.0148 | CC148: 65764.01726 | CD148: 65767.01986 | CE148: 65770.0226 | CF148: 65773.02548 | CG148: 65776.0285 | CH148: 65779.03165 | CI148: 65782.03494 | CJ148: 65785.03836 | CK148: =(CJ148+(CJ148*$BP148)) -> 65788.04193
BN149: Washington County | BO149: =BT77 -> -0.03027714503 | BP149: =BO149/10 -> -0.003027714503 | BQ149: 61302 | BR149: 61274 | BS149: 61204 | BT149: 61302 | BU149: =(BT149+(BT149*BP149)) -> 61116.39505 | BV149: =(BU149+(BU149*$BP149)) -> 60931.35205 | BW149: 60746.86931 | BX149: 60562.94513 | BY149: 60379.57783 | BZ149: 60196.7657 | CA149: 60014.50708 | CB149: 59832.80029 | CC149: 59651.64365 | CD149: 59471.03551 | CE149: 59290.97419 | CF149: 59111.45805 | CG149: 58932.48543 | CH149: 58754.05469 | CI149: 58576.16418 | CJ149: 58398.81228 | CK149: 58221.99735
BN150: Wayne County | BO150: -0.02654310455 | BP150: =BO150/10 -> -0.002654310455 | BQ150: 91283 | BR150: 90200 | BS150: 89918 | BT150: 91283 | BU150: 91040.70658 | BV150: 90799.05628 | BW150: 90558.0474 | BX150: 90317.67822 | BY150: 90077.94707 | BZ150: 89838.85223 | CA150: 89600.39202 | CB150: 89362.56477 | CC150: 89125.36878 | CD150: 88888.80238 | CE150: 88652.8639 | CF150: 88417.55168 | CG150: 88182.86405 | CH150: 87948.79935 | CI150: 87715.35593 | CJ150: 87482.53214 | CK150: 87250.32634
BN151: Westchester County | BO151: 0.05831128643 | BP151: =BO151/10 -> 0.005831128643 | BQ151: 1004457 | BR151: 968213 | BS151: 967506 | BT151: 1004457 | BU151: 1010314.118 | BV151: 1016205.39 | BW151: 1022131.014 | BX151: 1028091.191 | BY151: 1034086.123 | BZ151: 1040116.013 | CA151: 1046181.063 | CB151: 1052281.479 | CC151: 1058417.468 | CD151: 1064589.236 | CE151: 1070796.993 | CF151: 1077040.948 | CG151: 1083321.312 | CH151: 1089638.298 | CI151: 1095992.119 | CJ151: 1102382.99 | CK151: 1108811.128
BN152: Yates County | BO152: -0.0226447846 | BP152: =BO152/10 -> -0.00226447846 | BQ152: 24774 | BR152: 24951 | BS152: 24913 | BT152: 24774 | BU152: 24717.89981 | BV152: 24661.92666 | BW152: 24606.08026 | BX152: 24550.36032 | BY152: 24494.76656 | BZ152: 24439.29869 | CA152: 24383.95642 | CB152: 24328.73948 | CC152: 24273.64757 | CD152: 24218.68042 | CE152: 24163.83774 | CF152: 24109.11925 | CG152: 24054.52467 | CH152: 24000.05371 | CI152: 23945.70611 | CJ152: 23891.48157 | CK152: 23837.37983
BM154: Notes
BM155: 3/22/22 : | BN155: Pop for Eastern Rensselaer, T of North Hempsted, Oyster Bay - only account for affiliated municipalities.
BN156: We need to go back and revise some of the annual % changes - especially for R1 municilpalities impacted by the pandemic
BM157: 3/30/23 : | BN157: Census Data for 2018-2019 | BO157: https://data.census.gov/cedsci/table?q=United%20States&g=0400000US36,36%240500000&tid=PEPPOP2019.PEPANNRES
BN158: * | BO158: Population from 2018 and 2019 Census estimate does not make sense. Instead I calculated it
BN159: */ | BO159: 2018 is from the Census - 2019 is calculated

Sheet 2.Waste Generation Rate
B2: Step 2. Waste Generation Rate
B5: In order to project how the amount of waste generated in the planning unit will change over time, data regarding the current amount of waste generated by the planning unit is needed. This can be the total tons of waste generated by the planning unit in the current year (Tons/yr), or this can be the estimated daily quantity of waste generated per person in the planning unit (lb/person/day). If both the total annual generation and the estimated generation rate per person are unknown, the state average for MSW generation rate can be used along with the planning unit's population to estimate the total amount of waste generated in the planning unit.
B10: For this step, select one of the options that describes the known information about the planning unit. Enter the waste generated in Tons (MSW disposed & Recycled Materials) or the waste generation rate
B11: in lb/person/day) in the | D11: purple cell. | E11: If no data on the waste generated in the planning unit is available, choose the corresponding option from the list. The calculator will estimate the total amount of waste
B12: generated based on the state's average generation rate and the planning unit's population.
B16: ='1.PU& Period Selection'!E12 -> 0
B19: The amount of waste generated (by all residents, institutions, etc.) in the planning unit will be based on what is known. If the MSW generation amount and the generation rate are unknown, the state average for MSW generation rate will be used.
L22: =IF($V$52=1," Leave this cell blank:",IF($V$52=2," Enter average generation rate here:",IF($V$52=3," Enter tons disposed here:"))) -> Enter tons disposed here:
L25: =IF($V$52=1," Leave this cell blank:",IF($V$52=2," Leave this cell blank:",IF($V$52=3," Enter tons diverted here:"))) -> Enter tons diverted here:
X51: MSW Generated (Tons/yr) | Y51: Generation Rate (lb/person/day)
U52: =CHOOSE(V52,W54,W53,W52) -> The amount of MSW Generated (Tons/yr) in the planning unit is | V52: 3 | W52: The amount of MSW Generated (Tons/yr) in the planning unit is | X52: =N22+N25 -> 0 | Y52: =(N22*(2000/365))/X57 -> 
W53: The planning unit Average MSW Generation Rate (lb/person/day) is | X53: =X57*N22*(365/2000) ->  | Y53: =N22 -> 0
W54: The amount of MSW Generated and the planning unit Average MSW Generation Rate are unknown | X54: =X57*X64*(365/2000) ->  | Y54: =X64 -> 5.15
W56: Period Selection | X56: =+'3.PU&MSW Projections'!B45 -> 
W57: Planning unit Population (Year Selected) | X57: =(VLOOKUP('1.PU& Period Selection'!E12,'1.PU& Period Selection'!BN84:CK152,MATCH(X56,'1.PU& Period Selection'!BN83:CE83,0),FALSE)) -> 
W58: MSW Generated (Tons/yr) | X58: 80000 | Y58: **If total tons of MSW Generated in the planning unit is unknown, use the State Average Generation Rate
W59: Planning unit Average MSW Generation (lb/person/day) | X59: =X58*2000/365/X57 -> 
W61: Planning unit Average MSW Generation (lb/person/day) | X61: 3.5 | Y61: **If planning unit Average Generation is unknown, use total tons of MSW Generated in the Planning Unit
W62: MSW Generated (Tons/yr) | X62: =X57*X61*365/2000 -> 
W64: State Average MSW Generation (lb/person/day) | X64: 5.15 | Y64: **If planning unit Average Generation and total MSW Generation are unknown, use State Average Generation of 4.1 lb/person/day
W65: MSW Generated (Tons/yr) (estimated) | X65: =X57*X64*365/2000 -> 

Sheet 3.PU&MSW Projections
D2: Step 3. Planning Unit Population - Projections &
D3: Municipal Solid Waste (MSW) - Projections
B6: This tab will provide you with population projections and MSW generation projections for the planning period you had previously selected. It is recognized that Municipal Solid Waste (MSW) generation is reliant on population changes, hence, it is necessary to project both and identify their correlation.
B9: In the first | D9: purple cell | E9: enter the total tons of MSW that was disposed in the year immediately before your plan period starts. For example: If the plan period is 2016-2026, the MSW disposed data should
B10: be from 2015.
B12: Population Projection:
B13: Calculations are determined by a linear regression based on the latest census population data and an annual growth rate percentage specific to the planning unit. If it is anticipated that the population is going to decrease overtime, the minus sign (-) will be used.
B16: MSW Generation Projection:
B17: The MSW generation rate (Lb/person/day) calculated on the previous tab from the Waste Generation Rate will serve as a start point for the planning period. On the calculator, three options are considered to anticipate the MSW generation over time, and one must be selected according to the goals of the planning unit:
B20: First Option:
B22: MSW generation rate does not change. Consequently, MSW generation fluctuates with the population of the planning unit. If the population increases, waste generation will rise as well, and vice versa.
B23: By selecting this option, the planning unit is in “status quo”, meaning that is not making any improvements, and consequently is getting far from reaching the State’s goal by 2030.
B25: Second Option:
B27: MSW generation amount remains the same, regardless of whether or not the planning unit's population changes.
B29: Third Option:
B31: As a result of successfully implementing the Local Solid Waste Management Plan, MSW generation will be reduced by an annual factor of …
B33: An Annual Factor of Reduction (%) should be calculated, defined, and selected by the planning unit. This factor will be the numerical representation of one of the planning unit’s goals for the planning period. Once calculated, the Annual Factor of Reduction can be chosen from the drop down list provided.
B36: Note:
B37: • The graphic will display the Population and MSW Generation projections over the selected planning period. It has been designed to visualize the contrast of the final outcomes, based on the selections of each planning unit
B41: =+'1.PU& Period Selection'!E12 -> 0 | P41: =+'1.PU& Period Selection'!E15 -> 0
B43: Current Data
B44: 2020 | C44: Population Census | G44: =(VLOOKUP('1.PU& Period Selection'!E12,'1.PU& Period Selection'!BN12:BR80,2,FALSE)) -> 
B45: =(VLOOKUP('1.PU& Period Selection'!E15,'1.PU& Period Selection'!BW15:CK26,2,FALSE)-1) ->  | C45: Population | G45: =VLOOKUP('1.PU& Period Selection'!E12,'1.PU& Period Selection'!BN83:CK152,MATCH(B45,'1.PU& Period Selection'!BN83:CK83,0),FALSE) -> 
B46: =(VLOOKUP('1.PU& Period Selection'!E15,'1.PU& Period Selection'!BW15:CK26,2,FALSE)-1) ->  | C46: MSW Generated (Tons/yr) | G46: =VLOOKUP('2.Waste Generation Rate'!U52,'2.Waste Generation Rate'!W52:Y54,2,FALSE) -> 0
B47: =(VLOOKUP('1.PU& Period Selection'!E15,'1.PU& Period Selection'!BW15:CK26,2,FALSE)-1) ->  | C47: MSW generation rate (Lb/person/day) | G47: =VLOOKUP('2.Waste Generation Rate'!U52,'2.Waste Generation Rate'!W52:Y54,3,FALSE) -> 
B48: =(VLOOKUP('1.PU& Period Selection'!E15,'1.PU& Period Selection'!BW15:CK26,2,FALSE)-1) ->  | C48: MSW Disposed (Tons/yr)
B49: =(VLOOKUP('1.PU& Period Selection'!E15,'1.PU& Period Selection'!BW15:CK26,2,FALSE)-1) ->  | C49: MSW Diverted (Tons/yr) | G49: =+G46-G48 -> 0
G54: Population Projection
G55: =(VLOOKUP('1.PU& Period Selection'!E15,'1.PU& Period Selection'!$BW$12:$CK$26,2,FALSE)-1) ->  | H55: =VLOOKUP('1.PU& Period Selection'!E15,'1.PU& Period Selection'!$BW$12:$CK$26,2,FALSE) ->  | I55: =VLOOKUP('1.PU& Period Selection'!E15,'1.PU& Period Selection'!$BW$12:$CK$26,3,FALSE) ->  | J55: =VLOOKUP('1.PU& Period Selection'!E15,'1.PU& Period Selection'!$BW$12:$CK$26,4,FALSE) ->  | K55: =VLOOKUP('1.PU& Period Selection'!E15,'1.PU& Period Selection'!$BW$12:$CK$26,5,FALSE) ->  | L55: =VLOOKUP('1.PU& Period Selection'!E15,'1.PU& Period Selection'!$BW$12:$CK$26,6,FALSE) ->  | M55: =VLOOKUP('1.PU& Period Selection'!E15,'1.PU& Period Selection'!$BW$12:$CK$26,7,FALSE) ->  | N55: =VLOOKUP('1.PU& Period Selection'!E15,'1.PU& Period Selection'!$BW$12:$CK$26,8,FALSE) ->  | O55: =VLOOKUP('1.PU& Period Selection'!E15,'1.PU& Period Selection'!$BW$12:$CK$26,9,FALSE) ->  | P55: =VLOOKUP('1.PU& Period Selection'!E15,'1.PU& Period Selection'!$BW$12:$CK$26,10,FALSE) ->  | Q55: =VLOOKUP('1.PU& Period Selection'!E15,'1.PU& Period Selection'!$BW$12:$CK$26,11,FALSE) ->  | R55: =VLOOKUP('1.PU& Period Selection'!E15,'1.PU& Period Selection'!$BW$12:$CK$26,12,FALSE) ->  | S55: =VLOOKUP('1.PU& Period Selection'!E15,'1.PU& Period Selection'!$BW$12:$CK$26,13,FALSE) -> 
B56: Annual rate of population growth (%) | E56: =VLOOKUP('1.PU& Period Selection'!E12,'1.PU& Period Selection'!BN12:BU80,8) ->  | G56: =(G45) ->  | H56: =(G56+(G56*$E$56)) ->  | R56: =(Q56+(Q56*$E$56)) ->  | S56: =(R56+(R56*$E$56)) -> 
G58: Forecasting future conditions... What do you expect to happen to the MSW generation rate over the next 10 year period plan?
N65: Reduction Factor (per year) | Q65: 0.02
G67: MSW Generation Projection
G68: =(VLOOKUP('1.PU& Period Selection'!E15,'1.PU& Period Selection'!BW15:CK26,2,FALSE)-1) ->  | H68: =(VLOOKUP('1.PU& Period Selection'!E15,'1.PU& Period Selection'!BW15:CK26,2,FALSE)) ->  | I68: =(VLOOKUP('1.PU& Period Selection'!E15,'1.PU& Period Selection'!BW15:CK26,3,FALSE)) ->  | J68: =(VLOOKUP('1.PU& Period Selection'!E15,'1.PU& Period Selection'!BW15:CK26,4,FALSE)) ->  | K68: =(VLOOKUP('1.PU& Period Selection'!E15,'1.PU& Period Selection'!BW15:CK26,5,FALSE)) ->  | L68: =(VLOOKUP('1.PU& Period Selection'!E15,'1.PU& Period Selection'!BW15:CK26,6,FALSE)) ->  | M68: =(VLOOKUP('1.PU& Period Selection'!E15,'1.PU& Period Selection'!BW15:CK26,7,FALSE)) ->  | N68: =(VLOOKUP('1.PU& Period Selection'!E15,'1.PU& Period Selection'!BW15:CK26,8,FALSE)) ->  | O68: =(VLOOKUP('1.PU& Period Selection'!E15,'1.PU& Period Selection'!BW15:CK26,9,FALSE)) ->  | P68: =(VLOOKUP('1.PU& Period Selection'!E15,'1.PU& Period Selection'!BW15:CK26,10,FALSE)) ->  | Q68: =(VLOOKUP('1.PU& Period Selection'!E15,'1.PU& Period Selection'!BW15:CK26,11,FALSE)) ->  | R68: =(VLOOKUP('1.PU& Period Selection'!E15,'1.PU& Period Selection'!BW15:CK26,12,FALSE)) ->  | S68: =(VLOOKUP('1.PU& Period Selection'!E15,'1.PU& Period Selection'!BW15:CK26,13,FALSE)) -> 
B69: MSW generation rate (Lb/person/day) | E69: =+($G$46/$G$45)*5.47 ->  | G69: =+VLOOKUP('1.PU& Period Selection'!CS21,'1.PU& Period Selection'!$CP$13:$DR$15,2,FALSE) ->  | H69: =+VLOOKUP('1.PU& Period Selection'!CS21,'1.PU& Period Selection'!$CP$13:$DR$15,3,FALSE) ->  | I69: =+VLOOKUP('1.PU& Period Selection'!CS21,'1.PU& Period Selection'!$CP$13:$DR$15,4,FALSE) ->  | J69: =+VLOOKUP('1.PU& Period Selection'!CS21,'1.PU& Period Selection'!$CP$13:$DR$15,5,FALSE) ->  | K69: =+VLOOKUP('1.PU& Period Selection'!CS21,'1.PU& Period Selection'!$CP$13:$DR$15,6,FALSE) ->  | L69: =+VLOOKUP('1.PU& Period Selection'!CS21,'1.PU& Period Selection'!$CP$13:$DR$15,7,FALSE) ->  | M69: =+VLOOKUP('1.PU& Period Selection'!CS21,'1.PU& Period Selection'!$CP$13:$DR$15,8,FALSE) ->  | N69: =+VLOOKUP('1.PU& Period Selection'!CS21,'1.PU& Period Selection'!$CP$13:$DP$15,9,FALSE) ->  | O69: =+VLOOKUP('1.PU& Period Selection'!CS21,'1.PU& Period Selection'!$CP$13:$DR$15,10,FALSE) ->  | P69: =+VLOOKUP('1.PU& Period Selection'!CS21,'1.PU& Period Selection'!$CP$13:$DR$15,11,FALSE) ->  | Q69: =+VLOOKUP('1.PU& Period Selection'!CS21,'1.PU& Period Selection'!$CP$13:$DR$15,12,FALSE) ->  | R69: =VLOOKUP('1.PU& Period Selection'!CS21,'1.PU& Period Selection'!$CP$13:$DR$15,13,FALSE) ->  | S69: =+VLOOKUP('1.PU& Period Selection'!CS21,'1.PU& Period Selection'!$CP$13:$DR$15,14,FALSE) ->  | T69: (Lb/person/day)
G70: =VLOOKUP('1.PU& Period Selection'!CS21,'1.PU& Period Selection'!CP13:DR15,17,FALSE) ->  | H70: =VLOOKUP('1.PU& Period Selection'!CS21,'1.PU& Period Selection'!$CP$13:$DR$15,18,FALSE) ->  | I70: =VLOOKUP('1.PU& Period Selection'!CS21,'1.PU& Period Selection'!$CP$13:$DR$15,19,FALSE) ->  | J70: =VLOOKUP('1.PU& Period Selection'!CS21,'1.PU& Period Selection'!$CP$13:$DR$15,20,FALSE) ->  | K70: =VLOOKUP('1.PU& Period Selection'!CS21,'1.PU& Period Selection'!$CP$13:$DR$15,21,FALSE) ->  | L70: =VLOOKUP('1.PU& Period Selection'!CS21,'1.PU& Period Selection'!$CP$13:$DR$15,22,FALSE) ->  | M70: =VLOOKUP('1.PU& Period Selection'!CS21,'1.PU& Period Selection'!$CP$13:$DR$15,23,FALSE) ->  | N70: =VLOOKUP('1.PU& Period Selection'!CS21,'1.PU& Period Selection'!$CP$13:$DR$15,24,FALSE) ->  | O70: =VLOOKUP('1.PU& Period Selection'!CS21,'1.PU& Period Selection'!$CP$13:$DR$15,25,FALSE) ->  | P70: =VLOOKUP('1.PU& Period Selection'!CS21,'1.PU& Period Selection'!$CP$13:$DR$15,26,FALSE) ->  | Q70: =VLOOKUP('1.PU& Period Selection'!CS21,'1.PU& Period Selection'!$CP$13:$DR$15,27,FALSE) ->  | R70: =VLOOKUP('1.PU& Period Selection'!CS21,'1.PU& Period Selection'!$CP$13:$DR$15,28,FALSE) ->  | S70: =VLOOKUP('1.PU& Period Selection'!CS21,'1.PU& Period Selection'!$CP$13:$DR$15,29,FALSE) ->  | T70: Tons/yr
AZ75: 0.005
AZ76: 0.01
AZ77: 0.015
AZ78: 0.02

Sheet 4.MSW Comp. Analysis
C2: Step 4. Municipal Solid Waste (MSW) Detailed Composition Analysis
B6: The next step is to Identify the Materials Composition of the Waste Stream based on population density, and demographic characteristics of the Planning Unit.
B7: This tab will provide the PU with a more detailed estimate of the materials present in the waste stream, which could be crucial when prioritizing the initiatives and programs of the LSWMP.
B9: The population density distribution has been calculated based on the 2010 Census data and will be auto populated when a planning unit is selected. The following parameters were used:
B11: · Rural: <325 persons/mi2
B12: · Suburban: >325 and <5,000 persons/mi2
B13: · Urban: >5,000 persons/mi2
B15: Under Density Population Distribution, the user has the option to modify the percentage values for the Sector (Residential and Commercial/Institutional) based on land use and specific characteristics of each planning unit. For example: A rural population in Westchester County could be 64% Residential and 36% Commercial / Institutional, while in Wyoming County might be 50% Residential and 50% Commercial / Institutional.
B19: The results are presented on the last right column under MSW Materials Composition. Be aware of color changes on the cells, whenever a category represents over 15% of the total waste generation, the cell
B20: will turn | C20: red | D20: to easily identify key categories of the waste stream. It will also facilitate the selection of initiatives, programs, and infrastructure for the solid waste management system.
B22: Note: If no data exists, use the pre-populated information in the worksheet.
B26: =+'1.PU& Period Selection'!E12 -> 0 | L26: =+'1.PU& Period Selection'!E15 -> 0
C28: Density Population Distribution | E28: Rural | H28: Suburban | K28: Urban | O28: MSW Materials Composition (%)
E29: =+VLOOKUP($B$26,'1.PU& Period Selection'!BN12:BR80,3,FALSE) ->  | H29: =+VLOOKUP($B$26,'1.PU& Period Selection'!BN12:BR80,4,FALSE) ->  | K29: =+VLOOKUP($B$26,'1.PU& Period Selection'!BN12:BR80,5,FALSE) -> 
E30: Residential | F30: Comm/Inst. | G30: Combined | H30: Residential | I30: Comm/Inst. | J30: Combined | K30: Residential | L30: Comm/Inst. | M30: Combined
E31: 0.58 | F31: 0.42 | G31: =SUM(E31:F31) -> 1 | H31: 0.55 | I31: 0.45 | J31: =SUM(H31:I31) -> 1 | K31: 0.58 | L31: 0.42 | M31: =SUM(K31:L31) -> 1 | O31: =+E29+H29+K29 -> 
B32: Material | C32: Newspaper | E32: 0.052 | F32: 0.019 | G32: =+$E$31*E32+$F$31*F32 -> 0.03814 | H32: 0.05 | I32: 0.019 | J32: =+$H$31*H32+$I$31*I32 -> 0.03605 | K32: 0.066 | L32: 0.02 | M32: =+$K$31*K32+$L$31*L32 -> 0.04668 | O32: =+$E$29*G32+$H$29*J32+$K$29*M32 -> 
C33: Corrugated Cardboard | E33: 0.066 | F33: 0.139 | G33: 0.09666 | H33: 0.066 | I33: 0.139 | J33: 0.09885 | K33: 0.069 | L33: 0.137 | M33: 0.09756
C34: Other Recyclable Paper | D34: Paperboard | E34: 0.032 | F34: 0.011 | G34: 0.02318 | H34: 0.033 | I34: 0.01 | J34: 0.02265 | K34: 0.036 | L34: 0.009 | M34: 0.02466
D35: Office Paper | E35: 0.008 | F35: 0.038 | G35: 0.0206 | H35: 0.009 | I35: 0.042 | J35: 0.02385 | K35: 0.011 | L35: 0.058 | M35: 0.03074
D36: Junk Mail | E36: 0.03 | F36: 0.007 | G36: 0.02034 | H36: 0.032 | I36: 0.007 | J36: 0.02075 | K36: 0.035 | L36: 0.007 | M36: 0.02324
D37: Other Commercial Printing | E37: 0.017 | F37: 0.023 | G37: 0.01952 | H37: 0.017 | I37: 0.024 | J37: 0.02015 | K37: 0.023 | L37: 0.026 | M37: 0.02426
D38: Magazines | E38: 0.011 | F38: 0.009 | G38: 0.01016 | H38: 0.01 | I38: 0.008 | J38: 0.0091 | K38: 0.011 | L38: 0.01 | M38: 0.01058
D39: Books | E39: 0.005 | F39: 0.003 | G39: 0.00416 | H39: 0.005 | I39: 0.003 | J39: 0.0041 | K39: 0.006 | L39: 0.004 | M39: 0.00516
D40: Paper Bags | E40: 0.005 | F40: 0.002 | G40: 0.00374 | H40: 0.005 | I40: 0.002 | J40: 0.00365 | K40: 0.006 | L40: 0.002 | M40: 0.00432
D41: Phone Books | E41: 0.003 | F41: 0.003 | G41: 0.003 | H41: 0.003 | I41: 0.003 | J41: 0.003 | K41: 0.003 | L41: 0.002 | M41: 0.00258
D42: Poly-Coated | E42: 0.002 | F42: 0.003 | G42: 0.00242 | H42: 0.002 | I42: 0.002 | J42: 0.002 | K42: 0.003 | L42: 0.002 | M42: 0.00258
C43: Other Recyclable Paper (Total) | E43: =SUM(E34:E42) -> 0.113 | F43: =SUM(F34:F42) -> 0.099 | G43: 0.10712 | H43: =SUM(H34:H42) -> 0.116 | I43: =SUM(I34:I42) -> 0.101 | J43: 0.10925 | K43: =SUM(K34:K42) -> 0.134 | L43: =SUM(L34:L42) -> 0.12 | M43: 0.12812
C44: Other Compostable Paper | E44: 0.068 | F44: 0.068 | G44: 0.068 | H44: 0.064 | I44: 0.064 | J44: 0.064 | K44: 0.068 | L44: 0.068 | M44: 0.068
C45: Total Paper | E45: =+E32+E33+E43+E44 -> 0.299 | F45: 0.325 | G45: 0.30992 | H45: 0.296 | I45: 0.323 | J45: 0.30815 | K45: 0.337 | L45: 0.345 | M45: 0.34036 | O45: =+O32+O33+O43+O44 -> 
C46: Ferrous/Aluminum Containers | D46: Ferrous Containers | E46: 0.019 | F46: 0.01 | G46: =+$E$31*E46+$F$31*F46 -> 0.01522 | H46: 0.012 | I46: 0.007 | J46: =+$H$31*H46+$I$31*I46 -> 0.00975 | K46: 0.014 | L46: 0.007 | M46: =+$K$31*K46+$L$31*L46 -> 0.01106 | O46: =+$E$29*G46+$H$29*J46+$K$29*M46 -> 
D47: Aluminum Containers | E47: 0.007 | F47: 0.004 | G47: 0.00574 | H47: 0.006 | I47: 0.003 | J47: 0.00465 | K47: 0.005 | L47: 0.004 | M47: 0.00458
C48: Ferrous/Aluminum Containers (Total) | E48: =SUM(E46:E47) -> 0.026 | F48: =SUM(F46:F47) -> 0.014 | G48: 0.02096 | H48: =SUM(H46:H47) -> 0.018 | I48: =SUM(I46:I47) -> 0.01 | J48: 0.0144 | K48: =SUM(K46:K47) -> 0.019 | L48: =SUM(L46:L47) -> 0.011 | M48: 0.01564
C49: Other Ferrous Metals | E49: 0.052 | F49: 0.054 | G49: 0.05284 | H49: 0.05 | I49: 0.058 | J49: 0.0536 | K49: 0.033 | L49: 0.037 | M49: 0.03468
C50: Other Non-Ferrous Metals | D50: Other aluminum | E50: 0.002 | F50: 0.003 | G50: 0.00242 | H50: 0.002 | I50: 0.003 | J50: 0.00245 | K50: 0.002 | L50: 0.003 | M50: 0.00242
D51: Automotive batteries | E51: 0.008 | F51: 0.005 | G51: 0.00674 | H51: 0.007 | I51: 0.004 | J51: 0.00565 | K51: 0.002 | L51: 0.002 | M51: 0.002
D52: Other non-aluminum | E52: 0.005 | F52: 0.003 | G52: 0.00416 | H52: 0.003 | I52: 0.004 | J52: 0.00345 | K52: 0.004 | L52: 0.002 | M52: 0.00316
C53: Other Non-Ferrous Metals (Total) | E53: =SUM(E50:E52) -> 0.015 | F53: =SUM(F50:F52) -> 0.011 | G53: 0.01332 | H53: =SUM(H50:H52) -> 0.012 | I53: =SUM(I50:I52) -> 0.011 | J53: 0.01155 | K53: =SUM(K50:K52) -> 0.008 | L53: =SUM(L50:L52) -> 0.007 | M53: 0.00758
C54: Total Metals | E54: =+E48+E49+E53 -> 0.093 | F54: 0.079 | G54: 0.08712 | H54: 0.08 | I54: 0.079 | J54: 0.07955 | K54: 0.06 | L54: 0.055 | M54: 0.0579 | O54: =+O48+O49+O53 -> 
C55: PET Containers | E55: 0.011 | F55: 0.008 | G55: =+$E$31*E55+$F$31*F55 -> 0.00974 | H55: 0.009 | I55: 0.008 | J55: =+$H$31*H55+$I$31*I55 -> 0.00855 | K55: 0.012 | L55: 0.01 | M55: =+$K$31*K55+$L$31*L55 -> 0.01116 | O55: =+$E$29*G55+$H$29*J55+$K$29*M55 -> 
C56: HDPE Containers | E56: 0.011 | F56: 0.006 | G56: 0.0089 | H56: 0.009 | I56: 0.007 | J56: 0.0081 | K56: 0.01 | L56: 0.007 | M56: 0.00874
C57: Other Plastic (3-7) Containers | E57: 0.002 | F57: 0.001 | G57: 0.00158 | H57: 0.002 | I57: 0.002 | J57: 0.002 | K57: 0.002 | L57: 0.002 | M57: 0.002
C58: Film Plastic | E58: 0.057 | F58: 0.059 | G58: 0.05784 | H58: 0.055 | I58: 0.058 | J58: 0.05635 | K58: 0.058 | L58: 0.058 | M58: 0.058
C59: Other Plastic | D59: Durables | E59: 0.031 | F59: 0.032 | G59: 0.03142 | H59: 0.03 | I59: 0.032 | J59: 0.0309 | K59: 0.032 | L59: 0.033 | M59: 0.03242
D60: Non-Durables | E60: 0.016 | F60: 0.018 | G60: 0.01684 | H60: 0.016 | I60: 0.018 | J60: 0.0169 | K60: 0.018 | L60: 0.019 | M60: 0.01842
D61: Packaging | E61: 0.014 | F61: 0.011 | G61: 0.01274 | H61: 0.014 | I61: 0.011 | J61: 0.01265 | K61: 0.015 | L61: 0.011 | M61: 0.01332
C62: Other Plastic (Total) | E62: =SUM(E59:E61) -> 0.061 | F62: =SUM(F59:F61) -> 0.061 | G62: 0.061 | H62: =SUM(H59:H61) -> 0.06 | I62: =SUM(I59:I61) -> 0.061 | J62: 0.06045 | K62: =SUM(K59:K61) -> 0.065 | L62: =SUM(L59:L61) -> 0.063 | M62: 0.06416
C63: Total Plastics | E63: =+E55+E56+E57+E58+E62 -> 0.142 | F63: 0.135 | G63: 0.13906 | H63: 0.135 | I63: 0.136 | J63: 0.13545 | K63: 0.147 | L63: 0.14 | M63: 0.14406 | O63: =+O55+O56+O57+O58+O62 -> 
C64: Glass Bottles, Jars and Containers | E64: 0.041 | F64: 0.038 | G64: =+$E$31*E64+$F$31*F64 -> 0.03974 | H64: 0.039 | I64: 0.038 | J64: =+$H$31*H64+$I$31*I64 -> 0.03855 | K64: 0.043 | L64: 0.038 | M64: =+$K$31*K64+$L$31*L64 -> 0.0409 | O64: =+$E$29*G64+$H$29*J64+$K$29*M64 -> 
C65: Other Glass (Flat glass, dishware, light bulbs, etc.) | E65: 0.005 | F65: 0.004 | G65: =+$E$31*E65+$F$31*F65 -> 0.00458 | H65: 0.003 | I65: 0.004 | J65: =+$H$31*H65+$I$31*I65 -> 0.00345 | K65: 0.004 | L65: 0.004 | M65: =+$K$31*K65+$L$31*L65 -> 0.004 | O65: =+$E$29*G65+$H$29*J65+$K$29*M65 -> 
C66: Total Glass | E66: =+E64+E65 -> 0.046 | F66: 0.042 | G66: 0.04432 | H66: 0.042 | I66: 0.042 | J66: 0.042 | K66: 0.047 | L66: 0.042 | M66: 0.0449
C67: Food Scraps | E67: 0.127 | F67: 0.133 | G67: =+$E$31*E67+$F$31*F67 -> 0.12952 | H67: 0.129 | I67: 0.155 | J67: =+$H$31*H67+$I$31*I67 -> 0.1407 | K67: 0.172 | L67: 0.252 | M67: =+$K$31*K67+$L$31*L67 -> 0.2056 | O67: =+$E$29*G67+$H$29*J67+$K$29*M67 -> 
C68: Leaves and Grass / Pruning and Trimmings | E68: 0.031 | F68: 0.011 | G68: =+$E$31*E68+$F$31*F68 -> 0.0226 | H68: 0.113 | I68: 0.091 | J68: =+$H$31*H68+$I$31*I68 -> 0.1031 | K68: 0.042 | L68: 0.015 | M68: =+$K$31*K68+$L$31*L68 -> 0.03066 | O68: =+$E$29*G68+$H$29*J68+$K$29*M68 -> 
C69: Total Organics | E69: =+E67+E68 -> 0.158 | F69: =+F67+F68 -> 0.144 | G69: 0.15212 | H69: 0.242 | I69: 0.246 | J69: 0.2438 | K69: 0.214 | L69: 0.267 | M69: 0.23626
C70: Clothing Footwear, Towels, Sheets | E70: 0.046 | F70: 0.03 | G70: =+$E$31*E70+$F$31*F70 -> 0.03928 | H70: 0.044 | I70: 0.032 | J70: =+$H$31*H70+$I$31*I70 -> 0.0386 | K70: 0.048 | L70: 0.025 | M70: =+$K$31*K70+$L$31*L70 -> 0.03834 | O70: =+$E$29*G70+$H$29*J70+$K$29*M70 -> 
C71: Carpet | E71: 0.014 | F71: 0.013 | G71: =+$E$31*E71+$F$31*F71 -> 0.01358 | H71: 0.017 | I71: 0.014 | J71: =+$H$31*H71+$I$31*I71 -> 0.01565 | K71: 0.017 | L71: 0.009 | M71: =+$K$31*K71+$L$31*L71 -> 0.01364 | O71: =+$E$29*G71+$H$29*J71+$K$29*M71 -> 
C72: Total Textiles | E72: =+E70+E71 -> 0.06 | F72: =+F70+F71 -> 0.043 | G72: 0.05286 | H72: 0.061 | I72: 0.046 | J72: 0.05425 | K72: 0.065 | L72: 0.034 | M72: 0.05198
C73: Total Wood (Pallets, crates, adulterated and non-adulterated wood) | E73: 0.041 | F73: 0.09 | G73: =+$E$31*E73+$F$31*F73 -> 0.06158 | H73: 0.029 | I73: 0.041 | J73: =+$H$31*H73+$I$31*I73 -> 0.0344 | K73: 0.02 | L73: 0.035 | M73: =+$K$31*K73+$L$31*L73 -> 0.0263 | O73: =+$E$29*G73+$H$29*J73+$K$29*M73 -> 
C74: DIY - Construction & Renovation Materials | E74: 0.08 | F74: 0.076 | G74: 0.07832 | H74: 0.038 | I74: 0.027 | J74: 0.03305 | K74: 0.044 | L74: 0.038 | M74: 0.04148
C75: Diapers | E75: 0.019 | F75: 0.011 | G75: 0.01564 | H75: 0.021 | I75: 0.012 | J75: 0.01695 | K75: 0.023 | L75: 0.011 | M75: 0.01796
C76: Electronics | E76: 0.013 | F76: 0.014 | G76: 0.01342 | H76: 0.016 | I76: 0.017 | J76: 0.01645 | K76: 0.013 | L76: 0.013 | M76: 0.013
C77: Tires | E77: 0.018 | F77: 0.018 | G77: 0.018 | H77: 0.017 | I77: 0.014 | J77: 0.01565 | K77: 0.005 | L77: 0.004 | M77: 0.00458
C78: HHW | E78: 0.006 | F78: 0 | G78: 0.00348 | H78: 0.006 | I78: 0 | J78: 0.0033 | K78: 0.005 | L78: 0 | M78: 0.0029
C79: Soils and Fines | E79: 0.006 | F79: 0.006 | G79: =+$E$31*E79+$F$31*F79 -> 0.006 | H79: 0.001 | I79: 0.002 | J79: =+$H$31*H79+$I$31*I79 -> 0.00145 | K79: 0.001 | L79: 0.001 | M79: =+$K$31*K79+$L$31*L79 -> 0.001 | O79: =+$E$29*G79+$H$29*J79+$K$29*M79 -> 
C80: Other Composite Materials - Durable and/or Inert | E80: 0.019 | F80: 0.017 | G80: =+$E$31*E80+$F$31*F80 -> 0.01816 | H80: 0.016 | I80: 0.015 | J80: =+$H$31*H80+$I$31*I80 -> 0.01555 | K80: 0.019 | L80: 0.015 | M80: =+$K$31*K80+$L$31*L80 -> 0.01732 | O80: =+$E$29*G80+$H$29*J80+$K$29*M80 -> 
C81: Total Miscellaneous | E81: =SUM(E74:E80) -> 0.161 | F81: 0.142 | G81: 0.15302 | H81: 0.115 | I81: 0.087 | J81: 0.1024 | K81: 0.11 | L81: 0.082 | M81: 0.09824 | O81: =SUM(O74:O80) -> 
C83: Total | E83: =+E45+E54+E63+E66+E69+E72+E73+E81 -> 1 | F83: 1 | G83: 1 | H83: 1 | I83: 1 | J83: 1 | K83: 1 | L83: 1 | M83: 1 | O83: =+O45+O54+O63+O66+O69+O72+O73+O81 -> 

Sheet 5.MSW Detailed Analysis
C2: Step 5. Municipal Solid Waste (MSW) Detailed Composition Analysis
B5: On this tab, the composition of the municipal waste stream will be estimated based on the amount of material generated in the planning unit and the state average of the different waste materials. A pie chart will be generated to clearly show the composition of the waste stream and to identify key categories of the waste stream for the planning unit.
B8: The total tons of MSW diverted per year will be auto populated based on previous data inputs, while the amount tons diverted for each material by category should be populated by the user. | N8: Purple cells | O8: should be used for amounts
B9: of diverted waste by type of material, and a totaled number by category (e.g. paper, metal) should be put in | G9: the green cells. | H9: After inputting the data, a graphic will be generated to show the MSW generation and diversion
B10: streams in Tons.
B12: Make sure that the total amounts at the bottom of the page are consistent with the data you already put into the calculator. If the cell is highlighted in | J12: red, | K12: you should revise the amounts of diverted waste by category.
B15: =+'1.PU& Period Selection'!E12 -> 0 | L15: =+'1.PU& Period Selection'!E15 -> 0
E17: =(VLOOKUP('1.PU& Period Selection'!E15,'1.PU& Period Selection'!BW15:CK26,2,FALSE)-1) -> 
E18: MSW Materials Composition (%) | F18: MSW Generated (Tons) | G18: MSW Diverted (Tons)
C19: Material | E19: =E33+E42+E51+E54+E57+E60+E61+E69 ->  | F19: ='3.PU&MSW Projections'!G46 -> 0 | G19: =+'3.PU&MSW Projections'!G49:H49 -> 0
B20: Paper | C20: Newspaper | E20: =+'4.MSW Comp. Analysis'!O32 ->  | F20: =E20*$F$19 -> 
C21: Corrugated Cardboard | E21: =+'4.MSW Comp. Analysis'!O33 -> 
C22: Other Recyclable Paper | D22: Paperboard | E22: =+'4.MSW Comp. Analysis'!O34 -> 
D23: Office Paper | E23: =+'4.MSW Comp. Analysis'!O35 -> 
D24: Junk Mail | E24: =+'4.MSW Comp. Analysis'!O36 -> 
D25: Other Commercial Printing | E25: =+'4.MSW Comp. Analysis'!O37 -> 
D26: Magazines | E26: =+'4.MSW Comp. Analysis'!O38 -> 
D27: Books | E27: =+'4.MSW Comp. Analysis'!O39 -> 
D28: Paper Bags | E28: =+'4.MSW Comp. Analysis'!O40 -> 
D29: Phone Books | E29: =+'4.MSW Comp. Analysis'!O41 -> 
D30: Poly-Coated | E30: =+'4.MSW Comp. Analysis'!O42 -> 
C31: Other Recyclable Paper (Total) | E31: =+'4.MSW Comp. Analysis'!O43 -> 
C32: Other Compostable Paper | E32: =+'4.MSW Comp. Analysis'!O44 -> 
C33: Total Paper | E33: =+'4.MSW Comp. Analysis'!O45 ->  | G33: =SUM(G20:G32) -> 0
B34: Metal | C34: Ferrous/Aluminum Containers | D34: Ferrous Containers | E34: =+'4.MSW Comp. Analysis'!O46 ->  | G34: =$G$36*(E34/$E$36) -> 
D35: Aluminum Containers | E35: =+'4.MSW Comp. Analysis'!O47 ->  | G35: =$G$36*(E35/$E$36) -> 
C36: Ferrous/Aluminum Containers (Total) | E36: =+'4.MSW Comp. Analysis'!O48 -> 
C37: Other Ferrous Metals | E37: =+'4.MSW Comp. Analysis'!O49 -> 
C38: Other Non-Ferrous Metals | D38: Other aluminum | E38: =+'4.MSW Comp. Analysis'!O50 -> 
D39: Automotive batteries | E39: =+'4.MSW Comp. Analysis'!O51 -> 
D40: Other non-aluminum | E40: =+'4.MSW Comp. Analysis'!O52 -> 
C41: Other Non-Ferrous Metals (Total) | E41: =+'4.MSW Comp. Analysis'!O53 -> 
C42: Total Metals | E42: =+'4.MSW Comp. Analysis'!O54 ->  | G42: =SUM(G36:G41) -> 0
B43: Plastic | C43: PET Containers | E43: =+'4.MSW Comp. Analysis'!O55 -> 
C44: HDPE Containers | E44: =+'4.MSW Comp. Analysis'!O56 -> 
C45: Other Plastic (3-7) Containers | E45: =+'4.MSW Comp. Analysis'!O57 -> 
C46: Film Plastic | E46: =+'4.MSW Comp. Analysis'!O58 -> 
C47: Other Plastic | D47: Durables | E47: =+'4.MSW Comp. Analysis'!O59 -> 
D48: Non-Durables | E48: =+'4.MSW Comp. Analysis'!O60 -> 
D49: Packaging | E49: =+'4.MSW Comp. Analysis'!O61 -> 
C50: Other Plastic (Total) | E50: =+'4.MSW Comp. Analysis'!O62 -> 
C51: Total Plastics | E51: =+'4.MSW Comp. Analysis'!O63 ->  | G51: =SUM(G43:G50) -> 0
B52: Glass | C52: Glass Bottles, Jars and Containers | E52: =+'4.MSW Comp. Analysis'!O64 ->  | F52: =E52*$F$19 -> 
C53: Other Glass (Flat glass, dishware, light bulbs, etc.) | E53: =+'4.MSW Comp. Analysis'!O65 -> 
C54: Total Glass | E54: =+'4.MSW Comp. Analysis'!O66 ->  | G54: =SUM(G52:G53) -> 0
B55: Organics | C55: Food Scraps | E55: =+'4.MSW Comp. Analysis'!O67 -> 
C56: Leaves and Grass / Pruning and Trimmings | E56: =+'4.MSW Comp. Analysis'!O68 -> 
C57: Total Organics | E57: =+'4.MSW Comp. Analysis'!O69 ->  | G57: =SUM(G55:G56) -> 0
B58: Textiles | C58: Clothing Footwear, Towels, Sheets | E58: =+'4.MSW Comp. Analysis'!O70 -> 
C59: Carpet | E59: =+'4.MSW Comp. Analysis'!O71 -> 
C60: Total Textiles | E60: =+'4.MSW Comp. Analysis'!O72 ->  | G60: =SUM(G58:G59) -> 0
B61: Wood | C61: Total Wood (Pallets, crates, adulterated and non-adulterated wood) | E61: =+'4.MSW Comp. Analysis'!O73 -> 
B62: Miscellaneous | C62: DIY Construction & Renovation Materials | E62: =+'4.MSW Comp. Analysis'!O74 -> 
C63: Diapers | E63: =+'4.MSW Comp. Analysis'!O75 -> 
C64: Electronics | E64: =+'4.MSW Comp. Analysis'!O76 -> 
C65: Tires | E65: =+'4.MSW Comp. Analysis'!O77 -> 
C66: HHW | E66: =+'4.MSW Comp. Analysis'!O78 -> 
C67: Soils and Fines | E67: =+'4.MSW Comp. Analysis'!O79 -> 
C68: Other Composite Materials - Durable and/or inert | E68: =+'4.MSW Comp. Analysis'!O80 -> 
C69: Total Miscellaneous | E69: =+'4.MSW Comp. Analysis'!O81 ->  | G69: =SUM(G62:G68) -> 0
C71: Total | E71: =E33+E42+E51+E54+E57+E60+E61+E69 ->  | F71: =F33+F42+F51+F54+F57+F60+F61+F69 ->  | G71: =G33+G42+G51+G54+G57+G60+G61+G69 -> 0
AB78: Glass | AC78: =$E$54 -> 
AB79: Wood | AC79: =$E$61 -> 
AB80: Textiles | AC80: =$E$60 -> 
AB81: Metal | AC81: =$E$42 -> 
AB82: Miscellaneous | AC82: =$E$69 -> 
AB83: Plastics | AC83: =$E$51 -> 
AB84: Organics | AC84: =$E$57 -> 
AB85: Paper | AC85: =$E$33 -> 
AC87: Generated | AD87: Diverted
AB88: Paper | AC88: =+F33 ->  | AD88: =+G33 -> 0
AB89: Metal | AC89: =+F42 ->  | AD89: =+G42 -> 0
AB90: Plastic | AC90: =+F51 ->  | AD90: =+G51 -> 0
AB91: Glass | AC91: =+F54 ->  | AD91: =+G54 -> 0
AB92: Organics | AC92: =+F57 ->  | AD92: =+G57 -> 0
AB93: Textiles | AC93: =+F60 ->  | AD93: =+G60 -> 0
AB94: Wood | AC94: =+F61 ->  | AD94: =+G61:G61 -> 0
AB95: Miscellaneous | AC95: =+F69 ->  | AD95: =+G69 -> 0

Sheet 6.MSW Diversions
C2: Step 6. Municipal Solid Waste (MSW) Diversion Projections
C4: This tab will be used to create goals for the amount of material the planning unit will divert for each year of the planning period. These goals will be entered as percentages, based on how much of the material generated will be diverted for recycling or beneficial use.
C7: The diversion goal percentages will be entered in the | E7: purple cells | F7: for each material and each year of the planning period.
C10: =+'1.PU& Period Selection'!E12 -> 0 | AF10: =+'1.PU& Period Selection'!E15 -> 0
E12: Year | K12: ='3.PU&MSW Projections'!H68 ->  | N12: ='3.PU&MSW Projections'!I68 ->  | Q12: ='3.PU&MSW Projections'!J68 ->  | T12: ='3.PU&MSW Projections'!K68 ->  | W12: ='3.PU&MSW Projections'!L68 ->  | Z12: ='3.PU&MSW Projections'!M68 ->  | AC12: ='3.PU&MSW Projections'!N68 ->  | AF12: ='3.PU&MSW Projections'!O68 ->  | AI12: ='3.PU&MSW Projections'!P68 ->  | AL12: ='3.PU&MSW Projections'!Q68 ->  | AO12: ='3.PU&MSW Projections'!R68 ->  | AR12: ='3.PU&MSW Projections'!S68 -> 
E13: Projected MSW Generation (Tons/yr) | K13: ='3.PU&MSW Projections'!G70 ->  | N13: ='3.PU&MSW Projections'!H70 ->  | Q13: ='3.PU&MSW Projections'!I70 ->  | T13: ='3.PU&MSW Projections'!J70 ->  | W13: ='3.PU&MSW Projections'!K70 ->  | Z13: ='3.PU&MSW Projections'!L70 ->  | AC13: ='3.PU&MSW Projections'!M70 ->  | AF13: ='3.PU&MSW Projections'!N70 ->  | AI13: ='3.PU&MSW Projections'!O70 ->  | AL13: ='3.PU&MSW Projections'!P70 ->  | AO13: ='3.PU&MSW Projections'!U70 -> 0 | AR13: ='3.PU&MSW Projections'!V70 -> 0
E14: MSW Diverted (Tons/yr) | K14: =+J18 ->  | N14: =+M18 ->  | Q14: =+P18 ->  | T14: =+S18 ->  | W14: =+V18 ->  | Z14: =+Y18 ->  | AC14: =+AB18 ->  | AF14: =+AE18 ->  | AI14: =+AH18 ->  | AL14: =+AK18 ->  | AO14: =+AN18 ->  | AR14: =+AQ18 -> 
F16: =(VLOOKUP('1.PU& Period Selection'!E15,'1.PU& Period Selection'!BW15:CK26,2,FALSE)-1) ->  | I16: =+'3.PU&MSW Projections'!H55 ->  | L16: =+'3.PU&MSW Projections'!I55 ->  | O16: =+'3.PU&MSW Projections'!J55 ->  | R16: =+'3.PU&MSW Projections'!K55 ->  | U16: =+'3.PU&MSW Projections'!L55 ->  | X16: =+'3.PU&MSW Projections'!M55 ->  | AA16: =+'3.PU&MSW Projections'!N55 ->  | AD16: =+'3.PU&MSW Projections'!O55 ->  | AG16: =+'3.PU&MSW Projections'!P55 ->  | AJ16: =+'3.PU&MSW Projections'!Q55 ->  | AM16: =+'3.PU&MSW Projections'!R55 ->  | AP16: =+'3.PU&MSW Projections'!S55 -> 
E17: MSW Materials Composition (%) | F17: MSW Generated (Tons) | G17: MSW Diverted (Tons) | H17: % MSW Diverted | I17: MSW generated (Tons) | J17: MSW Diverted | K17: % MSW Diverted | L17: MSW generated (Tons) | M17: MSW Diverted | N17: % MSW Diverted | O17: MSW generated (Tons) | P17: MSW Diverted | Q17: % MSW Diverted | R17: MSW generated (Tons) | S17: MSW Diverted | T17: % MSW Diverted | U17: MSW generated (Tons) | V17: MSW Diverted | W17: % MSW Diverted | X17: MSW generated (Tons) | Y17: MSW Diverted | Z17: % MSW Diverted | AA17: MSW generated (Tons) | AB17: MSW Diverted | AC17: % MSW Diverted | AD17: MSW generated (Tons) | AE17: MSW Diverted | AF17: % MSW Diverted | AG17: MSW generated (Tons) | AH17: MSW Diverted | AI17: % MSW Diverted | AJ17: MSW generated (Tons) | AK17: MSW Diverted | AL17: % MSW Diverted | AM17: MSW generated (Tons) | AN17: MSW Diverted | AO17: % MSW Diverted | AP17: MSW generated (Tons) | AQ17: MSW Diverted | AR17: % MSW Diverted
C18: Material | E18: =E32+E41+E50+E53+E56+E59+E60+E68 ->  | F18: ='3.PU&MSW Projections'!G46 -> 0 | G18: =G32+G41+G50+G53+G56+G59+G60+G68 -> 0 | H18: =G18/F18 ->  | I18: =+'3.PU&MSW Projections'!G70 ->  | J18: =J32+J41+J50+J53+J56+J59+J60+J68 ->  | K18: =J18/I18 ->  | L18: =+'3.PU&MSW Projections'!H70 ->  | M18: =M32+M41+M50+M53+M56+M59+M60+M68 ->  | N18: =M18/L18 ->  | O18: =+'3.PU&MSW Projections'!I70 ->  | P18: =P32+P41+P50+P53+P56+P59+P60+P68 ->  | Q18: =P18/O18 ->  | R18: =+'3.PU&MSW Projections'!J70 ->  | S18: =S32+S41+S50+S53+S56+S59+S60+S68 ->  | T18: =S18/R18 ->  | U18: =+'3.PU&MSW Projections'!K70 ->  | V18: =V32+V41+V50+V53+V56+V59+V60+V68 ->  | W18: =V18/U18 ->  | X18: =+'3.PU&MSW Projections'!L70 ->  | Y18: =Y32+Y41+Y50+Y53+Y56+Y59+Y60+Y68 ->  | Z18: =Y18/X18 ->  | AA18: =+'3.PU&MSW Projections'!M70 ->  | AB18: =AB32+AB41+AB50+AB53+AB56+AB59+AB60+AB68 ->  | AC18: =AB18/AA18 ->  | AD18: =+'3.PU&MSW Projections'!N70 ->  | AE18: =AE32+AE41+AE50+AE53+AE56+AE59+AE60+AE68 ->  | AF18: =AE18/AD18 ->  | AG18: =+'3.PU&MSW Projections'!O70 ->  | AH18: =AH32+AH41+AH50+AH53+AH56+AH59+AH60+AH68 ->  | AI18: =AH18/AG18 ->  | AJ18: =+'3.PU&MSW Projections'!P70 ->  | AK18: =AK32+AK41+AK50+AK53+AK56+AK59+AK60+AK68 ->  | AL18: =AK18/AJ18 ->  | AM18: =+'3.PU&MSW Projections'!Q70 ->  | AN18: =AN32+AN41+AN50+AN53+AN56+AN59+AN60+AN68 ->  | AO18: =AN18/AM18 ->  | AP18: =+'3.PU&MSW Projections'!R70 ->  | AQ18: =AQ32+AQ41+AQ50+AQ53+AQ56+AQ59+AQ60+AQ68 ->  | AR18: =AQ18/AP18 -> 
B19: Paper | C19: Newspaper | E19: =+'4.MSW Comp. Analysis'!O32 ->  | F19: =E19*'5.MSW Detailed Analysis'!$F$19 ->  | G19: ='5.MSW Detailed Analysis'!G20 -> 0 | H19: =G19/F19 ->  | I19: =+$I$18*E19 ->  | J19: =I19*K19 ->  | L19: =$L$18*E19 ->  | M19: =L19*N19 ->  | O19: =+$O$18*E19 ->  | P19: =O19*Q19 ->  | R19: =+$R$18*E19 ->  | S19: =R19*T19 ->  | U19: =+$U$18*E19 ->  | V19: =W19*U19 ->  | X19: =+$X$18*E19 ->  | Y19: =X19*Z19 ->  | AA19: =+$AA$18*E19 ->  | AB19: =AA19*AC19 ->  | AD19: =+$AD$18*E19 ->  | AE19: =AD19*AF19 ->  | AG19: =+$AG$18*E19 ->  | AH19: =AG19*AI19 ->  | AJ19: =+$AJ$18*E19 ->  | AK19: =AJ19*AL19 ->  | AM19: =+$AM$18*E19 ->  | AN19: =AM19*AO19 ->  | AP19: =+$AP$18*E19 ->  | AQ19: =AP19*AR19 -> 
C20: Corrugated Cardboard | E20: =+'4.MSW Comp. Analysis'!O33 ->  | F20: =E20*'5.MSW Detailed Analysis'!$F$19 ->  | G20: ='5.MSW Detailed Analysis'!G21 -> 0 | AM20: =+$AM$18*E20 ->  | AP20: =+$AJ$18*E20 -> 
C21: Other Recyclable Paper | D21: Paperboard | E21: =+'4.MSW Comp. Analysis'!O34 ->  | F21: =E21*'5.MSW Detailed Analysis'!$F$19 ->  | G21: ='5.MSW Detailed Analysis'!G22 -> 0 | AP21: =+$AJ$18*K21 -> 
D22: Office Paper | E22: =+'4.MSW Comp. Analysis'!O35 ->  | F22: =E22*'5.MSW Detailed Analysis'!$F$19 ->  | G22: ='5.MSW Detailed Analysis'!G23 -> 0
D23: Junk Mail | E23: =+'4.MSW Comp. Analysis'!O36 ->  | F23: =E23*'5.MSW Detailed Analysis'!$F$19 ->  | G23: ='5.MSW Detailed Analysis'!G24 -> 0
D24: Other Commercial Printing | E24: =+'4.MSW Comp. Analysis'!O37 ->  | F24: =E24*'5.MSW Detailed Analysis'!$F$19 ->  | G24: ='5.MSW Detailed Analysis'!G25 -> 0
D25: Magazines | E25: =+'4.MSW Comp. Analysis'!O38 ->  | F25: =E25*'5.MSW Detailed Analysis'!$F$19 ->  | G25: ='5.MSW Detailed Analysis'!G26 -> 0
D26: Books | E26: =+'4.MSW Comp. Analysis'!O39 ->  | F26: =E26*'5.MSW Detailed Analysis'!$F$19 ->  | G26: ='5.MSW Detailed Analysis'!G27 -> 0
D27: Paper Bags | E27: =+'4.MSW Comp. Analysis'!O40 ->  | F27: =E27*'5.MSW Detailed Analysis'!$F$19 ->  | G27: ='5.MSW Detailed Analysis'!G28 -> 0
D28: Phone Books | E28: =+'4.MSW Comp. Analysis'!O41 ->  | F28: =E28*'5.MSW Detailed Analysis'!$F$19 ->  | G28: ='5.MSW Detailed Analysis'!G29 -> 0
D29: Poly-Coated | E29: =+'4.MSW Comp. Analysis'!O42 ->  | F29: =E29*'5.MSW Detailed Analysis'!$F$19 ->  | G29: ='5.MSW Detailed Analysis'!G30 -> 0
C30: Other Recyclable Paper (Total) | E30: =+'4.MSW Comp. Analysis'!O43 ->  | F30: =E30*'5.MSW Detailed Analysis'!$F$19 ->  | G30: ='5.MSW Detailed Analysis'!G31 -> 0 | AP30: =+$AJ$18*E30 -> 
C31: Other Compostable Paper | E31: =+'4.MSW Comp. Analysis'!O44 ->  | F31: =E31*'5.MSW Detailed Analysis'!$F$19 ->  | G31: ='5.MSW Detailed Analysis'!G32 -> 0 | AP31: =+$AJ$18*E31 -> 
C32: Total Paper | E32: =+'4.MSW Comp. Analysis'!O45 ->  | F32: =E32*'5.MSW Detailed Analysis'!$F$19 ->  | G32: ='5.MSW Detailed Analysis'!G33 -> 0 | I32: =+I19+I20+I30+I31 ->  | J32: =+J19+J20+J30+J31 ->  | K32: =J32/I32 ->  | L32: =+L19+L20+L30+L31 ->  | M32: =+M19+M20+M30+M31 ->  | N32: =M32/L32 ->  | O32: =+O19+O20+O30+O31 ->  | P32: =+P19+P20+P30+P31 ->  | Q32: =P32/O32 ->  | R32: =+R19+R20+R30+R31 ->  | S32: =+S19+S20+S30+S31 ->  | T32: =S32/R32 ->  | U32: =+U19+U20+U30+U31 ->  | V32: =+V19+V20+V30+V31 ->  | W32: =V32/U32 ->  | X32: =+X19+X20+X30+X31 ->  | Y32: =+Y19+Y20+Y30+Y31 ->  | Z32: =Y32/X32 ->  | AA32: =+AA19+AA20+AA30+AA31 ->  | AB32: =+AB19+AB20+AB30+AB31 ->  | AC32: =AB32/AA32 ->  | AD32: =+AD19+AD20+AD30+AD31 ->  | AE32: =+AE19+AE20+AE30+AE31 ->  | AF32: =AE32/AD32 ->  | AG32: =+AG19+AG20+AG30+AG31 ->  | AH32: =+AH19+AH20+AH30+AH31 ->  | AI32: =AH32/AG32 ->  | AJ32: =+AJ19+AJ20+AJ30+AJ31 ->  | AK32: =+AK19+AK20+AK30+AK31 ->  | AL32: =AK32/AJ32 ->  | AM32: =+AM19+AM20+AM30+AM31 ->  | AN32: =+AN19+AN20+AN30+AN31 ->  | AO32: =AN32/AM32 ->  | AP32: =+AP19+AP20+AP30+AP31 ->  | AQ32: =+AQ19+AQ20+AQ30+AQ31 ->  | AR32: =AQ32/AP32 -> 
B33: Metal | C33: Ferrous/Aluminum Containers | D33: Ferrous Containers | E33: =+'4.MSW Comp. Analysis'!O46 ->  | F33: =E33*'5.MSW Detailed Analysis'!$F$19 ->  | G33: ='5.MSW Detailed Analysis'!G34 ->  | I33: =+$I$18*E33 ->  | J33: =I33*K33 ->  | K33: =$K$35*(E33/$E$35) ->  | L33: =+$L$18*E33 ->  | M33: =L33*N33 ->  | N33: =$N$35*(E33/$E$35) ->  | O33: =+$O$18*E33 ->  | P33: =O33*Q33 ->  | Q33: =$Q$35*(E33/$E$35) ->  | R33: =+$R$18*E33 ->  | S33: =R33*T33 ->  | T33: =$T$35*(E33/$E$35) ->  | U33: =+$U$18*E33 ->  | V33: =U33*W33 ->  | W33: =$W$35*(E33/$E$35) ->  | X33: =+$X$18*E33 ->  | Y33: =X33*Z33 ->  | Z33: =$Z$35*(E33/$E$35) ->  | AA33: =+$AA$18*E33 ->  | AB33: =AA33*AC33 ->  | AC33: =$AC$35*(E33/$E$35) ->  | AD33: =+$AD$18*E33 ->  | AE33: =AF33*AD33 ->  | AF33: =$AF$35*(E33/$E$35) ->  | AG33: =+$AG$18*E33 ->  | AH33: =AG33*AI33 ->  | AI33: =$AI$35*(E33/$E$35) ->  | AJ33: =+$AJ$18*E33 ->  | AK33: =AJ33*AL33 ->  | AL33: =$AL$35*(E33/$E$35) ->  | AM33: =+$AG$18*K33 ->  | AN33: =AM33*AO33 ->  | AO33: =$AO$35*(E33/$E$35) ->  | AP33: =+$AJ$18*K33 ->  | AQ33: =AP33*AR33 ->  | AR33: =$AR$35*(E33/$E$35) -> 
D34: Aluminum Containers | E34: =+'4.MSW Comp. Analysis'!O47 ->  | F34: =E34*'5.MSW Detailed Analysis'!$F$19 ->  | G34: ='5.MSW Detailed Analysis'!G35 ->  | K34: =$K$35*(E34/$E$35) ->  | N34: =$N$35*(E34/$E$35) ->  | Q34: =$Q$35*(E34/$E$35) ->  | T34: =$T$35*(E34/$E$35) ->  | W34: =$W$35*(E34/$E$35) ->  | Z34: =$Z$35*(E34/$E$35) ->  | AC34: =$AC$35*(E34/$E$35) ->  | AF34: =$AF$35*(E34/$E$35) ->  | AI34: =$AI$35*(E34/$E$35) ->  | AL34: =$AL$35*(E34/$E$35) ->  | AO34: =$AO$35*(E34/$E$35) ->  | AR34: =$AR$35*(E34/$E$35) -> 
C35: Ferrous/Aluminum Containers (Total) | E35: =+'4.MSW Comp. Analysis'!O48 ->  | F35: =E35*'5.MSW Detailed Analysis'!$F$19 ->  | G35: ='5.MSW Detailed Analysis'!G36 -> 0 | AM35: =+$AM$18*E35 ->  | AP35: =+$AJ$18*E35 -> 
C36: Other Ferrous Metals | E36: =+'4.MSW Comp. Analysis'!O49 ->  | F36: =E36*'5.MSW Detailed Analysis'!$F$19 ->  | G36: ='5.MSW Detailed Analysis'!G37 -> 0 | AM36: =+$AM$18*E36 ->  | AP36: =+$AJ$18*E36 -> 
C37: Other Non-Ferrous Metals | D37: Other aluminum | E37: =+'4.MSW Comp. Analysis'!O50 ->  | F37: =E37*'5.MSW Detailed Analysis'!$F$19 ->  | G37: ='5.MSW Detailed Analysis'!G38 -> 0
D38: Automotive batteries | E38: =+'4.MSW Comp. Analysis'!O51 ->  | F38: =E38*'5.MSW Detailed Analysis'!$F$19 ->  | G38: ='5.MSW Detailed Analysis'!G39 -> 0
D39: Other non-aluminum | E39: =+'4.MSW Comp. Analysis'!O52 ->  | F39: =E39*'5.MSW Detailed Analysis'!$F$19 ->  | G39: ='5.MSW Detailed Analysis'!G40 -> 0
C40: Other Non-Ferrous Metals (Total) | E40: =+'4.MSW Comp. Analysis'!O53 ->  | F40: =E40*'5.MSW Detailed Analysis'!$F$19 ->  | G40: ='5.MSW Detailed Analysis'!G41 -> 0 | AP40: =+$AJ$18*E40 -> 
C41: Total Metals | E41: =+'4.MSW Comp. Analysis'!O54 ->  | F41: =E41*'5.MSW Detailed Analysis'!$F$19 ->  | G41: ='5.MSW Detailed Analysis'!G42 -> 0 | I41: =+I35+I36+I40 ->  | J41: =+J35+J36+J40 ->  | K41: =J41/I41 ->  | L41: =+L35+L36+L40 ->  | M41: =+M35+M36+M40 ->  | N41: =M41/L41 ->  | O41: =+O35+O36+O40 ->  | P41: =+P35+P36+P40 ->  | Q41: =P41/O41 ->  | R41: =+R35+R36+R40 ->  | S41: =+S35+S36+S40 ->  | T41: =S41/R41 ->  | U41: =+U35+U36+U40 ->  | V41: =+V35+V36+V40 ->  | W41: =V41/U41 ->  | X41: =+X35+X36+X40 ->  | Y41: =+Y35+Y36+Y40 ->  | Z41: =Y41/X41 ->  | AA41: =+AA35+AA36+AA40 ->  | AB41: =+AB35+AB36+AB40 ->  | AC41: =AB41/AA41 ->  | AD41: =+AD35+AD36+AD40 ->  | AE41: =+AE35+AE36+AE40 ->  | AF41: =AE41/AD41 ->  | AG41: =+AG35+AG36+AG40 ->  | AH41: =+AH35+AH36+AH40 ->  | AI41: =AH41/AG41 ->  | AJ41: =+AJ35+AJ36+AJ40 ->  | AK41: =+AK35+AK36+AK40 ->  | AL41: =AK41/AJ41 ->  | AM41: =+AM35+AM36+AM40 ->  | AN41: =+AN35+AN36+AN40 ->  | AO41: =AN41/AM41 ->  | AP41: =+AP35+AP36+AP40 ->  | AQ41: =+AQ35+AQ36+AQ40 ->  | AR41: =AQ41/AP41 -> 
B42: Plastic | C42: PET Containers | E42: =+'4.MSW Comp. Analysis'!O55 ->  | F42: =E42*'5.MSW Detailed Analysis'!$F$19 ->  | G42: ='5.MSW Detailed Analysis'!G43 -> 0 | I42: =+$I$18*E42 ->  | J42: =I42*K42 ->  | L42: =+$L$18*E42 ->  | M42: =L42*N42 ->  | O42: =+$O$18*E42 ->  | P42: =O42*Q42 ->  | R42: =+$R$18*E42 ->  | S42: =R42*T42 ->  | U42: =+$U$18*E42 ->  | V42: =U42*W42 ->  | X42: =+$X$18*E42 ->  | Y42: =X42*Z42 ->  | AA42: =+$AA$18*E42 ->  | AB42: =AA42*AC42 ->  | AD42: =+$AD$18*E42 ->  | AE42: =AD42*AF42 ->  | AG42: =+$AG$18*E42 ->  | AH42: =AG42*AI42 ->  | AJ42: =+$AJ$18*E42 ->  | AK42: =AJ42*AL42 ->  | AM42: =+$AM$18*E42 ->  | AN42: =AM42*AO42 ->  | AP42: =+$AJ$18*E42 ->  | AQ42: =AP42*AR42 -> 
C43: HDPE Containers | E43: =+'4.MSW Comp. Analysis'!O56 ->  | F43: =E43*'5.MSW Detailed Analysis'!$F$19 ->  | G43: ='5.MSW Detailed Analysis'!G44 -> 0 | AM43: =+$AM$18*E43 ->  | AP43: =+$AJ$18*E43 -> 
C44: Other Plastic (3-7) Containers | E44: =+'4.MSW Comp. Analysis'!O57 ->  | F44: =E44*'5.MSW Detailed Analysis'!$F$19 ->  | G44: ='5.MSW Detailed Analysis'!G45 -> 0 | AP44: =+$AJ$18*E44 -> 
C45: Film Plastic | E45: =+'4.MSW Comp. Analysis'!O58 ->  | F45: =E45*'5.MSW Detailed Analysis'!$F$19 ->  | G45: ='5.MSW Detailed Analysis'!G46 -> 0 | AP45: =+$AJ$18*E45 -> 
C46: Other Plastic | D46: Durables | E46: =+'4.MSW Comp. Analysis'!O59 ->  | F46: =E46*'5.MSW Detailed Analysis'!$F$19 ->  | G46: ='5.MSW Detailed Analysis'!G47 -> 0 | AP46: =+$AJ$18*K46 -> 
D47: Non-Durables | E47: =+'4.MSW Comp. Analysis'!O60 ->  | F47: =E47*'5.MSW Detailed Analysis'!$F$19 ->  | G47: ='5.MSW Detailed Analysis'!G48 -> 0
D48: Packaging | E48: =+'4.MSW Comp. Analysis'!O61 ->  | F48: =E48*'5.MSW Detailed Analysis'!$F$19 ->  | G48: ='5.MSW Detailed Analysis'!G49 -> 0
C49: Other Plastic (Total) | E49: =+'4.MSW Comp. Analysis'!O62 ->  | F49: =E49*'5.MSW Detailed Analysis'!$F$19 ->  | G49: ='5.MSW Detailed Analysis'!G50 -> 0 | AP49: =+$AJ$18*E49 -> 
C50: Total Plastics | E50: =+'4.MSW Comp. Analysis'!O63 ->  | F50: =E50*'5.MSW Detailed Analysis'!$F$19 ->  | G50: ='5.MSW Detailed Analysis'!G51 -> 0 | H50: =G50/F50 ->  | I50: =+I42+I43+I44+I45+I49 ->  | J50: =+J42+J43+J44+J45+J49 ->  | K50: =J50/I50 ->  | L50: =+L42+L43+L44+L45+L49 ->  | M50: =+M42+M43+M44+M45+M49 ->  | N50: =M50/L50 ->  | O50: =+O42+O43+O44+O45+O49 ->  | P50: =+P42+P43+P44+P45+P49 ->  | Q50: =P50/O50 ->  | R50: =+R42+R43+R44+R45+R49 ->  | S50: =+S42+S43+S44+S45+S49 ->  | T50: =S50/R50 ->  | U50: =+U42+U43+U44+U45+U49 ->  | V50: =+V42+V43+V44+V45+V49 ->  | W50: =V50/U50 ->  | X50: =+X42+X43+X44+X45+X49 ->  | Y50: =+Y42+Y43+Y44+Y45+Y49 ->  | Z50: =Y50/X50 ->  | AA50: =+AA42+AA43+AA44+AA45+AA49 ->  | AB50: =+AB42+AB43+AB44+AB45+AB49 ->  | AC50: =AB50/AA50 ->  | AD50: =+AD42+AD43+AD44+AD45+AD49 ->  | AE50: =+AE42+AE43+AE44+AE45+AE49 ->  | AF50: =AE50/AD50 ->  | AG50: =+AG42+AG43+AG44+AG45+AG49 ->  | AH50: =+AH42+AH43+AH44+AH45+AH49 ->  | AI50: =AH50/AG50 ->  | AJ50: =+AJ42+AJ43+AJ44+AJ45+AJ49 ->  | AK50: =+AK42+AK43+AK44+AK45+AK49 ->  | AL50: =AK50/AJ50 ->  | AM50: =+AM42+AM43+AM44+AM45+AM49 ->  | AN50: =+AN42+AN43+AN44+AN45+AN49 ->  | AO50: =AN50/AM50 ->  | AP50: =+AP42+AP43+AP44+AP45+AP49 ->  | AQ50: =+AQ42+AQ43+AQ44+AQ45+AQ49 ->  | AR50: =AQ50/AP50 -> 
B51: Glass | C51: Glass Bottles, Jars and Containers | E51: =+'4.MSW Comp. Analysis'!O64 ->  | F51: =E51*'5.MSW Detailed Analysis'!$F$19 ->  | G51: ='5.MSW Detailed Analysis'!G52 -> 0 | I51: =+$I$18*E51 ->  | J51: =I51*K51 ->  | L51: =+$L$18*E51 ->  | M51: =L51*N51 ->  | O51: =+$O$18*E51 ->  | P51: =O51*Q51 ->  | R51: =+$R$18*E51 ->  | S51: =R51*T51 ->  | U51: =+$U$18*E51 ->  | V51: =U51*W51 ->  | X51: =+$X$18*E51 ->  | Y51: =X51*Z51 ->  | AA51: =+$AA$18*E51 ->  | AB51: =AA51*AC51 ->  | AD51: =+$AD$18*E51 ->  | AE51: =AD51*AF51 ->  | AG51: =$AG$18*E51 ->  | AH51: =AG51*AI51 ->  | AJ51: =+$AJ$18*E51 ->  | AK51: =AJ51*AL51 ->  | AM51: =$AM$18*E51 ->  | AN51: =AM51*AO51 ->  | AP51: =+$AJ$18*E51 ->  | AQ51: =AP51*AR51 -> 
C52: Other Glass (Flat glass, dishware, light bulbs, etc.) | E52: =+'4.MSW Comp. Analysis'!O65 ->  | F52: =E52*'5.MSW Detailed Analysis'!$F$19 ->  | G52: ='5.MSW Detailed Analysis'!G53 -> 0 | I52: =+$I$18*E52 ->  | J52: =I52*K52 ->  | L52: =+$L$18*E52 ->  | M52: =L52*N52 ->  | O52: =+$O$18*E52 ->  | P52: =O52*Q52 ->  | R52: =+$R$18*E52 ->  | S52: =R52*T52 ->  | U52: =+$U$18*E52 ->  | V52: =U52*W52 ->  | X52: =+$X$18*E52 ->  | Y52: =X52*Z52 ->  | AA52: =+$AA$18*E52 ->  | AB52: =AA52*AC52 ->  | AD52: =+$AD$18*E52 ->  | AE52: =AD52*AF52 ->  | AG52: =$AG$18*E52 ->  | AH52: =AG52*AI52 ->  | AJ52: =+$AJ$18*E52 ->  | AK52: =AJ52*AL52 ->  | AM52: =$AM$18*E52 ->  | AN52: =AM52*AO52 ->  | AP52: =+$AJ$18*E52 ->  | AQ52: =AP52*AR52 -> 
C53: Total Glass | E53: =+'4.MSW Comp. Analysis'!O66 ->  | F53: =E53*'5.MSW Detailed Analysis'!$F$19 ->  | G53: ='5.MSW Detailed Analysis'!G54 -> 0 | I53: =+I51+I52 ->  | J53: =+J51+J52 ->  | K53: =J53/I53 ->  | L53: =+L51+L52 ->  | M53: =+M51+M52 ->  | N53: =M53/L53 ->  | O53: =+O51+O52 ->  | P53: =+P51+P52 ->  | Q53: =P53/O53 ->  | R53: =+R51+R52 ->  | S53: =+S51+S52 ->  | T53: =S53/R53 ->  | U53: =+U51+U52 ->  | V53: =+V51+V52 ->  | W53: =V53/U53 ->  | X53: =+X51+X52 ->  | Y53: =+Y51+Y52 ->  | Z53: =Y53/X53 ->  | AA53: =+AA51+AA52 ->  | AB53: =+AB51+AB52 ->  | AC53: =AB53/AA53 ->  | AD53: =+AD51+AD52 ->  | AE53: =+AE51+AE52 ->  | AF53: =AE53/AD53 ->  | AG53: =+AG51+AG52 ->  | AH53: =+AH51+AH52 ->  | AI53: =AH53/AG53 ->  | AJ53: =+AJ51+AJ52 ->  | AK53: =+AK51+AK52 ->  | AL53: =AK53/AJ53 ->  | AM53: =+AM51+AM52 ->  | AN53: =+AN51+AN52 ->  | AO53: =AN53/AM53 ->  | AP53: =+AP51+AP52 ->  | AQ53: =+AQ51+AQ52 ->  | AR53: =AQ53/AP53 -> 
B54: Organics | C54: Food Scraps | E54: =+'4.MSW Comp. Analysis'!O67 ->  | F54: =E54*'5.MSW Detailed Analysis'!$F$19 ->  | G54: ='5.MSW Detailed Analysis'!G55 -> 0 | I54: =+$I$18*E54 ->  | J54: =I54*K54 ->  | L54: =+$L$18*E54 ->  | M54: =L54*N54 ->  | O54: =+$O$18*E54 ->  | P54: =O54*Q54 ->  | R54: =+$R$18*E54 ->  | S54: =R54*T54 ->  | U54: =+$U$18*E54 ->  | V54: =U54*W54 ->  | X54: =+$X$18*E54 ->  | Y54: =X54*Z54 ->  | AA54: =+$AA$18*E54 ->  | AB54: =AA54*AC54 ->  | AD54: =+$AD$18*E54 ->  | AE54: =AD54*AF54 ->  | AG54: =+$AG$18*E54 ->  | AH54: =AG54*AI54 ->  | AJ54: =+$AJ$18*E54 ->  | AK54: =AJ54*AL54 ->  | AM54: =+$AM$18*E54 ->  | AN54: =AM54*AO54 ->  | AP54: =+$AJ$18*E54 ->  | AQ54: =AP54*AR54 -> 
C55: Leaves and Grass / Pruning and Trimmings | E55: =+'4.MSW Comp. Analysis'!O68 ->  | F55: =E55*'5.MSW Detailed Analysis'!$F$19 ->  | G55: ='5.MSW Detailed Analysis'!G56 -> 0 | I55: =+$I$18*E55 ->  | J55: =I55*K55 ->  | L55: =+$L$18*E55 ->  | M55: =L55*N55 ->  | O55: =+$O$18*E55 ->  | P55: =O55*Q55 ->  | R55: =+$R$18*E55 ->  | S55: =R55*T55 ->  | U55: =+$U$18*E55 ->  | V55: =U55*W55 ->  | X55: =+$X$18*E55 ->  | Y55: =X55*Z55 ->  | AA55: =+$AA$18*E55 ->  | AB55: =AA55*AC55 ->  | AD55: =+$AD$18*E55 ->  | AE55: =AD55*AF55 ->  | AG55: =+$AG$18*E55 ->  | AH55: =AG55*AI55 ->  | AJ55: =+$AJ$18*E55 ->  | AK55: =AJ55*AL55 ->  | AM55: =+$AM$18*E55 ->  | AN55: =AM55*AO55 ->  | AP55: =+$AJ$18*E55 ->  | AQ55: =AP55*AR55 -> 
C56: Total Organics | E56: =+'4.MSW Comp. Analysis'!O69 ->  | F56: =E56*'5.MSW Detailed Analysis'!$F$19 ->  | G56: ='5.MSW Detailed Analysis'!G57 -> 0 | I56: =+I54+I55 ->  | J56: =+J54+J55 ->  | K56: =J56/I56 ->  | L56: =+L54+L55 ->  | M56: =+M54+M55 ->  | N56: =M56/L56 ->  | O56: =+O54+O55 ->  | P56: =+P54+P55 ->  | Q56: =P56/O56 ->  | R56: =+R54+R55 ->  | S56: =+S54+S55 ->  | T56: =S56/R56 ->  | U56: =+U54+U55 ->  | V56: =+V54+V55 ->  | W56: =V56/U56 ->  | X56: =+X54+X55 ->  | Y56: =+Y54+Y55 ->  | Z56: =Y56/X56 ->  | AA56: =+AA54+AA55 ->  | AB56: =+AB54+AB55 ->  | AC56: =AB56/AA56 ->  | AD56: =+AD54+AD55 ->  | AE56: =+AE54+AE55 ->  | AF56: =AE56/AD56 ->  | AG56: =+AG54+AG55 ->  | AH56: =+AH54+AH55 ->  | AI56: =AH56/AG56 ->  | AJ56: =+AJ54+AJ55 ->  | AK56: =+AK54+AK55 ->  | AL56: =AK56/AJ56 ->  | AM56: =+AM54+AM55 ->  | AN56: =+AN54+AN55 ->  | AO56: =AN56/AM56 ->  | AP56: =+AP54+AP55 ->  | AQ56: =+AQ54+AQ55 ->  | AR56: =AQ56/AP56 -> 
B57: Textiles | C57: Clothing Footwear, Towels, Sheets | E57: =+'4.MSW Comp. Analysis'!O70 ->  | F57: =E57*'5.MSW Detailed Analysis'!$F$19 ->  | G57: ='5.MSW Detailed Analysis'!G58 -> 0 | I57: =+$I$18*E57 ->  | J57: =I57*K57 ->  | L57: =+$L$18*E57 ->  | M57: =L57*N57 ->  | O57: =+$O$18*E57 ->  | P57: =O57*Q57 ->  | R57: =+$R$18*E57 ->  | S57: =R57*T57 ->  | U57: =+$U$18*E57 ->  | V57: =U57*W57 ->  | X57: =+$X$18*E57 ->  | Y57: =X57*Z57 ->  | AA57: =+$AA$18*E57 ->  | AB57: =AA57*AC57 ->  | AD57: =+$AD$18*E57 ->  | AE57: =AD57*AF57 ->  | AG57: =+$AG$18*E57 ->  | AH57: =AG57*AI57 ->  | AJ57: =+$AJ$18*E57 ->  | AK57: =AJ57*AL57 ->  | AM57: =+$AM$18*E57 ->  | AN57: =AM57*AO57 ->  | AP57: =+$AJ$18*E57 ->  | AQ57: =AP57*AR57 -> 
C58: Carpet | E58: =+'4.MSW Comp. Analysis'!O71 ->  | F58: =E58*'5.MSW Detailed Analysis'!$F$19 ->  | G58: ='5.MSW Detailed Analysis'!G59 -> 0 | I58: =+$I$18*E58 ->  | J58: =I58*K58 ->  | L58: =+$L$18*E58 ->  | M58: =L58*N58 ->  | O58: =+$O$18*E58 ->  | P58: =O58*Q58 ->  | R58: =+$R$18*E58 ->  | S58: =R58*T58 ->  | U58: =+$U$18*E58 ->  | V58: =U58*W58 ->  | X58: =+$X$18*E58 ->  | Y58: =X58*Z58 ->  | AA58: =+$AA$18*E58 ->  | AB58: =AA58*AC58 ->  | AD58: =+$AD$18*E58 ->  | AE58: =AD58*AF58 ->  | AG58: =+$AG$18*E58 ->  | AH58: =AG58*AI58 ->  | AJ58: =+$AJ$18*E58 ->  | AK58: =AJ58*AL58 ->  | AM58: =+$AM$18*E58 ->  | AN58: =AM58*AO58 ->  | AP58: =+$AJ$18*E58 ->  | AQ58: =AP58*AR58 -> 
C59: Total Textiles | E59: =+'4.MSW Comp. Analysis'!O72 ->  | F59: =E59*'5.MSW Detailed Analysis'!$F$19 ->  | G59: ='5.MSW Detailed Analysis'!G60 -> 0 | I59: =+I57+I58 ->  | J59: =+J57+J58 ->  | K59: =J59/I59 ->  | L59: =+L57+L58 ->  | M59: =+M57+M58 ->  | N59: =M59/L59 ->  | O59: =+O57+O58 ->  | P59: =+P57+P58 ->  | Q59: =P59/O59 ->  | R59: =+R57+R58 ->  | S59: =+S57+S58 ->  | T59: =S59/R59 ->  | U59: =+U57+U58 ->  | V59: =+V57+V58 ->  | W59: =V59/U59 ->  | X59: =+X57+X58 ->  | Y59: =+Y57+Y58 ->  | Z59: =Y59/X59 ->  | AA59: =+AA57+AA58 ->  | AB59: =+AB57+AB58 ->  | AC59: =AB59/AA59 ->  | AD59: =+AD57+AD58 ->  | AE59: =+AE57+AE58 ->  | AF59: =AE59/AD59 ->  | AG59: =+AG57+AG58 ->  | AH59: =+AH57+AH58 ->  | AI59: =AH59/AG59 ->  | AJ59: =+AJ57+AJ58 ->  | AK59: =+AK57+AK58 ->  | AL59: =AK59/AJ59 ->  | AM59: =+AM57+AM58 ->  | AN59: =+AN57+AN58 ->  | AO59: =AN59/AM59 ->  | AP59: =+AP57+AP58 ->  | AQ59: =+AQ57+AQ58 ->  | AR59: =AQ59/AP59 -> 
B60: Wood | C60: Total Wood (Pallets, crates, adulterated and non-adulterated wood) | E60: =+'4.MSW Comp. Analysis'!O73 ->  | F60: =E60*'5.MSW Detailed Analysis'!$F$19 ->  | G60: ='5.MSW Detailed Analysis'!G61 -> 0 | I60: =+$I$18*E60 ->  | J60: =I60*K60 ->  | L60: =+$L$18*E60 ->  | M60: =L60*N60 ->  | O60: =+$O$18*E60 ->  | P60: =Q60*O60 ->  | R60: =+$R$18*E60 ->  | S60: =R60*T60 ->  | U60: =+$U$18*E60 ->  | V60: =U60*W60 ->  | X60: =+$X$18*E60 ->  | Y60: =X60*Z60 ->  | AA60: =+$AA$18*E60 ->  | AB60: =AA60*AC60 ->  | AD60: =+$AD$18*E60 ->  | AE60: =AD60*AF60 ->  | AG60: =+$AG$18*E60 ->  | AH60: =AG60*AI60 ->  | AJ60: =+$AJ$18*E60 ->  | AK60: =AJ60*AL60 ->  | AM60: =+$AG$18*K60 ->  | AN60: =AM60*AO60 ->  | AP60: =+$AJ$18*K60 ->  | AQ60: =AP60*AR60 -> 
B61: Miscellaneous | C61: DIY Construction & Renovation Materials | E61: =+'4.MSW Comp. Analysis'!O74 ->  | F61: =E61*'5.MSW Detailed Analysis'!$F$19 ->  | G61: ='5.MSW Detailed Analysis'!G62 -> 0 | AM61: =+$AM$18*E61 ->  | AP61: =+$AJ$18*E61 -> 
C62: Diapers | E62: =+'4.MSW Comp. Analysis'!O75 ->  | F62: =E62*'5.MSW Detailed Analysis'!$F$19 ->  | G62: ='5.MSW Detailed Analysis'!G63 -> 0 | AM62: =+$AG$18*E62 -> 
C63: Electronics | E63: =+'4.MSW Comp. Analysis'!O76 ->  | F63: =E63*'5.MSW Detailed Analysis'!$F$19 ->  | G63: ='5.MSW Detailed Analysis'!G64 -> 0
C64: Tires | E64: =+'4.MSW Comp. Analysis'!O77 ->  | F64: =E64*'5.MSW Detailed Analysis'!$F$19 ->  | G64: ='5.MSW Detailed Analysis'!G65 -> 0
C65: HHW | E65: =+'4.MSW Comp. Analysis'!O78 ->  | F65: =E65*'5.MSW Detailed Analysis'!$F$19 ->  | G65: ='5.MSW Detailed Analysis'!G66 -> 0
C66: Soils and Fines | E66: =+'4.MSW Comp. Analysis'!O79 ->  | F66: =E66*'5.MSW Detailed Analysis'!$F$19 ->  | G66: ='5.MSW Detailed Analysis'!G67 -> 0
C67: Other Composite Materials - Durable and/or inert | E67: =+'4.MSW Comp. Analysis'!O80 ->  | F67: =E67*'5.MSW Detailed Analysis'!$F$19 ->  | G67: ='5.MSW Detailed Analysis'!G68 -> 0
C68: Total Miscellaneous | E68: =+'4.MSW Comp. Analysis'!O81 ->  | F68: =E68*'5.MSW Detailed Analysis'!$F$19 ->  | G68: ='5.MSW Detailed Analysis'!G69 -> 0 | I68: =SUM(I61:I67) ->  | J68: =SUM(J61:J67) ->  | K68: =J68/I68 ->  | L68: =SUM(L61:L67) ->  | M68: =SUM(M61:M67) ->  | N68: =M68/L68 ->  | O68: =SUM(O61:O67) ->  | P68: =SUM(P61:P67) ->  | Q68: =P68/O68 ->  | R68: =SUM(R61:R67) ->  | S68: =SUM(S61:S67) ->  | T68: =S68/R68 ->  | U68: =SUM(U61:U67) ->  | V68: =SUM(V61:V67) ->  | W68: =V68/U68 ->  | X68: =SUM(X61:X67) ->  | Y68: =SUM(Y61:Y67) ->  | Z68: =Y68/X68 ->  | AA68: =SUM(AA61:AA67) ->  | AB68: =SUM(AB61:AB67) ->  | AC68: =AB68/AA68 ->  | AD68: =SUM(AD61:AD67) ->  | AE68: =SUM(AE61:AE67) ->  | AF68: =AE68/AD68 ->  | AG68: =SUM(AG61:AG67) ->  | AH68: =SUM(AH61:AH67) ->  | AI68: =AH68/AG68 ->  | AJ68: =SUM(AJ61:AJ67) ->  | AK68: =SUM(AK61:AK67) ->  | AL68: =AK68/AJ68 ->  | AM68: =SUM(AM61:AM67) ->  | AN68: =SUM(AN61:AN67) ->  | AO68: =AN68/AM68 ->  | AP68: =SUM(AP61:AP67) ->  | AQ68: =SUM(AQ61:AQ67) ->  | AR68: =AQ68/AP68 -> 

Sheet 7.MSW Projections
K2: Step 7. Municipal Solid Waste (MSW) Generation and Diversion - Detailed Projections
P5: The final result of the Population and Municipal Composition Calculator is presented on the last tab. This tab contains data for the current year regarding waste generated and waste diverted from disposal. This tab also shows the projected waste diversion percentages, and the amount of waste in tons these percentages will divert for recycling. Total amounts of waste diverted will be calculated for each material and each year of the planning period.
N11: =+'1.PU& Period Selection'!E12 -> 0 | AB11: =+'1.PU& Period Selection'!E15 -> 0
E13: =(VLOOKUP('1.PU& Period Selection'!E15,'1.PU& Period Selection'!BW15:CK26,2,FALSE)-1) ->  | H13: =+'3.PU&MSW Projections'!H55 ->  | K13: =+'3.PU&MSW Projections'!I55 ->  | N13: =+'3.PU&MSW Projections'!J55 ->  | Q13: =+'3.PU&MSW Projections'!K55 ->  | T13: =+'3.PU&MSW Projections'!L55 ->  | W13: =+'3.PU&MSW Projections'!M55 ->  | Z13: =+'3.PU&MSW Projections'!N55 ->  | AC13: =+'3.PU&MSW Projections'!O55 ->  | AF13: =+'3.PU&MSW Projections'!P55 ->  | AI13: =+'3.PU&MSW Projections'!Q55 ->  | AL13: =+'3.PU&MSW Projections'!R55 ->  | AO13: =+'3.PU&MSW Projections'!S55 -> 
D14: MSW Materials Composition (%) | E14: MSW Generated (Tons) | F14: MSW Diverted (Tons) | G14: % MSW Diverted | H14: MSW generated (Tons) | I14: MSW Diverted | J14: % MSW Diverted | K14: MSW generated (Tons) | L14: MSW Diverted | M14: % MSW Diverted | N14: MSW generated (Tons) | O14: MSW Diverted | P14: % MSW Diverted | Q14: MSW generated (Tons) | R14: MSW Diverted | S14: % MSW Diverted | T14: MSW generated (Tons) | U14: MSW Diverted | V14: % MSW Diverted | W14: MSW generated (Tons) | X14: MSW Diverted | Y14: % MSW Diverted | Z14: MSW generated (Tons) | AA14: MSW Diverted | AB14: % MSW Diverted | AC14: MSW generated (Tons) | AD14: MSW Diverted | AE14: % MSW Diverted | AF14: MSW generated (Tons) | AG14: MSW Diverted | AH14: % MSW Diverted | AI14: MSW generated (Tons) | AJ14: MSW Diverted | AK14: % MSW Diverted | AL14: MSW generated (Tons) | AM14: MSW Diverted | AN14: % MSW Diverted | AO14: MSW generated (Tons) | AP14: MSW Diverted | AQ14: % MSW Diverted
B15: Material | D15: =D29+D38+D47+D50+D53+D56+D57+D65 ->  | E15: ='3.PU&MSW Projections'!G46 -> 0 | F15: =F29+F38+F47+F50+F53+F56+F57+F65 -> 0 | G15: =F15/E15 ->  | H15: =+'3.PU&MSW Projections'!G70 ->  | I15: =I29+I38+I47+I50+I53+I56+I57+I65 ->  | J15: =I15/H15 ->  | K15: =+'3.PU&MSW Projections'!H70 ->  | L15: =L29+L38+L47+L50+L53+L56+L57+L65 ->  | M15: =L15/K15 ->  | N15: =+'3.PU&MSW Projections'!I70 ->  | O15: =O29+O38+O47+O50+O53+O56+O57+O65 ->  | P15: =O15/N15 ->  | Q15: =+'3.PU&MSW Projections'!J70 ->  | R15: =R29+R38+R47+R50+R53+R56+R57+R65 ->  | S15: =R15/Q15 ->  | T15: =+'3.PU&MSW Projections'!K70 ->  | U15: =U29+U38+U47+U50+U53+U56+U57+U65 ->  | V15: =U15/T15 ->  | W15: =+'3.PU&MSW Projections'!L70 ->  | X15: =X29+X38+X47+X50+X53+X56+X57+X65 ->  | Y15: =X15/W15 ->  | Z15: =+'3.PU&MSW Projections'!M70 ->  | AA15: =AA29+AA38+AA47+AA50+AA53+AA56+AA57+AA65 ->  | AB15: =AA15/Z15 ->  | AC15: =+'3.PU&MSW Projections'!N70 ->  | AD15: =AD29+AD38+AD47+AD50+AD53+AD56+AD57+AD65 ->  | AE15: =AD15/AC15 ->  | AF15: =+'3.PU&MSW Projections'!O70 ->  | AG15: =AG29+AG38+AG47+AG50+AG53+AG56+AG57+AG65 ->  | AH15: =AG15/AF15 ->  | AI15: =+'3.PU&MSW Projections'!P70 ->  | AJ15: =AJ29+AJ38+AJ47+AJ50+AJ53+AJ56+AJ57+AJ65 ->  | AK15: =AJ15/AI15 ->  | AL15: =+'3.PU&MSW Projections'!Q70 ->  | AM15: =AM29+AM38+AM47+AM50+AM53+AM56+AM57+AM65 ->  | AN15: =AM15/AL15 ->  | AO15: =+'3.PU&MSW Projections'!R70 ->  | AP15: =AP29+AP38+AP47+AP50+AP53+AP56+AP57+AP65 ->  | AQ15: =AP15/AO15 -> 
A16: Paper | B16: Newspaper | D16: =+'4.MSW Comp. Analysis'!O32 ->  | E16: =D16*'5.MSW Detailed Analysis'!$F$19 ->  | F16: ='5.MSW Detailed Analysis'!G20 -> 0 | G16: =F16/E16 ->  | H16: =+$H$15*D16 ->  | I16: =H16*J16 ->  | J16: ='6.MSW Diversions'!K19 -> 0 | K16: =$K$15*D16 ->  | L16: =K16*M16 ->  | M16: ='6.MSW Diversions'!N19 -> 0 | N16: =+$N$15*D16 ->  | O16: =N16*P16 ->  | P16: ='6.MSW Diversions'!Q19 -> 0 | Q16: =+$Q$15*D16 ->  | R16: =Q16*S16 ->  | S16: ='6.MSW Diversions'!T19 -> 0 | T16: =+$T$15*D16 ->  | U16: =V16*T16 ->  | V16: ='6.MSW Diversions'!W19 -> 0 | W16: =+$W$15*D16 ->  | X16: =W16*Y16 ->  | Y16: ='6.MSW Diversions'!Z19 -> 0 | Z16: =+$Z$15*D16 ->  | AA16: =Z16*AB16 ->  | AB16: ='6.MSW Diversions'!AC19 -> 0 | AC16: =+$AC$15*D16 ->  | AD16: =AC16*AE16 ->  | AE16: ='6.MSW Diversions'!AF19 -> 0 | AF16: =+$AF$15*D16 ->  | AG16: =AF16*AH16 ->  | AH16: ='6.MSW Diversions'!AI19 -> 0 | AI16: =+$AI$15*D16 ->  | AJ16: =AI16*AK16 ->  | AK16: ='6.MSW Diversions'!AL19 -> 0 | AL16: =+$AL$15*D16 ->  | AM16: =AL16*AN16 ->  | AN16: ='6.MSW Diversions'!AO19 -> 0 | AO16: =+$AO$15*D16 ->  | AP16: =AO16*AQ16 ->  | AQ16: ='6.MSW Diversions'!AR19 -> 0
B17: Corrugated Cardboard | D17: =+'4.MSW Comp. Analysis'!O33 ->  | E17: =D17*'5.MSW Detailed Analysis'!$F$19 ->  | F17: ='5.MSW Detailed Analysis'!G21 -> 0 | G17: =F17/E17 ->  | J17: ='6.MSW Diversions'!K20 -> 0 | M17: ='6.MSW Diversions'!N20 -> 0 | P17: ='6.MSW Diversions'!Q20 -> 0 | S17: ='6.MSW Diversions'!T20 -> 0 | V17: ='6.MSW Diversions'!W20 -> 0 | Y17: ='6.MSW Diversions'!Z20 -> 0 | AB17: ='6.MSW Diversions'!AC20 -> 0 | AE17: ='6.MSW Diversions'!AF20 -> 0 | AH17: ='6.MSW Diversions'!AI20 -> 0 | AK17: ='6.MSW Diversions'!AL20 -> 0 | AL17: =+$AF$15*D17 ->  | AN17: ='6.MSW Diversions'!AO20 -> 0 | AO17: =+$AO$15*D17 ->  | AQ17: ='6.MSW Diversions'!AR20 -> 0
B18: Other Recyclable Paper | C18: Paperboard | D18: =+'4.MSW Comp. Analysis'!O34 ->  | E18: =D18*'5.MSW Detailed Analysis'!$F$19 ->  | F18: ='5.MSW Detailed Analysis'!G22 -> 0 | J18: ='6.MSW Diversions'!K21 -> 0 | M18: ='6.MSW Diversions'!N21 -> 0 | P18: ='6.MSW Diversions'!Q21 -> 0 | S18: ='6.MSW Diversions'!T21 -> 0 | V18: ='6.MSW Diversions'!W21 -> 0 | Y18: ='6.MSW Diversions'!Z21 -> 0 | AB18: ='6.MSW Diversions'!AC21 -> 0 | AE18: ='6.MSW Diversions'!AF21 -> 0 | AH18: ='6.MSW Diversions'!AI21 -> 0 | AK18: ='6.MSW Diversions'!AL21 -> 0 | AN18: ='6.MSW Diversions'!AO21 -> 0 | AQ18: ='6.MSW Diversions'!AR21 -> 0
C19: Office Paper | D19: =+'4.MSW Comp. Analysis'!O35 ->  | E19: =D19*'5.MSW Detailed Analysis'!$F$19 ->  | F19: ='5.MSW Detailed Analysis'!G23 -> 0 | J19: ='6.MSW Diversions'!K22 -> 0 | M19: ='6.MSW Diversions'!N22 -> 0 | P19: ='6.MSW Diversions'!Q22 -> 0 | S19: ='6.MSW Diversions'!T22 -> 0 | V19: ='6.MSW Diversions'!W22 -> 0 | Y19: ='6.MSW Diversions'!Z22 -> 0 | AB19: ='6.MSW Diversions'!AC22 -> 0 | AE19: ='6.MSW Diversions'!AF22 -> 0 | AH19: ='6.MSW Diversions'!AI22 -> 0 | AK19: ='6.MSW Diversions'!AL22 -> 0 | AN19: ='6.MSW Diversions'!AO22 -> 0 | AQ19: ='6.MSW Diversions'!AR22 -> 0
C20: Junk Mail | D20: =+'4.MSW Comp. Analysis'!O36 ->  | E20: =D20*'5.MSW Detailed Analysis'!$F$19 ->  | F20: ='5.MSW Detailed Analysis'!G24 -> 0 | J20: ='6.MSW Diversions'!K23 -> 0 | M20: ='6.MSW Diversions'!N23 -> 0 | P20: ='6.MSW Diversions'!Q23 -> 0 | S20: ='6.MSW Diversions'!T23 -> 0 | V20: ='6.MSW Diversions'!W23 -> 0 | Y20: ='6.MSW Diversions'!Z23 -> 0 | AB20: ='6.MSW Diversions'!AC23 -> 0 | AE20: ='6.MSW Diversions'!AF23 -> 0 | AH20: ='6.MSW Diversions'!AI23 -> 0 | AK20: ='6.MSW Diversions'!AL23 -> 0 | AN20: ='6.MSW Diversions'!AO23 -> 0 | AQ20: ='6.MSW Diversions'!AR23 -> 0
C21: Other Commercial Printing | D21: =+'4.MSW Comp. Analysis'!O37 ->  | E21: =D21*'5.MSW Detailed Analysis'!$F$19 ->  | F21: ='5.MSW Detailed Analysis'!G25 -> 0 | J21: ='6.MSW Diversions'!K24 -> 0 | M21: ='6.MSW Diversions'!N24 -> 0 | P21: ='6.MSW Diversions'!Q24 -> 0 | S21: ='6.MSW Diversions'!T24 -> 0 | V21: ='6.MSW Diversions'!W24 -> 0 | Y21: ='6.MSW Diversions'!Z24 -> 0 | AB21: ='6.MSW Diversions'!AC24 -> 0 | AE21: ='6.MSW Diversions'!AF24 -> 0 | AH21: ='6.MSW Diversions'!AI24 -> 0 | AK21: ='6.MSW Diversions'!AL24 -> 0 | AN21: ='6.MSW Diversions'!AO24 -> 0 | AQ21: ='6.MSW Diversions'!AR24 -> 0
C22: Magazines | D22: =+'4.MSW Comp. Analysis'!O38 ->  | E22: =D22*'5.MSW Detailed Analysis'!$F$19 ->  | F22: ='5.MSW Detailed Analysis'!G26 -> 0 | J22: ='6.MSW Diversions'!K25 -> 0 | M22: ='6.MSW Diversions'!N25 -> 0 | P22: ='6.MSW Diversions'!Q25 -> 0 | S22: ='6.MSW Diversions'!T25 -> 0 | V22: ='6.MSW Diversions'!W25 -> 0 | Y22: ='6.MSW Diversions'!Z25 -> 0 | AB22: ='6.MSW Diversions'!AC25 -> 0 | AE22: ='6.MSW Diversions'!AF25 -> 0 | AH22: ='6.MSW Diversions'!AI25 -> 0 | AK22: ='6.MSW Diversions'!AL25 -> 0 | AN22: ='6.MSW Diversions'!AO25 -> 0 | AQ22: ='6.MSW Diversions'!AR25 -> 0
C23: Books | D23: =+'4.MSW Comp. Analysis'!O39 ->  | E23: =D23*'5.MSW Detailed Analysis'!$F$19 ->  | F23: ='5.MSW Detailed Analysis'!G27 -> 0 | J23: ='6.MSW Diversions'!K26 -> 0 | M23: ='6.MSW Diversions'!N26 -> 0 | P23: ='6.MSW Diversions'!Q26 -> 0 | S23: ='6.MSW Diversions'!T26 -> 0 | V23: ='6.MSW Diversions'!W26 -> 0 | Y23: ='6.MSW Diversions'!Z26 -> 0 | AB23: ='6.MSW Diversions'!AC26 -> 0 | AE23: ='6.MSW Diversions'!AF26 -> 0 | AH23: ='6.MSW Diversions'!AI26 -> 0 | AK23: ='6.MSW Diversions'!AL26 -> 0 | AN23: ='6.MSW Diversions'!AO26 -> 0 | AQ23: ='6.MSW Diversions'!AR26 -> 0
C24: Paper Bags | D24: =+'4.MSW Comp. Analysis'!O40 ->  | E24: =D24*'5.MSW Detailed Analysis'!$F$19 ->  | F24: ='5.MSW Detailed Analysis'!G28 -> 0 | J24: ='6.MSW Diversions'!K27 -> 0 | M24: ='6.MSW Diversions'!N27 -> 0 | P24: ='6.MSW Diversions'!Q27 -> 0 | S24: ='6.MSW Diversions'!T27 -> 0 | V24: ='6.MSW Diversions'!W27 -> 0 | Y24: ='6.MSW Diversions'!Z27 -> 0 | AB24: ='6.MSW Diversions'!AC27 -> 0 | AE24: ='6.MSW Diversions'!AF27 -> 0 | AH24: ='6.MSW Diversions'!AI27 -> 0 | AK24: ='6.MSW Diversions'!AL27 -> 0 | AN24: ='6.MSW Diversions'!AO27 -> 0 | AQ24: ='6.MSW Diversions'!AR27 -> 0
C25: Phone Books | D25: =+'4.MSW Comp. Analysis'!O41 ->  | E25: =D25*'5.MSW Detailed Analysis'!$F$19 ->  | F25: ='5.MSW Detailed Analysis'!G29 -> 0 | J25: ='6.MSW Diversions'!K28 -> 0 | M25: ='6.MSW Diversions'!N28 -> 0 | P25: ='6.MSW Diversions'!Q28 -> 0 | S25: ='6.MSW Diversions'!T28 -> 0 | V25: ='6.MSW Diversions'!W28 -> 0 | Y25: ='6.MSW Diversions'!Z28 -> 0 | AB25: ='6.MSW Diversions'!AC28 -> 0 | AE25: ='6.MSW Diversions'!AF28 -> 0 | AH25: ='6.MSW Diversions'!AI28 -> 0 | AK25: ='6.MSW Diversions'!AL28 -> 0 | AN25: ='6.MSW Diversions'!AO28 -> 0 | AQ25: ='6.MSW Diversions'!AR28 -> 0
C26: Poly-Coated | D26: =+'4.MSW Comp. Analysis'!O42 ->  | E26: =D26*'5.MSW Detailed Analysis'!$F$19 ->  | F26: ='5.MSW Detailed Analysis'!G30 -> 0 | J26: ='6.MSW Diversions'!K29 -> 0 | M26: ='6.MSW Diversions'!N29 -> 0 | P26: ='6.MSW Diversions'!Q29 -> 0 | S26: ='6.MSW Diversions'!T29 -> 0 | V26: ='6.MSW Diversions'!W29 -> 0 | Y26: ='6.MSW Diversions'!Z29 -> 0 | AB26: ='6.MSW Diversions'!AC29 -> 0 | AE26: ='6.MSW Diversions'!AF29 -> 0 | AH26: ='6.MSW Diversions'!AI29 -> 0 | AK26: ='6.MSW Diversions'!AL29 -> 0 | AN26: ='6.MSW Diversions'!AO29 -> 0 | AQ26: ='6.MSW Diversions'!AR29 -> 0
B27: Other Recyclable Paper (Total) | D27: =+'4.MSW Comp. Analysis'!O43 ->  | E27: =D27*'5.MSW Detailed Analysis'!$F$19 ->  | F27: ='5.MSW Detailed Analysis'!G31 -> 0 | J27: ='6.MSW Diversions'!K30 -> 0 | M27: ='6.MSW Diversions'!N30 -> 0 | P27: ='6.MSW Diversions'!Q30 -> 0 | S27: ='6.MSW Diversions'!T30 -> 0 | V27: ='6.MSW Diversions'!W30 -> 0 | Y27: ='6.MSW Diversions'!Z30 -> 0 | AB27: ='6.MSW Diversions'!AC30 -> 0 | AE27: ='6.MSW Diversions'!AF30 -> 0 | AH27: ='6.MSW Diversions'!AI30 -> 0 | AK27: ='6.MSW Diversions'!AL30 -> 0 | AN27: ='6.MSW Diversions'!AO30 -> 0 | AQ27: ='6.MSW Diversions'!AR30 -> 0
B28: Other Compostable Paper | D28: =+'4.MSW Comp. Analysis'!O44 ->  | E28: =D28*'5.MSW Detailed Analysis'!$F$19 ->  | F28: ='5.MSW Detailed Analysis'!G32 -> 0 | J28: ='6.MSW Diversions'!K31 -> 0 | M28: ='6.MSW Diversions'!N31 -> 0 | P28: ='6.MSW Diversions'!Q31 -> 0 | S28: ='6.MSW Diversions'!T31 -> 0 | V28: ='6.MSW Diversions'!W31 -> 0 | Y28: ='6.MSW Diversions'!Z31 -> 0 | AB28: ='6.MSW Diversions'!AC31 -> 0 | AE28: ='6.MSW Diversions'!AF31 -> 0 | AH28: ='6.MSW Diversions'!AI31 -> 0 | AK28: ='6.MSW Diversions'!AL31 -> 0 | AN28: ='6.MSW Diversions'!AO31 -> 0 | AQ28: ='6.MSW Diversions'!AR31 -> 0
B29: Total Paper | D29: =+'4.MSW Comp. Analysis'!O45 ->  | E29: =D29*'5.MSW Detailed Analysis'!$F$19 ->  | F29: ='5.MSW Detailed Analysis'!G33 -> 0 | H29: =+H16+H17+H27+H28 ->  | I29: =+I16+I17+I27+I28 ->  | J29: =I29/H29 ->  | K29: =+K16+K17+K27+K28 ->  | L29: =+L16+L17+L27+L28 ->  | M29: =L29/K29 ->  | N29: =+N16+N17+N27+N28 ->  | O29: =+O16+O17+O27+O28 ->  | P29: =O29/N29 ->  | Q29: =+Q16+Q17+Q27+Q28 ->  | R29: =+R16+R17+R27+R28 ->  | S29: =R29/Q29 ->  | T29: =+T16+T17+T27+T28 ->  | U29: =+U16+U17+U27+U28 ->  | V29: =U29/T29 ->  | W29: =+W16+W17+W27+W28 ->  | X29: =+X16+X17+X27+X28 ->  | Y29: =X29/W29 ->  | Z29: =+Z16+Z17+Z27+Z28 ->  | AA29: =+AA16+AA17+AA27+AA28 ->  | AB29: =AA29/Z29 ->  | AC29: =+AC16+AC17+AC27+AC28 ->  | AD29: =+AD16+AD17+AD27+AD28 ->  | AE29: =AD29/AC29 ->  | AF29: =+AF16+AF17+AF27+AF28 ->  | AG29: =+AG16+AG17+AG27+AG28 ->  | AH29: =AG29/AF29 ->  | AI29: =+AI16+AI17+AI27+AI28 ->  | AJ29: =+AJ16+AJ17+AJ27+AJ28 ->  | AK29: =AJ29/AI29 ->  | AL29: =+AL16+AL17+AL27+AL28 ->  | AM29: =+AM16+AM17+AM27+AM28 ->  | AN29: =AM29/AL29 ->  | AO29: =+AO16+AO17+AO27+AO28 ->  | AP29: =+AP16+AP17+AP27+AP28 ->  | AQ29: =AP29/AO29 -> 
A30: Metal | B30: Ferrous/Aluminum Containers | C30: Ferrous Containers | D30: =+'4.MSW Comp. Analysis'!O46 ->  | E30: =D30*'5.MSW Detailed Analysis'!$F$19 ->  | F30: ='5.MSW Detailed Analysis'!G34 ->  | H30: =+$H$15*D30 ->  | I30: =H30*J30 ->  | J30: ='6.MSW Diversions'!K33 ->  | K30: =+$K$15*D30 ->  | L30: =K30*M30 ->  | M30: ='6.MSW Diversions'!N33 ->  | N30: =+$N$15*D30 ->  | O30: =N30*P30 ->  | P30: ='6.MSW Diversions'!Q33 ->  | Q30: =+$Q$15*D30 ->  | R30: =Q30*S30 ->  | S30: ='6.MSW Diversions'!T33 ->  | T30: =+$T$15*D30 ->  | U30: =T30*V30 ->  | V30: ='6.MSW Diversions'!W33 ->  | W30: =+$W$15*D30 ->  | X30: =W30*Y30 ->  | Y30: ='6.MSW Diversions'!Z33 ->  | Z30: =+$Z$15*D30 ->  | AA30: =Z30*AB30 ->  | AB30: ='6.MSW Diversions'!AC33 ->  | AC30: =+$AC$15*D30 ->  | AD30: =AE30*AC30 ->  | AE30: ='6.MSW Diversions'!AF33 ->  | AF30: =+$AF$15*D30 ->  | AG30: =AF30*AH30 ->  | AH30: ='6.MSW Diversions'!AI33 ->  | AI30: =+$AI$15*D30 ->  | AJ30: =AI30*AK30 ->  | AK30: ='6.MSW Diversions'!AL33 ->  | AL30: =+$AF$15*D30 ->  | AM30: =AL30*AN30 ->  | AN30: ='6.MSW Diversions'!AO33 ->  | AO30: =+$AI$15*D30 ->  | AP30: =AO30*AQ30 ->  | AQ30: ='6.MSW Diversions'!AR33 -> 
C31: Aluminum Containers | D31: =+'4.MSW Comp. Analysis'!O47 ->  | E31: =D31*'5.MSW Detailed Analysis'!$F$19 ->  | F31: ='5.MSW Detailed Analysis'!G35 ->  | J31: ='6.MSW Diversions'!K34 ->  | M31: ='6.MSW Diversions'!N34 ->  | P31: ='6.MSW Diversions'!Q34 ->  | S31: ='6.MSW Diversions'!T34 ->  | V31: ='6.MSW Diversions'!W34 ->  | Y31: ='6.MSW Diversions'!Z34 ->  | AB31: ='6.MSW Diversions'!AC34 ->  | AE31: ='6.MSW Diversions'!AF34 ->  | AH31: ='6.MSW Diversions'!AI34 ->  | AK31: ='6.MSW Diversions'!AL34 ->  | AL31: =+$AF$15*D31 ->  | AN31: ='6.MSW Diversions'!AO34 ->  | AO31: =+$AI$15*D31 ->  | AQ31: ='6.MSW Diversions'!AR34 -> 
B32: Ferrous/Aluminum Containers (Total) | D32: =+'4.MSW Comp. Analysis'!O48 ->  | E32: =D32*'5.MSW Detailed Analysis'!$F$19 ->  | F32: ='5.MSW Detailed Analysis'!G36 -> 0 | J32: ='6.MSW Diversions'!K35 -> 0 | M32: ='6.MSW Diversions'!N35 -> 0 | P32: ='6.MSW Diversions'!Q35 -> 0 | S32: ='6.MSW Diversions'!T35 -> 0 | V32: ='6.MSW Diversions'!W35 -> 0 | Y32: ='6.MSW Diversions'!Z35 -> 0 | AB32: ='6.MSW Diversions'!AC35 -> 0 | AE32: ='6.MSW Diversions'!AF35 -> 0 | AH32: ='6.MSW Diversions'!AI35 -> 0 | AK32: ='6.MSW Diversions'!AL35 -> 0 | AN32: ='6.MSW Diversions'!AO35 -> 0 | AQ32: ='6.MSW Diversions'!AR35 -> 0
B33: Other Ferrous Metals | D33: =+'4.MSW Comp. Analysis'!O49 ->  | E33: =D33*'5.MSW Detailed Analysis'!$F$19 ->  | F33: ='5.MSW Detailed Analysis'!G37 -> 0 | J33: ='6.MSW Diversions'!K36 -> 0 | M33: ='6.MSW Diversions'!N36 -> 0 | P33: ='6.MSW Diversions'!Q36 -> 0 | S33: ='6.MSW Diversions'!T36 -> 0 | V33: ='6.MSW Diversions'!W36 -> 0 | Y33: ='6.MSW Diversions'!Z36 -> 0 | AB33: ='6.MSW Diversions'!AC36 -> 0 | AE33: ='6.MSW Diversions'!AF36 -> 0 | AH33: ='6.MSW Diversions'!AI36 -> 0 | AK33: ='6.MSW Diversions'!AL36 -> 0 | AN33: ='6.MSW Diversions'!AO36 -> 0 | AQ33: ='6.MSW Diversions'!AR36 -> 0
B34: Other Non-Ferrous Metals | C34: Other aluminum | D34: =+'4.MSW Comp. Analysis'!O50 ->  | E34: =D34*'5.MSW Detailed Analysis'!$F$19 ->  | F34: ='5.MSW Detailed Analysis'!G38 -> 0 | J34: ='6.MSW Diversions'!K37 -> 0 | M34: ='6.MSW Diversions'!N37 -> 0 | P34: ='6.MSW Diversions'!Q37 -> 0 | S34: ='6.MSW Diversions'!T37 -> 0 | V34: ='6.MSW Diversions'!W37 -> 0 | Y34: ='6.MSW Diversions'!Z37 -> 0 | AB34: ='6.MSW Diversions'!AC37 -> 0 | AE34: ='6.MSW Diversions'!AF37 -> 0 | AH34: ='6.MSW Diversions'!AI37 -> 0 | AK34: ='6.MSW Diversions'!AL37 -> 0 | AN34: ='6.MSW Diversions'!AO37 -> 0 | AQ34: ='6.MSW Diversions'!AR37 -> 0
C35: Automotive batteries | D35: =+'4.MSW Comp. Analysis'!O51 ->  | E35: =D35*'5.MSW Detailed Analysis'!$F$19 ->  | F35: ='5.MSW Detailed Analysis'!G39 -> 0 | J35: ='6.MSW Diversions'!K38 -> 0 | M35: ='6.MSW Diversions'!N38 -> 0 | P35: ='6.MSW Diversions'!Q38 -> 0 | S35: ='6.MSW Diversions'!T38 -> 0 | V35: ='6.MSW Diversions'!W38 -> 0 | Y35: ='6.MSW Diversions'!Z38 -> 0 | AB35: ='6.MSW Diversions'!AC38 -> 0 | AE35: ='6.MSW Diversions'!AF38 -> 0 | AH35: ='6.MSW Diversions'!AI38 -> 0 | AK35: ='6.MSW Diversions'!AL38 -> 0 | AN35: ='6.MSW Diversions'!AO38 -> 0 | AQ35: ='6.MSW Diversions'!AR38 -> 0
C36: Other non-aluminum | D36: =+'4.MSW Comp. Analysis'!O52 ->  | E36: =D36*'5.MSW Detailed Analysis'!$F$19 ->  | F36: ='5.MSW Detailed Analysis'!G40 -> 0 | J36: ='6.MSW Diversions'!K39 -> 0 | M36: ='6.MSW Diversions'!N39 -> 0 | P36: ='6.MSW Diversions'!Q39 -> 0 | S36: ='6.MSW Diversions'!T39 -> 0 | V36: ='6.MSW Diversions'!W39 -> 0 | Y36: ='6.MSW Diversions'!Z39 -> 0 | AB36: ='6.MSW Diversions'!AC39 -> 0 | AE36: ='6.MSW Diversions'!AF39 -> 0 | AH36: ='6.MSW Diversions'!AI39 -> 0 | AK36: ='6.MSW Diversions'!AL39 -> 0 | AN36: ='6.MSW Diversions'!AO39 -> 0 | AQ36: ='6.MSW Diversions'!AR39 -> 0
B37: Other Non-Ferrous Metals (Total) | D37: =+'4.MSW Comp. Analysis'!O53 ->  | E37: =D37*'5.MSW Detailed Analysis'!$F$19 ->  | F37: ='5.MSW Detailed Analysis'!G41 -> 0 | J37: ='6.MSW Diversions'!K40 -> 0 | M37: ='6.MSW Diversions'!N40 -> 0 | P37: ='6.MSW Diversions'!Q40 -> 0 | S37: ='6.MSW Diversions'!T40 -> 0 | V37: ='6.MSW Diversions'!W40 -> 0 | Y37: ='6.MSW Diversions'!Z40 -> 0 | AB37: ='6.MSW Diversions'!AC40 -> 0 | AE37: ='6.MSW Diversions'!AF40 -> 0 | AH37: ='6.MSW Diversions'!AI40 -> 0 | AK37: ='6.MSW Diversions'!AL40 -> 0 | AN37: ='6.MSW Diversions'!AO40 -> 0 | AQ37: ='6.MSW Diversions'!AR40 -> 0
B38: Total Metals | D38: =+'4.MSW Comp. Analysis'!O54 ->  | E38: =D38*'5.MSW Detailed Analysis'!$F$19 ->  | F38: ='5.MSW Detailed Analysis'!G42 -> 0 | H38: =+H32+H33+H37 ->  | I38: =+I32+I33+I37 ->  | J38: =I38/H38 ->  | K38: =+K32+K33+K37 ->  | L38: =+L32+L33+L37 ->  | M38: =L38/K38 ->  | N38: =+N32+N33+N37 ->  | O38: =+O32+O33+O37 ->  | P38: =O38/N38 ->  | Q38: =+Q32+Q33+Q37 ->  | R38: =+R32+R33+R37 ->  | S38: =R38/Q38 ->  | T38: =+T32+T33+T37 ->  | U38: =+U32+U33+U37 ->  | V38: =U38/T38 ->  | W38: =+W32+W33+W37 ->  | X38: =+X32+X33+X37 ->  | Y38: =X38/W38 ->  | Z38: =+Z32+Z33+Z37 ->  | AA38: =+AA32+AA33+AA37 ->  | AB38: =AA38/Z38 ->  | AC38: =+AC32+AC33+AC37 ->  | AD38: =+AD32+AD33+AD37 ->  | AE38: =AD38/AC38 ->  | AF38: =+AF32+AF33+AF37 ->  | AG38: =+AG32+AG33+AG37 ->  | AH38: =AG38/AF38 ->  | AI38: =+AI32+AI33+AI37 ->  | AJ38: =+AJ32+AJ33+AJ37 ->  | AK38: =AJ38/AI38 ->  | AL38: =+AL32+AL33+AL37 ->  | AM38: =+AM32+AM33+AM37 ->  | AN38: =AM38/AL38 ->  | AO38: =+AO32+AO33+AO37 ->  | AP38: =+AP32+AP33+AP37 ->  | AQ38: =AP38/AO38 -> 
A39: Plastic | B39: PET Containers | D39: =+'4.MSW Comp. Analysis'!O55 ->  | E39: =D39*'5.MSW Detailed Analysis'!$F$19 ->  | F39: ='5.MSW Detailed Analysis'!G43 -> 0 | H39: =+$H$15*D39 ->  | I39: =H39*J39 ->  | J39: ='6.MSW Diversions'!K42 -> 0 | K39: =+$K$15*D39 ->  | L39: =K39*M39 ->  | M39: ='6.MSW Diversions'!N42 -> 0 | N39: =+$N$15*D39 ->  | O39: =N39*P39 ->  | P39: ='6.MSW Diversions'!Q42 -> 0 | Q39: =+$Q$15*D39 ->  | R39: =Q39*S39 ->  | S39: ='6.MSW Diversions'!T42 -> 0 | T39: =+$T$15*D39 ->  | U39: =T39*V39 ->  | V39: ='6.MSW Diversions'!W42 -> 0 | W39: =+$W$15*D39 ->  | X39: =W39*Y39 ->  | Y39: ='6.MSW Diversions'!Z42 -> 0 | Z39: =+$Z$15*D39 ->  | AA39: =Z39*AB39 ->  | AB39: ='6.MSW Diversions'!AC42 -> 0 | AC39: =+$AC$15*D39 ->  | AD39: =AC39*AE39 ->  | AE39: ='6.MSW Diversions'!AF42 -> 0 | AF39: =+$AF$15*D39 ->  | AG39: =AF39*AH39 ->  | AH39: ='6.MSW Diversions'!AI42 -> 0 | AI39: =+$AI$15*D39 ->  | AJ39: =AI39*AK39 ->  | AK39: ='6.MSW Diversions'!AL42 -> 0 | AL39: =+$AF$15*D39 ->  | AM39: =AL39*AN39 ->  | AN39: ='6.MSW Diversions'!AO42 -> 0 | AO39: =+$AI$15*D39 ->  | AP39: =AO39*AQ39 ->  | AQ39: ='6.MSW Diversions'!AR42 -> 0
B40: HDPE Containers | D40: =+'4.MSW Comp. Analysis'!O56 ->  | E40: =D40*'5.MSW Detailed Analysis'!$F$19 ->  | F40: ='5.MSW Detailed Analysis'!G44 -> 0 | J40: ='6.MSW Diversions'!K43 -> 0 | M40: ='6.MSW Diversions'!N43 -> 0 | P40: ='6.MSW Diversions'!Q43 -> 0 | S40: ='6.MSW Diversions'!T43 -> 0 | V40: ='6.MSW Diversions'!W34 ->  | Y40: ='6.MSW Diversions'!Z43 -> 0 | AB40: ='6.MSW Diversions'!AC43 -> 0 | AE40: ='6.MSW Diversions'!AF43 -> 0 | AH40: ='6.MSW Diversions'!AI43 -> 0 | AK40: ='6.MSW Diversions'!AL43 -> 0 | AL40: =+$AF$15*D40 ->  | AN40: ='6.MSW Diversions'!AO43 -> 0 | AO40: =+$AI$15*D40 ->  | AQ40: ='6.MSW Diversions'!AR43 -> 0
B41: Other Plastic (3-7) Containers | D41: =+'4.MSW Comp. Analysis'!O57 ->  | E41: =D41*'5.MSW Detailed Analysis'!$F$19 ->  | F41: ='5.MSW Detailed Analysis'!G45 -> 0 | J41: ='6.MSW Diversions'!K44 -> 0 | M41: ='6.MSW Diversions'!N44 -> 0 | P41: ='6.MSW Diversions'!Q44 -> 0 | S41: ='6.MSW Diversions'!T44 -> 0 | V41: ='6.MSW Diversions'!W35 -> 0 | Y41: ='6.MSW Diversions'!Z44 -> 0 | AB41: ='6.MSW Diversions'!AC44 -> 0 | AE41: ='6.MSW Diversions'!AF44 -> 0 | AH41: ='6.MSW Diversions'!AI44 -> 0 | AK41: ='6.MSW Diversions'!AL44 -> 0 | AN41: ='6.MSW Diversions'!AO44 -> 0 | AQ41: ='6.MSW Diversions'!AR44 -> 0
B42: Film Plastic | D42: =+'4.MSW Comp. Analysis'!O58 ->  | E42: =D42*'5.MSW Detailed Analysis'!$F$19 ->  | F42: ='5.MSW Detailed Analysis'!G46 -> 0 | J42: ='6.MSW Diversions'!K45 -> 0 | M42: ='6.MSW Diversions'!N45 -> 0 | P42: ='6.MSW Diversions'!Q45 -> 0 | S42: ='6.MSW Diversions'!T45 -> 0 | V42: ='6.MSW Diversions'!W36 -> 0 | Y42: ='6.MSW Diversions'!Z45 -> 0 | AB42: ='6.MSW Diversions'!AC45 -> 0 | AE42: ='6.MSW Diversions'!AF45 -> 0 | AH42: ='6.MSW Diversions'!AI45 -> 0 | AK42: ='6.MSW Diversions'!AL45 -> 0 | AN42: ='6.MSW Diversions'!AO45 -> 0 | AQ42: ='6.MSW Diversions'!AR45 -> 0
B43: Other Plastic | C43: Durables | D43: =+'4.MSW Comp. Analysis'!O59 ->  | E43: =D43*'5.MSW Detailed Analysis'!$F$19 ->  | F43: ='5.MSW Detailed Analysis'!G47 -> 0 | J43: ='6.MSW Diversions'!K46 -> 0 | M43: ='6.MSW Diversions'!N46 -> 0 | P43: ='6.MSW Diversions'!Q46 -> 0 | S43: ='6.MSW Diversions'!T46 -> 0 | V43: ='6.MSW Diversions'!W37 -> 0 | Y43: ='6.MSW Diversions'!Z46 -> 0 | AB43: ='6.MSW Diversions'!AC46 -> 0 | AE43: ='6.MSW Diversions'!AF46 -> 0 | AH43: ='6.MSW Diversions'!AI46 -> 0 | AK43: ='6.MSW Diversions'!AL46 -> 0 | AN43: ='6.MSW Diversions'!AO46 -> 0 | AQ43: ='6.MSW Diversions'!AR46 -> 0
C44: Non-Durables | D44: =+'4.MSW Comp. Analysis'!O60 ->  | E44: =D44*'5.MSW Detailed Analysis'!$F$19 ->  | F44: ='5.MSW Detailed Analysis'!G48 -> 0 | J44: ='6.MSW Diversions'!K47 -> 0 | M44: ='6.MSW Diversions'!N47 -> 0 | P44: ='6.MSW Diversions'!Q47 -> 0 | S44: ='6.MSW Diversions'!T47 -> 0 | V44: ='6.MSW Diversions'!W38 -> 0 | Y44: ='6.MSW Diversions'!Z47 -> 0 | AB44: ='6.MSW Diversions'!AC47 -> 0 | AE44: ='6.MSW Diversions'!AF47 -> 0 | AH44: ='6.MSW Diversions'!AI47 -> 0 | AK44: ='6.MSW Diversions'!AL47 -> 0 | AN44: ='6.MSW Diversions'!AO47 -> 0 | AQ44: ='6.MSW Diversions'!AR47 -> 0
C45: Packaging | D45: =+'4.MSW Comp. Analysis'!O61 ->  | E45: =D45*'5.MSW Detailed Analysis'!$F$19 ->  | F45: ='5.MSW Detailed Analysis'!G49 -> 0 | J45: ='6.MSW Diversions'!K48 -> 0 | M45: ='6.MSW Diversions'!N48 -> 0 | P45: ='6.MSW Diversions'!Q48 -> 0 | S45: ='6.MSW Diversions'!T48 -> 0 | V45: ='6.MSW Diversions'!W48 -> 0 | Y45: ='6.MSW Diversions'!Z48 -> 0 | AB45: ='6.MSW Diversions'!AC48 -> 0 | AE45: ='6.MSW Diversions'!AF48 -> 0 | AH45: ='6.MSW Diversions'!AI48 -> 0 | AK45: ='6.MSW Diversions'!AL48 -> 0 | AN45: ='6.MSW Diversions'!AO48 -> 0 | AQ45: ='6.MSW Diversions'!AR48 -> 0
B46: Other Plastic (Total) | D46: =+'4.MSW Comp. Analysis'!O62 ->  | E46: =D46*'5.MSW Detailed Analysis'!$F$19 ->  | F46: ='5.MSW Detailed Analysis'!G50 -> 0 | J46: ='6.MSW Diversions'!K49 -> 0 | M46: ='6.MSW Diversions'!N49 -> 0 | P46: ='6.MSW Diversions'!Q49 -> 0 | S46: ='6.MSW Diversions'!T49 -> 0 | V46: ='6.MSW Diversions'!W49 -> 0 | Y46: ='6.MSW Diversions'!Z49 -> 0 | AB46: ='6.MSW Diversions'!AC49 -> 0 | AE46: ='6.MSW Diversions'!AF49 -> 0 | AH46: ='6.MSW Diversions'!AI49 -> 0 | AK46: ='6.MSW Diversions'!AL49 -> 0 | AN46: ='6.MSW Diversions'!AO49 -> 0 | AQ46: ='6.MSW Diversions'!AR49 -> 0
B47: Total Plastics | D47: =+'4.MSW Comp. Analysis'!O63 ->  | E47: =D47*'5.MSW Detailed Analysis'!$F$19 ->  | F47: ='5.MSW Detailed Analysis'!G51 -> 0 | G47: =F47/E47 ->  | H47: =+H39+H40+H41+H42+H46 ->  | I47: =+I39+I40+I41+I42+I46 ->  | J47: =I47/H47 ->  | K47: =+K39+K40+K41+K42+K46 ->  | L47: =+L39+L40+L41+L42+L46 ->  | M47: =L47/K47 ->  | N47: =+N39+N40+N41+N42+N46 ->  | O47: =+O39+O40+O41+O42+O46 ->  | P47: =O47/N47 ->  | Q47: =+Q39+Q40+Q41+Q42+Q46 ->  | R47: =+R39+R40+R41+R42+R46 ->  | S47: =R47/Q47 ->  | T47: =+T39+T40+T41+T42+T46 ->  | U47: =+U39+U40+U41+U42+U46 ->  | V47: =U47/T47 ->  | W47: =+W39+W40+W41+W42+W46 ->  | X47: =+X39+X40+X41+X42+X46 ->  | Y47: =X47/W47 ->  | Z47: =+Z39+Z40+Z41+Z42+Z46 ->  | AA47: =+AA39+AA40+AA41+AA42+AA46 ->  | AB47: =AA47/Z47 ->  | AC47: =+AC39+AC40+AC41+AC42+AC46 ->  | AD47: =+AD39+AD40+AD41+AD42+AD46 ->  | AE47: =AD47/AC47 ->  | AF47: =+AF39+AF40+AF41+AF42+AF46 ->  | AG47: =+AG39+AG40+AG41+AG42+AG46 ->  | AH47: =AG47/AF47 ->  | AI47: =+AI39+AI40+AI41+AI42+AI46 ->  | AJ47: =+AJ39+AJ40+AJ41+AJ42+AJ46 ->  | AK47: =AJ47/AI47 ->  | AL47: =+AL39+AL40+AL41+AL42+AL46 ->  | AM47: =+AM39+AM40+AM41+AM42+AM46 ->  | AN47: =AM47/AL47 ->  | AO47: =+AO39+AO40+AO41+AO42+AO46 ->  | AP47: =+AP39+AP40+AP41+AP42+AP46 ->  | AQ47: =AP47/AO47 -> 
A48: Glass | B48: Glass Bottles, Jars and Containers | D48: =+'4.MSW Comp. Analysis'!O64 ->  | E48: =D48*'5.MSW Detailed Analysis'!$F$19 ->  | F48: ='5.MSW Detailed Analysis'!G52 -> 0 | G48: =F48/E48 ->  | H48: =+$H$15*D48 ->  | I48: =H48*J48 ->  | J48: ='6.MSW Diversions'!K51 -> 0 | K48: =+$K$15*D48 ->  | L48: =K48*M48 ->  | M48: ='6.MSW Diversions'!N51 -> 0 | N48: =+$N$15*D48 ->  | O48: =N48*P48 ->  | P48: ='6.MSW Diversions'!Q51 -> 0 | Q48: =+$Q$15*D48 ->  | R48: =Q48*S48 ->  | S48: ='6.MSW Diversions'!T51 -> 0 | T48: =+$T$15*D48 ->  | U48: =T48*V48 ->  | V48: ='6.MSW Diversions'!W51 -> 0 | W48: =+$W$15*D48 ->  | X48: =W48*Y48 ->  | Y48: ='6.MSW Diversions'!Z51 -> 0 | Z48: =+$Z$15*D48 ->  | AA48: =Z48*AB48 ->  | AB48: ='6.MSW Diversions'!AC51 -> 0 | AC48: =+$AC$15*D48 ->  | AD48: =AC48*AE48 ->  | AE48: ='6.MSW Diversions'!AF51 -> 0 | AF48: =+$AF$15*D48 ->  | AG48: =AF48*AH48 ->  | AH48: ='6.MSW Diversions'!AI51 -> 0 | AI48: =+$AI$15*D48 ->  | AJ48: =AI48*AK48 ->  | AK48: ='6.MSW Diversions'!AL51 -> 0 | AL48: =+$AF$15*D48 ->  | AM48: =AL48*AN48 ->  | AN48: ='6.MSW Diversions'!AO51 -> 0 | AO48: =+$AI$15*D48 ->  | AP48: =AO48*AQ48 ->  | AQ48: ='6.MSW Diversions'!AR51 -> 0
B49: Other Glass (Flat glass, dishware, light bulbs, etc.) | D49: =+'4.MSW Comp. Analysis'!O65 ->  | E49: =D49*'5.MSW Detailed Analysis'!$F$19 ->  | F49: ='5.MSW Detailed Analysis'!G53 -> 0 | H49: =+$H$15*D49 ->  | I49: =H49*J49 ->  | J49: ='6.MSW Diversions'!K52 -> 0 | K49: =+$K$15*D49 ->  | L49: =K49*M49 ->  | M49: ='6.MSW Diversions'!N52 -> 0 | N49: =+$N$15*D49 ->  | O49: =N49*P49 ->  | P49: ='6.MSW Diversions'!Q52 -> 0 | Q49: =+$Q$15*D49 ->  | R49: =Q49*S49 ->  | S49: ='6.MSW Diversions'!T52 -> 0 | T49: =+$T$15*D49 ->  | U49: =T49*V49 ->  | V49: ='6.MSW Diversions'!W52 -> 0 | W49: =+$W$15*D49 ->  | X49: =W49*Y49 ->  | Y49: ='6.MSW Diversions'!Z52 -> 0 | Z49: =+$Z$15*D49 ->  | AA49: =Z49*AB49 ->  | AB49: ='6.MSW Diversions'!AC52 -> 0 | AC49: =+$AC$15*D49 ->  | AD49: =AC49*AE49 ->  | AE49: ='6.MSW Diversions'!AF52 -> 0 | AF49: =+$AF$15*D49 ->  | AG49: =AF49*AH49 ->  | AH49: ='6.MSW Diversions'!AI52 -> 0 | AI49: =+$AI$15*D49 ->  | AJ49: =AI49*AK49 ->  | AK49: ='6.MSW Diversions'!AL52 -> 0 | AL49: =+$AF$15*D49 ->  | AM49: =AL49*AN49 ->  | AN49: ='6.MSW Diversions'!AO52 -> 0 | AO49: =+$AI$15*D49 ->  | AP49: =AO49*AQ49 ->  | AQ49: ='6.MSW Diversions'!AR52 -> 0
B50: Total Glass | D50: =+'4.MSW Comp. Analysis'!O66 ->  | E50: =D50*'5.MSW Detailed Analysis'!$F$19 ->  | F50: ='5.MSW Detailed Analysis'!G54 -> 0 | H50: =+H48+H49 ->  | I50: =+I48+I49 ->  | J50: =I50/H50 ->  | K50: =+K48+K49 ->  | L50: =+L48+L49 ->  | M50: =L50/K50 ->  | N50: =+N48+N49 ->  | O50: =+O48+O49 ->  | P50: =O50/N50 ->  | Q50: =+Q48+Q49 ->  | R50: =+R48+R49 ->  | S50: =R50/Q50 ->  | T50: =+T48+T49 ->  | U50: =+U48+U49 ->  | V50: =U50/T50 ->  | W50: =+W48+W49 ->  | X50: =+X48+X49 ->  | Y50: =X50/W50 ->  | Z50: =+Z48+Z49 ->  | AA50: =+AA48+AA49 ->  | AB50: =AA50/Z50 ->  | AC50: =+AC48+AC49 ->  | AD50: =+AD48+AD49 ->  | AE50: =AD50/AC50 ->  | AF50: =+AF48+AF49 ->  | AG50: =+AG48+AG49 ->  | AH50: =AG50/AF50 ->  | AI50: =+AI48+AI49 ->  | AJ50: =+AJ48+AJ49 ->  | AK50: =AJ50/AI50 ->  | AL50: =+AL48+AL49 ->  | AM50: =+AM48+AM49 ->  | AN50: =AM50/AL50 ->  | AO50: =+AO48+AO49 ->  | AP50: =+AP48+AP49 ->  | AQ50: =AP50/AO50 -> 
A51: Organics | B51: Food Scraps | D51: =+'4.MSW Comp. Analysis'!O67 ->  | E51: =D51*'5.MSW Detailed Analysis'!$F$19 ->  | F51: ='5.MSW Detailed Analysis'!G55 -> 0 | H51: =+$H$15*D51 ->  | I51: =H51*J51 ->  | J51: ='6.MSW Diversions'!K54 -> 0 | K51: =+$K$15*D51 ->  | L51: =K51*M51 ->  | M51: ='6.MSW Diversions'!N54 -> 0 | N51: =+$N$15*D51 ->  | O51: =N51*P51 ->  | P51: ='6.MSW Diversions'!Q54 -> 0 | Q51: =+$Q$15*D51 ->  | R51: =Q51*S51 ->  | S51: ='6.MSW Diversions'!T54 -> 0 | T51: =+$T$15*D51 ->  | U51: =T51*V51 ->  | V51: ='6.MSW Diversions'!W54 -> 0 | W51: =+$W$15*D51 ->  | X51: =W51*Y51 ->  | Y51: ='6.MSW Diversions'!Z54 -> 0 | Z51: =+$Z$15*D51 ->  | AA51: =Z51*AB51 ->  | AB51: ='6.MSW Diversions'!AC54 -> 0 | AC51: =+$AC$15*D51 ->  | AD51: =AC51*AE51 ->  | AE51: ='6.MSW Diversions'!AF54 -> 0 | AF51: =+$AF$15*D51 ->  | AG51: =AF51*AH51 ->  | AH51: ='6.MSW Diversions'!AI54 -> 0 | AI51: =+$AI$15*D51 ->  | AJ51: =AI51*AK51 ->  | AK51: ='6.MSW Diversions'!AL54 -> 0 | AL51: =+$AF$15*D51 ->  | AM51: =AL51*AN51 ->  | AN51: ='6.MSW Diversions'!AO54 -> 0 | AO51: =+$AI$15*D51 ->  | AP51: =AO51*AQ51 ->  | AQ51: ='6.MSW Diversions'!AR54 -> 0
B52: Leaves and Grass / Pruning and Trimmings | D52: =+'4.MSW Comp. Analysis'!O68 ->  | E52: =D52*'5.MSW Detailed Analysis'!$F$19 ->  | F52: ='5.MSW Detailed Analysis'!G56 -> 0 | H52: =+$H$15*D52 ->  | I52: =H52*J52 ->  | J52: ='6.MSW Diversions'!K55 -> 0 | K52: =+$K$15*D52 ->  | L52: =K52*M52 ->  | M52: ='6.MSW Diversions'!N55 -> 0 | N52: =+$N$15*D52 ->  | O52: =N52*P52 ->  | P52: ='6.MSW Diversions'!Q55 -> 0 | Q52: =+$Q$15*D52 ->  | R52: =Q52*S52 ->  | S52: ='6.MSW Diversions'!T55 -> 0 | T52: =+$T$15*D52 ->  | U52: =T52*V52 ->  | V52: ='6.MSW Diversions'!W55 -> 0 | W52: =+$W$15*D52 ->  | X52: =W52*Y52 ->  | Y52: ='6.MSW Diversions'!Z55 -> 0 | Z52: =+$Z$15*D52 ->  | AA52: =Z52*AB52 ->  | AB52: ='6.MSW Diversions'!AC55 -> 0 | AC52: =+$AC$15*D52 ->  | AD52: =AC52*AE52 ->  | AE52: ='6.MSW Diversions'!AF55 -> 0 | AF52: =+$AF$15*D52 ->  | AG52: =AF52*AH52 ->  | AH52: ='6.MSW Diversions'!AI55 -> 0 | AI52: =+$AI$15*D52 ->  | AJ52: =AI52*AK52 ->  | AK52: ='6.MSW Diversions'!AL55 -> 0 | AL52: =+$AF$15*D52 ->  | AM52: =AL52*AN52 ->  | AN52: ='6.MSW Diversions'!AO55 -> 0 | AO52: =+$AI$15*D52 ->  | AP52: =AO52*AQ52 ->  | AQ52: ='6.MSW Diversions'!AR55 -> 0
B53: Total Organics | D53: =+'4.MSW Comp. Analysis'!O69 ->  | E53: =D53*'5.MSW Detailed Analysis'!$F$19 ->  | F53: ='5.MSW Detailed Analysis'!G57 -> 0 | H53: =+H51+H52 ->  | I53: =+I51+I52 ->  | J53: =I53/H53 ->  | K53: =+K51+K52 ->  | L53: =+L51+L52 ->  | M53: =L53/K53 ->  | N53: =+N51+N52 ->  | O53: =+O51+O52 ->  | P53: =O53/N53 ->  | Q53: =+Q51+Q52 ->  | R53: =+R51+R52 ->  | S53: =R53/Q53 ->  | T53: =+T51+T52 ->  | U53: =+U51+U52 ->  | V53: =U53/T53 ->  | W53: =+W51+W52 ->  | X53: =+X51+X52 ->  | Y53: =X53/W53 ->  | Z53: =+Z51+Z52 ->  | AA53: =+AA51+AA52 ->  | AB53: =AA53/Z53 ->  | AC53: =+AC51+AC52 ->  | AD53: =+AD51+AD52 ->  | AE53: =AD53/AC53 ->  | AF53: =+AF51+AF52 ->  | AG53: =+AG51+AG52 ->  | AH53: =AG53/AF53 ->  | AI53: =+AI51+AI52 ->  | AJ53: =+AJ51+AJ52 ->  | AK53: =AJ53/AI53 ->  | AL53: =+AL51+AL52 ->  | AM53: =+AM51+AM52 ->  | AN53: =AM53/AL53 ->  | AO53: =+AO51+AO52 ->  | AP53: =+AP51+AP52 ->  | AQ53: =AP53/AO53 -> 
A54: Textiles | B54: Clothing Footwear, Towels, Sheets | D54: =+'4.MSW Comp. Analysis'!O70 ->  | E54: =D54*'5.MSW Detailed Analysis'!$F$19 ->  | F54: ='5.MSW Detailed Analysis'!G58 -> 0 | H54: =+$H$15*D54 ->  | I54: =H54*J54 ->  | J54: ='6.MSW Diversions'!K57 -> 0 | K54: =+$K$15*D54 ->  | L54: =K54*M54 ->  | M54: ='6.MSW Diversions'!N57 -> 0 | N54: =+$N$15*D54 ->  | O54: =N54*P54 ->  | P54: ='6.MSW Diversions'!Q57 -> 0 | Q54: =+$Q$15*D54 ->  | R54: =Q54*S54 ->  | S54: ='6.MSW Diversions'!T57 -> 0 | T54: =+$T$15*D54 ->  | U54: =T54*V54 ->  | V54: ='6.MSW Diversions'!W57 -> 0 | W54: =+$W$15*D54 ->  | X54: =W54*Y54 ->  | Y54: ='6.MSW Diversions'!Z57 -> 0 | Z54: =+$Z$15*D54 ->  | AA54: =Z54*AB54 ->  | AB54: ='6.MSW Diversions'!AC57 -> 0 | AC54: =+$AC$15*D54 ->  | AD54: =AC54*AE54 ->  | AE54: ='6.MSW Diversions'!AF57 -> 0 | AF54: =+$AF$15*D54 ->  | AG54: =AF54*AH54 ->  | AH54: ='6.MSW Diversions'!AI57 -> 0 | AI54: =+$AI$15*D54 ->  | AJ54: =AI54*AK54 ->  | AK54: ='6.MSW Diversions'!AL57 -> 0 | AL54: =+$AF$15*D54 ->  | AM54: =AL54*AN54 ->  | AN54: ='6.MSW Diversions'!AO57 -> 0 | AO54: =+$AI$15*D54 ->  | AP54: =AO54*AQ54 ->  | AQ54: ='6.MSW Diversions'!AR57 -> 0
B55: Carpet | D55: =+'4.MSW Comp. Analysis'!O71 ->  | E55: =D55*'5.MSW Detailed Analysis'!$F$19 ->  | F55: ='5.MSW Detailed Analysis'!G59 -> 0 | H55: =+$H$15*D55 ->  | I55: =H55*J55 ->  | J55: ='6.MSW Diversions'!K58 -> 0 | K55: =+$K$15*D55 ->  | L55: =K55*M55 ->  | M55: ='6.MSW Diversions'!N58 -> 0 | N55: =+$N$15*D55 ->  | O55: =N55*P55 ->  | P55: ='6.MSW Diversions'!Q58 -> 0 | Q55: =+$Q$15*D55 ->  | R55: =Q55*S55 ->  | S55: ='6.MSW Diversions'!T58 -> 0 | T55: =+$T$15*D55 ->  | U55: =T55*V55 ->  | V55: ='6.MSW Diversions'!W58 -> 0 | W55: =+$W$15*D55 ->  | X55: =W55*Y55 ->  | Y55: ='6.MSW Diversions'!Z58 -> 0 | Z55: =+$Z$15*D55 ->  | AA55: =Z55*AB55 ->  | AB55: ='6.MSW Diversions'!AC58 -> 0 | AC55: =+$AC$15*D55 ->  | AD55: =AC55*AE55 ->  | AE55: ='6.MSW Diversions'!AF58 -> 0 | AF55: =+$AF$15*D55 ->  | AG55: =AF55*AH55 ->  | AH55: ='6.MSW Diversions'!AI58 -> 0 | AI55: =+$AI$15*D55 ->  | AJ55: =AI55*AK55 ->  | AK55: ='6.MSW Diversions'!AL58 -> 0 | AL55: =+$AF$15*D55 ->  | AM55: =AL55*AN55 ->  | AN55: ='6.MSW Diversions'!AO58 -> 0 | AO55: =+$AI$15*D55 ->  | AP55: =AO55*AQ55 ->  | AQ55: ='6.MSW Diversions'!AR58 -> 0
B56: Total Textiles | D56: =+'4.MSW Comp. Analysis'!O72 ->  | E56: =D56*'5.MSW Detailed Analysis'!$F$19 ->  | F56: ='5.MSW Detailed Analysis'!G60 -> 0 | H56: =+H54+H55 ->  | I56: =+I54+I55 ->  | J56: =I56/H56 ->  | K56: =+K54+K55 ->  | L56: =+L54+L55 ->  | M56: =L56/K56 ->  | N56: =+N54+N55 ->  | O56: =+O54+O55 ->  | P56: =O56/N56 ->  | Q56: =+Q54+Q55 ->  | R56: =+R54+R55 ->  | S56: =R56/Q56 ->  | T56: =+T54+T55 ->  | U56: =+U54+U55 ->  | V56: =U56/T56 ->  | W56: =+W54+W55 ->  | X56: =+X54+X55 ->  | Y56: =X56/W56 ->  | Z56: =+Z54+Z55 ->  | AA56: =+AA54+AA55 ->  | AB56: =AA56/Z56 ->  | AC56: =+AC54+AC55 ->  | AD56: =+AD54+AD55 ->  | AE56: =AD56/AC56 ->  | AF56: =+AF54+AF55 ->  | AG56: =+AG54+AG55 ->  | AH56: =AG56/AF56 ->  | AI56: =+AI54+AI55 ->  | AJ56: =+AJ54+AJ55 ->  | AK56: =AJ56/AI56 ->  | AL56: =+AL54+AL55 ->  | AM56: =+AM54+AM55 ->  | AN56: =AM56/AL56 ->  | AO56: =+AO54+AO55 ->  | AP56: =+AP54+AP55 ->  | AQ56: =AP56/AO56 -> 
A57: Wood | B57: Total Wood (Pallets, crates, adulterated and non-adulterated) | D57: =+'4.MSW Comp. Analysis'!O73 ->  | E57: =D57*'5.MSW Detailed Analysis'!$F$19 ->  | F57: ='5.MSW Detailed Analysis'!G61 -> 0 | H57: =+$H$15*D57 ->  | I57: =H57*J57 ->  | J57: ='6.MSW Diversions'!K60 -> 0 | K57: =+$K$15*D57 ->  | L57: =K57*M57 ->  | M57: ='6.MSW Diversions'!N60 -> 0 | N57: =+$N$15*D57 ->  | O57: =P57*N57 ->  | P57: ='6.MSW Diversions'!Q60 -> 0 | Q57: =+$Q$15*D57 ->  | R57: =Q57*S57 ->  | S57: ='6.MSW Diversions'!T60 -> 0 | T57: =+$T$15*D57 ->  | U57: =T57*V57 ->  | V57: ='6.MSW Diversions'!W60 -> 0 | W57: =+$W$15*D57 ->  | X57: =W57*Y57 ->  | Y57: ='6.MSW Diversions'!Z60 -> 0 | Z57: =+$Z$15*D57 ->  | AA57: =Z57*AB57 ->  | AB57: ='6.MSW Diversions'!AC60 -> 0 | AC57: =+$AC$15*D57 ->  | AD57: =AC57*AE57 ->  | AE57: ='6.MSW Diversions'!AF60 -> 0 | AF57: =+$AF$15*D57 ->  | AG57: =AF57*AH57 ->  | AH57: ='6.MSW Diversions'!AI60 -> 0 | AI57: =+$AI$15*D57 ->  | AJ57: =AI57*AK57 ->  | AK57: ='6.MSW Diversions'!AL60 -> 0 | AL57: =+$AF$15*D57 ->  | AM57: =AL57*AN57 ->  | AN57: ='6.MSW Diversions'!AO60 -> 0 | AO57: =+$AI$15*D57 ->  | AP57: =AO57*AQ57 ->  | AQ57: ='6.MSW Diversions'!AR60 -> 0
A58: Miscellaneous | B58: DIY Construction & Renovation Materials | D58: =+'4.MSW Comp. Analysis'!O74 ->  | E58: =D58*'5.MSW Detailed Analysis'!$F$19 ->  | F58: ='5.MSW Detailed Analysis'!G62 -> 0 | J58: ='6.MSW Diversions'!K61 -> 0 | M58: ='6.MSW Diversions'!N61 -> 0 | P58: ='6.MSW Diversions'!Q61 -> 0 | S58: ='6.MSW Diversions'!T61 -> 0 | V58: ='6.MSW Diversions'!W61 -> 0 | Y58: ='6.MSW Diversions'!Z61 -> 0 | AB58: ='6.MSW Diversions'!AC61 -> 0 | AE58: ='6.MSW Diversions'!AF61 -> 0 | AH58: ='6.MSW Diversions'!AI61 -> 0 | AK58: ='6.MSW Diversions'!AL61 -> 0 | AL58: =+$AF$15*D58 ->  | AN58: ='6.MSW Diversions'!AO61 -> 0 | AO58: =+$AI$15*D58 ->  | AQ58: ='6.MSW Diversions'!AR61 -> 0
B59: Diapers | D59: =+'4.MSW Comp. Analysis'!O75 ->  | E59: =D59*'5.MSW Detailed Analysis'!$F$19 ->  | F59: ='5.MSW Detailed Analysis'!G63 -> 0 | J59: ='6.MSW Diversions'!K62 -> 0 | M59: ='6.MSW Diversions'!N62 -> 0 | P59: ='6.MSW Diversions'!Q62 -> 0 | S59: ='6.MSW Diversions'!T62 -> 0 | V59: ='6.MSW Diversions'!W62 -> 0 | Y59: ='6.MSW Diversions'!Z62 -> 0 | AB59: ='6.MSW Diversions'!AC62 -> 0 | AE59: ='6.MSW Diversions'!AF62 -> 0 | AH59: ='6.MSW Diversions'!AI62 -> 0 | AK59: ='6.MSW Diversions'!AL62 -> 0 | AL59: =+$AF$15*D59 ->  | AN59: ='6.MSW Diversions'!AO62 -> 0 | AO59: =+$AI$15*D59 ->  | AQ59: ='6.MSW Diversions'!AR62 -> 0
B60: Electronics | D60: =+'4.MSW Comp. Analysis'!O76 ->  | E60: =D60*'5.MSW Detailed Analysis'!$F$19 ->  | F60: ='5.MSW Detailed Analysis'!G64 -> 0 | J60: ='6.MSW Diversions'!K63 -> 0 | M60: ='6.MSW Diversions'!N63 -> 0 | P60: ='6.MSW Diversions'!Q63 -> 0 | S60: ='6.MSW Diversions'!T63 -> 0 | V60: ='6.MSW Diversions'!W63 -> 0 | Y60: ='6.MSW Diversions'!Z63 -> 0 | AB60: ='6.MSW Diversions'!AC63 -> 0 | AE60: ='6.MSW Diversions'!AF63 -> 0 | AH60: ='6.MSW Diversions'!AI63 -> 0 | AK60: ='6.MSW Diversions'!AL63 -> 0 | AN60: ='6.MSW Diversions'!AO63 -> 0 | AQ60: ='6.MSW Diversions'!AR63 -> 0
B61: Tires | D61: =+'4.MSW Comp. Analysis'!O77 ->  | E61: =D61*'5.MSW Detailed Analysis'!$F$19 ->  | F61: ='5.MSW Detailed Analysis'!G65 -> 0 | J61: ='6.MSW Diversions'!K64 -> 0 | M61: ='6.MSW Diversions'!N64 -> 0 | P61: ='6.MSW Diversions'!Q64 -> 0 | S61: ='6.MSW Diversions'!T64 -> 0 | V61: ='6.MSW Diversions'!W64 -> 0 | Y61: ='6.MSW Diversions'!Z64 -> 0 | AB61: ='6.MSW Diversions'!AC64 -> 0 | AE61: ='6.MSW Diversions'!AF64 -> 0 | AH61: ='6.MSW Diversions'!AI64 -> 0 | AK61: ='6.MSW Diversions'!AL64 -> 0 | AN61: ='6.MSW Diversions'!AO64 -> 0 | AQ61: ='6.MSW Diversions'!AR64 -> 0
B62: HHW | D62: =+'4.MSW Comp. Analysis'!O78 ->  | E62: =D62*'5.MSW Detailed Analysis'!$F$19 ->  | F62: ='5.MSW Detailed Analysis'!G66 -> 0 | J62: ='6.MSW Diversions'!K65 -> 0 | M62: ='6.MSW Diversions'!N65 -> 0 | P62: ='6.MSW Diversions'!Q65 -> 0 | S62: ='6.MSW Diversions'!T65 -> 0 | V62: ='6.MSW Diversions'!W65 -> 0 | Y62: ='6.MSW Diversions'!Z65 -> 0 | AB62: ='6.MSW Diversions'!AC65 -> 0 | AE62: ='6.MSW Diversions'!AF65 -> 0 | AH62: ='6.MSW Diversions'!AI65 -> 0 | AK62: ='6.MSW Diversions'!AL65 -> 0 | AN62: ='6.MSW Diversions'!AO65 -> 0 | AQ62: ='6.MSW Diversions'!AR65 -> 0
B63: Soils and Fines | D63: =+'4.MSW Comp. Analysis'!O79 ->  | E63: =D63*'5.MSW Detailed Analysis'!$F$19 ->  | F63: ='5.MSW Detailed Analysis'!G67 -> 0 | J63: ='6.MSW Diversions'!K66 -> 0 | M63: ='6.MSW Diversions'!N66 -> 0 | P63: ='6.MSW Diversions'!Q66 -> 0 | S63: ='6.MSW Diversions'!T66 -> 0 | V63: ='6.MSW Diversions'!W66 -> 0 | Y63: ='6.MSW Diversions'!Z66 -> 0 | AB63: ='6.MSW Diversions'!AC66 -> 0 | AE63: ='6.MSW Diversions'!AF66 -> 0 | AH63: ='6.MSW Diversions'!AI66 -> 0 | AK63: ='6.MSW Diversions'!AL66 -> 0 | AN63: ='6.MSW Diversions'!AO66 -> 0 | AQ63: ='6.MSW Diversions'!AR66 -> 0
B64: Other Composite Materials - Durable and/or inert | D64: =+'4.MSW Comp. Analysis'!O80 ->  | E64: =D64*'5.MSW Detailed Analysis'!$F$19 ->  | F64: ='5.MSW Detailed Analysis'!G68 -> 0 | J64: ='6.MSW Diversions'!K67 -> 0 | M64: ='6.MSW Diversions'!N67 -> 0 | P64: ='6.MSW Diversions'!Q67 -> 0 | S64: ='6.MSW Diversions'!T67 -> 0 | V64: ='6.MSW Diversions'!W67 -> 0 | Y64: ='6.MSW Diversions'!Z67 -> 0 | AB64: ='6.MSW Diversions'!AC67 -> 0 | AE64: ='6.MSW Diversions'!AF67 -> 0 | AH64: ='6.MSW Diversions'!AI67 -> 0 | AK64: ='6.MSW Diversions'!AL67 -> 0 | AN64: ='6.MSW Diversions'!AO67 -> 0 | AQ64: ='6.MSW Diversions'!AR67 -> 0
B65: Total Miscellaneous | D65: =+'4.MSW Comp. Analysis'!O81 ->  | E65: =D65*'5.MSW Detailed Analysis'!$F$19 ->  | F65: ='5.MSW Detailed Analysis'!G69 -> 0 | H65: =SUM(H58:H64) ->  | I65: =SUM(I58:I64) ->  | J65: =I65/H65 ->  | K65: =SUM(K58:K64) ->  | L65: =SUM(L58:L64) ->  | M65: =L65/K65 ->  | N65: =SUM(N58:N64) ->  | O65: =SUM(O58:O64) ->  | P65: =O65/N65 ->  | Q65: =SUM(Q58:Q64) ->  | R65: =SUM(R58:R64) ->  | S65: =R65/Q65 ->  | T65: =SUM(T58:T64) ->  | U65: =SUM(U58:U64) ->  | V65: =U65/T65 ->  | W65: =SUM(W58:W64) ->  | X65: =SUM(X58:X64) ->  | Y65: =X65/W65 ->  | Z65: =SUM(Z58:Z64) ->  | AA65: =SUM(AA58:AA64) ->  | AB65: =AA65/Z65 ->  | AC65: =SUM(AC58:AC64) ->  | AD65: =SUM(AD58:AD64) ->  | AE65: =AD65/AC65 ->  | AF65: =SUM(AF58:AF64) ->  | AG65: =SUM(AG58:AG64) ->  | AH65: =AG65/AF65 ->  | AI65: =SUM(AI58:AI64) ->  | AJ65: =SUM(AJ58:AJ64) ->  | AK65: =AJ65/AI65 ->  | AL65: =SUM(AL58:AL64) ->  | AM65: =SUM(AM58:AM64) ->  | AN65: =AM65/AL65 ->  | AO65: =SUM(AO58:AO64) ->  | AP65: =SUM(AP58:AP64) ->  | AQ65: =AP65/AO65 -> 
E68: =+E13 ->  | H68: =+H13 ->  | K68: =+K13 ->  | N68: =+N13 ->  | Q68: =+Q13 ->  | T68: =+T13 ->  | W68: =+W13 ->  | Z68: =+Z13 ->  | AC68: =+AC13 ->  | AF68: =+AF13 ->  | AI68: =+AI13 ->  | AL68: =+AL13 ->  | AO68: =+AO13 -> 
B69: Population | E69: =+'2.Waste Generation Rate'!X57 ->  | H69: =+'3.PU&MSW Projections'!G56 ->  | K69: =+'3.PU&MSW Projections'!H56 ->  | N69: =+'3.PU&MSW Projections'!I56 ->  | Q69: =+'3.PU&MSW Projections'!J56 ->  | T69: =+'3.PU&MSW Projections'!K56 ->  | W69: =+'3.PU&MSW Projections'!L56 ->  | Z69: =+'3.PU&MSW Projections'!M56 ->  | AC69: =+'3.PU&MSW Projections'!N56 ->  | AF69: =+'3.PU&MSW Projections'!O56 ->  | AI69: =+'3.PU&MSW Projections'!P56 ->  | AL69: =+'3.PU&MSW Projections'!Q56 ->  | AO69: =+'3.PU&MSW Projections'!R56 -> 
B70: MSW Generated (tons) | E70: =+E15 -> 0 | H70: =+H15 ->  | K70: =+K15 ->  | N70: =+N15 ->  | Q70: =+Q15 ->  | T70: =+T15 ->  | W70: =+W15 ->  | Z70: =+Z15 ->  | AC70: =+AC15 ->  | AF70: =+AF15 ->  | AI70: =+AI15 ->  | AL70: =+AL15 ->  | AO70: =+AO15 -> 
B71: Per Capita MSW Generated (lbs/person/year) | E71: =+((E70*2000)/(E69)) ->  | H71: =+((H70*2000)/(H69)) ->  | K71: =+((K70*2000)/(K69)) ->  | N71: =+((N70*2000)/(N69)) ->  | Q71: =+((Q70*2000)/(Q69)) ->  | T71: =+((T70*2000)/(T69)) ->  | W71: =+((W70*2000)/(W69)) ->  | Z71: =+((Z70*2000)/(Z69)) ->  | AC71: =+((AC70*2000)/(AC69)) ->  | AF71: =+((AF70*2000)/(AF69)) ->  | AI71: =+((AI70*2000)/(AI69)) ->  | AL71: =+((AL70*2000)/(AL69)) ->  | AO71: =+((AO70*2000)/(AO69)) -> 
B73: MSW Diverted (tons) | E73: =+F15 -> 0 | H73: =+I15 ->  | K73: =+L15 ->  | N73: =+O15 ->  | Q73: =+R15 ->  | T73: =+U15 ->  | W73: =+X15 ->  | Z73: =+AA15 ->  | AC73: =+AD15 ->  | AF73: =+AG15 ->  | AI73: =+AJ15 ->  | AL73: =+AM15 ->  | AO73: =+AP15 -> 
B74: Per Capita MSW Diverted (lbs/person/year) | E74: =+(E73*2000)/E69 ->  | H74: =+(H73*2000)/H69 ->  | K74: =+(K73*2000)/K69 ->  | N74: =+(N73*2000)/N69 ->  | Q74: =+(Q73*2000)/Q69 ->  | T74: =+(T73*2000)/T69 ->  | W74: =+(W73*2000)/W69 ->  | Z74: =+(Z73*2000)/Z69 ->  | AC74: =+(AC73*2000)/AC69 ->  | AF74: =+(AF73*2000)/AF69 ->  | AI74: =+(AI73*2000)/AI69 ->  | AL74: =+(AL73*2000)/AL69 ->  | AO74: =+(AO73*2000)/AO69 -> 
B76: MSW Disposed (tons) | E76: =+E70-E73 -> 0 | H76: =+H70-H73 ->  | K76: =+K70-K73 ->  | N76: =+N70-N73 ->  | Q76: =+Q70-Q73 ->  | T76: =+T70-T73 ->  | W76: =+W70-W73 ->  | Z76: =+Z70-Z73 ->  | AC76: =+AC70-AC73 ->  | AF76: =+AF70-AF73 ->  | AI76: =+AI70-AI73 ->  | AL76: =+AL70-AL73 ->  | AO76: =+AO70-AO73 -> 
B77: Per Capita MSW Disposed (lbs/person/year) | E77: =+E71-E74 ->  | H77: =+H71-H74 ->  | K77: =+K71-K74 ->  | N77: =+N71-N74 ->  | Q77: =+Q71-Q74 ->  | T77: =+T71-T74 ->  | W77: =+W71-W74 ->  | Z77: =+Z71-Z74 ->  | AC77: =+AC71-AC74 ->  | AF77: =+AF71-AF74 ->  | AI77: =+AI71-AI74 ->  | AL77: =+AL71-AL74 ->  | AO77: =+AO71-AO74 -> 
B78: Per Capita MSW Disposed (lbs/person/day) | E78: =+E77/365 ->  | H78: =+H77/365 ->  | K78: =+K77/365 ->  | N78: =+N77/365 ->  | Q78: =+Q77/365 ->  | T78: =+T77/365 ->  | W78: =+W77/365 ->  | Z78: =+Z77/365 ->  | AC78: =+AC77/365 ->  | AF78: =+AF77/365 ->  | AI78: =+AI77/365 ->  | AL78: =+AL77/365 ->  | AO78: =+AO77/365 -> 
